{"text_format":"1","workbook":"xlsx","n_sheets":1,"sheets":["2024"],"not_rendered":{"charts":0,"images":0,"macros":0,"external_links":0,"defined_names":1,"comments":0,"pivot_tables":0},"unopened":[],"bounds":{"document_bytes":16777216,"sheet_cells":100000,"rows_first":2000,"rows_last":500,"rows_between":2000,"halvings":0,"cell_chars":16384,"cell_head_chars":4096},"cells_cut":0,"cells_raw":0,"read":"whole","date_system":"1900"}

{"sheet":"2024","index":0,"n_rows":1633,"n_cols":18,"rows_kept":1633,"cut":false,"hidden":false,"merged":[[10,14,10,15],[7,6,7,13],[10,5,10,13],[3,0,3,3]]}
["TRVALKY ŘÍZKOVANÉ - mladé rostliny na multiplatech - 2024"]
["objednávkový formulář - kupní smlouva mezi"]
["odběratel"]
[]
["IČ/DIČ"]
["dodavatel"]
["VITROFLORA z.o.o. 86-022 Dobrzc Poland, zastoupená THOOLEN s.r.o. Rakovník"]
[]
["ceny jsou uváděny vč. licencí a dopravy do vaší firmy",null,null,null,"týden dodání",10,12,16,18,20,22,24,32,34,null,null,{"$f":"SUM(Q13:Q1640)","v":0},{"$f":"SUM(R13:R1640)","v":0}]
["TC - tkáňový řízek , RC - klasický řízek",null,null,null,"celkem plat",{"$f":"SUM(F13:F1640)","v":0},{"$f":"SUM(G13:G1640)","v":0},0,0,0,0,0,0,0,{"$f":"SUM(F10:N10)","v":0}]
[null,null,null,null,null,"expedice dne",null,null,null,null,null,null,null,null,"CENA"]
["code","plato","kultivar",null,null,"6.3","20.3","17.4","1.5","15.5","29.5","12.6","7.8","21.8","rostlina","plato","za objed.","s DPH"]
[73330,100,"Acaena inermis","Purpurea","RC",null,null,null,null,null,null,null,null,null,9.67,966.9,{"$f":"P13*(F13+G13+H13+I13+J13+K13+L13+M13+N13)","v":0},{"$f":"Q13*1.15","v":0}]
[73328,100,"Acaena microphylla","Acaena microphylla","RC",null,null,null,null,null,null,null,null,null,9.67,966.9,{"$f":"P14*(F14+G14+H14+I14+J14+K14+L14+M14+N14)","v":0},{"$f":"Q14*1.15","v":0}]
[73329,100,"Acaena microphylla","Kupferteppich","RC",null,null,null,null,null,null,null,null,null,9.67,966.9,0,0]
[79992,84,"Acanthus mollis","Tasmanian Angel™","TC",null,null,null,null,null,null,null,null,null,49.41,4150.37,0,0]
[79317,84,"Acanthus x hybrida","Whitewater","TC",null,null,null,null,null,null,null,null,null,49.41,4150.37,0,0]
[74301,84,"Acorus gramineus","Argenteostriatus","RC",null,null,null,null,null,null,null,null,null,13.04,1095.07,0,0]
[74302,84,"Acorus gramineus","Golden Delight","RC",null,null,null,null,null,null,null,null,null,13.04,1095.07,0,0]
[74304,84,"Acorus gramineus","Ogon","RC",null,null,null,null,null,null,null,null,null,13.04,1095.07,0,0]
[70758,84,"Actaea pachypoda","Misty Blue","TC",null,null,null,null,null,null,null,null,null,40.869999999999997,3433.37,0,0]
[79414,84,"Actaea simplex","Black Negligee","TC",null,null,null,null,null,null,null,null,null,42.15,3540.38,0,0]
[74472,84,"Actaea simplex","Carbonella","TC",null,null,null,null,null,null,null,null,null,40.869999999999997,3433.37,0,0]
[70763,84,"Actaea simplex","Pink Spike","TC",null,null,null,null,null,null,null,null,null,36.1,3032.06,0,0]
[73331,100,"Aethionema armenum","Warley Rose","RC",null,null,null,null,null,null,null,null,null,12.02,1202.32,0,0]
[74406,100,"Agastache","Crazy Fortune","RC",null,null,null,null,null,null,null,null,null,18.82,1882.27,0,0]
[70766,100,"Agastache","Danish Deilight","RC",null,null,null,null,null,null,null,null,null,18.5,1850.42,0,0]
[74409,100,"Agastache","Fleur","RC",null,null,null,null,null,null,null,null,null,12.36,1235.72,0,0]
[74405,100,"Agastache","Kudos Ambrosia","RC",null,null,null,null,null,null,null,null,null,15.45,1544.66,0,0]
[74418,100,"Agastache","Kudos Coral","RC",null,null,null,null,null,null,null,null,null,15.45,1544.66,0,0]
[74419,100,"Agastache","Kudos Mandarin","RC",null,null,null,null,null,null,null,null,null,15.45,1544.66,0,0]
[75427,100,"Agastache","Kudos Red","RC",null,null,null,null,null,null,null,null,null,15.45,1544.66,0,0]
[74455,100,"Agastache","Kudos Yellow","RC",null,null,null,null,null,null,null,null,null,15.45,1544.66,0,0]
[74411,100,"Agastache","Mango Tango","RC",null,null,null,null,null,null,null,null,null,16.27,1627.47,0,0]
[75402,100,"Agastache","Morello","RC",null,null,null,null,null,null,null,null,null,15.54,1554.22,0,0]
[75428,100,"Agastache","Poquito™ Lavender","RC",null,null,null,null,null,null,null,null,null,15.54,1554.22,0,0]
[78402,100,"Agastache hybrida","Beelicious® Pink","RC",null,null,null,null,null,null,null,null,null,18.82,1882.27,0,0]
[74408,100,"Agastache hybrida","Beelicious® Purple","RC",null,null,null,null,null,null,null,null,null,18.82,1882.27,0,0]
[70739,100,"Agastache hybrida","Black Adder","RC",null,null,null,null,null,null,null,null,null,13.73,1372.67,0,0]
[70729,100,"Agastache hybrida","Blue Boa","RC",null,null,null,null,null,null,null,null,null,16.59,1659.32,0,0]
[70764,100,"Agastache hybrida","Blue Fortune","RC",null,null,null,null,null,null,null,null,null,12.36,1235.72,0,0]
[74412,100,"Agastache hybrida","Purple Haze","RC",null,null,null,null,null,null,null,null,null,12.36,1235.72,0,0]
[78403,100,"Agastache hybrida","Spicey","RC",null,null,null,null,null,null,null,null,null,12.36,1235.72,0,0]
[70791,100,"Agastache mexicana","Red Fortune","RC",null,null,null,null,null,null,null,null,null,15.54,1554.22,0,0]
[74407,100,"Agastache rugosa","Alabaster","RC",null,null,null,null,null,null,null,null,null,12.36,1235.72,0,0]
[74410,100,"Agastache rugosa","Little Adder","RC",null,null,null,null,null,null,null,null,null,16.91,1691.17,0,0]
[74414,100,"Agastache rugosa","Rosie Posie","RC",null,null,null,null,null,null,null,null,null,14.91,1490.52,0,0]
[79017,100,"Achillea filipendulina","Coronation Gold","RC",null,null,null,null,null,null,null,null,null,11.7,1169.74,0,0]
[79019,100,"Achillea hybrida","Little Moonshine","RC",null,null,null,null,null,null,null,null,null,16.5,1650.38,0,0]
[79020,100,"Achillea lewisii","King Edward","RC",null,null,null,null,null,null,null,null,null,12.39,1238.9000000000001,0,0]
[75492,100,"Achillea millefolium","Lachsschönheit","RC",null,null,null,null,null,null,null,null,null,12.35,1234.9100000000001,0,0]
[75491,100,"Achillea millefolium","Lilac Beauty","RC",null,null,null,null,null,null,null,null,null,12.35,1234.9100000000001,0,0]
[79010,100,"Achillea millefolium","Moonshine","RC",null,null,null,null,null,null,null,null,null,12.67,1267.49,0,0]
[79011,100,"Achillea millefolium","Paprika","RC",null,null,null,null,null,null,null,null,null,12.39,1238.9000000000001,0,0]
[75493,100,"Achillea millefolium","Pretty Belinda","RC",null,null,null,null,null,null,null,null,null,12.35,1234.9100000000001,0,0]
[79079,100,"Achillea millefolium","Safran","RC",null,null,null,null,null,null,null,null,null,12.35,1234.9100000000001,0,0]
[75496,100,"Achillea millefolium","Sassy Summer Lemon","RC",null,null,null,null,null,null,null,null,null,18.22,1821.76,0,0]
[75502,100,"Achillea millefolium","Sassy Summer Sangria","RC",null,null,null,null,null,null,null,null,null,18.22,1821.76,0,0]
[75497,100,"Achillea millefolium","Sassy Summer Sunset","RC",null,null,null,null,null,null,null,null,null,18.22,1821.76,0,0]
[75498,100,"Achillea millefolium","Sassy Summer Taffy","RC",null,null,null,null,null,null,null,null,null,18.22,1821.76,0,0]
[79022,100,"Achillea millefolium","Schneetaler","RC",null,null,null,null,null,null,null,null,null,12.35,1234.9100000000001,0,0]
[75488,100,"Achillea millefolium","Skysail Bright Pink","RC",null,null,null,null,null,null,null,null,null,13.25,1324.9,0,0]
[75486,100,"Achillea millefolium","Skysail Fire","RC",null,null,null,null,null,null,null,null,null,13.25,1324.9,0,0]
[75487,100,"Achillea millefolium","Skysail Yellow","RC",null,null,null,null,null,null,null,null,null,13.25,1324.9,0,0]
[79013,100,"Achillea millefolium","Terracotta","RC",null,null,null,null,null,null,null,null,null,12.35,1234.9100000000001,0,0]
[75495,100,"Achillea millefolium","Walther Funcke","RC",null,null,null,null,null,null,null,null,null,12.35,1234.9100000000001,0,0]
[79023,100,"Achillea ptarmica","Nana Compacta","RC",null,null,null,null,null,null,null,null,null,12.35,1234.9100000000001,0,0]
[70759,100,"Ajuga reptans","Ajuga reptans","RC",null,null,null,null,null,null,null,null,null,11.05,1104.57,0,0]
[70740,100,"Ajuga reptans","Alba","RC",null,null,null,null,null,null,null,null,null,11.05,1104.57,0,0]
[75411,100,"Ajuga reptans","Atropurpurea","RC",null,null,null,null,null,null,null,null,null,11.05,1104.57,0,0]
[70741,100,"Ajuga reptans","Black Scallop","RC",null,null,null,null,null,null,null,null,null,13.76,1375.51,0,0]
[72801,100,"Ajuga reptans","Braun Hertz","RC",null,null,null,null,null,null,null,null,null,11.05,1104.57,0,0]
[72802,100,"Ajuga reptans","Burgundy Glow","RC",null,null,null,null,null,null,null,null,null,11.05,1104.57,0,0]
[72803,100,"Ajuga reptans","Catlin's Giant","RC",null,null,null,null,null,null,null,null,null,11.05,1104.57,0,0]
[74483,100,"Ajuga reptans","Gold Chang","RC",null,null,null,null,null,null,null,null,null,14.87,1487.33,0,0]
[72804,100,"Ajuga reptans","Mahogany","RC",null,null,null,null,null,null,null,null,null,10.8,1079.6500000000001,0,0]
[70744,100,"Ajuga reptans","Rosea","RC",null,null,null,null,null,null,null,null,null,11.05,1104.57,0,0]
[70732,100,"Ajuga reptans","Sparkler","RC",null,null,null,null,null,null,null,null,null,12.07,1207.05,{"$f":"P78*(F78+G78+H78+I78+J78+K78+L78+M78+N78)","v":0},{"$f":"Q78*1.15","v":0}]
[72808,100,"Ajuga reptans","Variegata","RC",null,null,null,null,null,null,null,null,null,11.05,1104.57,0,0]
[70742,100,"Ajuga tenorii","Chocolate Chip","RC",null,null,null,null,null,null,null,null,null,11.05,1104.57,0,0]
[75426,100,"Ajuga tenorii","Princess Nadia","RC",null,null,null,null,null,null,null,null,null,13.98,1398.15,0,0]
[70108,100,"Alchemilla mollis","Auslese","RC",null,null,null,null,null,null,null,null,null,9.74,974.23,0,0]
[75293,100,"Allium","Millenium","RC",null,null,null,null,null,null,null,null,null,18.12,1812.2,0,0]
[77904,100,"Alyssum wulfenianum","Golden Spring","RC",null,null,null,null,null,null,null,null,null,14.84,1484.34,0,0]
[77302,100,"Amsonia","Blue Ice","RC",null,null,null,null,null,null,null,null,null,11.05,1104.57,0,0]
[77308,100,"Anaphalis triplinervis","Anaphalis triplinervis","RC",null,null,null,null,null,null,null,null,null,11.37,1137.1500000000001,0,0]
[77303,100,"Anaphalis triplinervis","Silberregen","RC",null,null,null,null,null,null,null,null,null,11.37,1137.1500000000001,0,0]
[77304,100,"Anaphalis triplinervis","Silver Wave","RC",null,null,null,null,null,null,null,null,null,11.37,1137.1500000000001,0,0]
[77305,100,"Anaphalis triplinervis","Sommerschnee","RC",null,null,null,null,null,null,null,null,null,11.37,1137.1500000000001,0,0]
[73209,84,"Anemone hupehensis","Margarete","RC",null,null,null,null,null,null,null,null,null,16.57,1392.03,0,0]
[73209,100,"Anemone hupehensis","Margarete","RC",null,null,null,null,null,null,null,null,null,10.55,1055.03,0,0]
[73213,84,"Anemone hupehensis","Preacox","RC",null,null,null,null,null,null,null,null,null,16.57,1392.03,0,0]
[73213,100,"Anemone hupehensis","Preacox","RC",null,null,null,null,null,null,null,null,null,10.55,1055.03,0,0]
[73234,84,"Anemone hupehensis","Pretty Lady Emily","RC",null,null,null,null,null,null,null,null,null,23.58,1980.62,0,0]
[73237,84,"Anemone hupehensis","Pretty Lady Maria","RC",null,null,null,null,null,null,null,null,null,23.58,1980.62,0,0]
[73203,84,"Anemone hupehensis","Prinz Heinrich","RC",null,null,null,null,null,null,null,null,null,16.57,1392.03,0,0]
[73203,100,"Anemone hupehensis","Prinz Heinrich","RC",null,null,null,null,null,null,null,null,null,10.55,1055.03,0,0]
[73211,84,"Anemone hupehensis","September Charm","RC",null,null,null,null,null,null,null,null,null,16.57,1392.03,0,0]
[73211,100,"Anemone hupehensis","September Charm","RC",null,null,null,null,null,null,null,null,null,10.55,1055.03,0,0]
[73225,84,"Anemone hupehensis","Splendens","RC",null,null,null,null,null,null,null,null,null,16.57,1392.03,0,0]
[73225,100,"Anemone hupehensis","Splendens","RC",null,null,null,null,null,null,null,null,null,10.55,1055.03,0,0]
[73214,100,"Anemone leveillei","Anemone leveillei","RC",null,null,null,null,null,null,null,null,null,20.350000000000001,2035.15,0,0]
[73204,100,"Anemone tomentosa","Robustissima","RC",null,null,null,null,null,null,null,null,null,10.55,1055.03,0,0]
[73210,84,"Anemone x hybrida","Andrea Atkinson","RC",null,null,null,null,null,null,null,null,null,16.57,1392.03,0,0]
[73210,100,"Anemone x hybrida","Andrea Atkinson","RC",null,null,null,null,null,null,null,null,null,10.55,1055.03,0,0]
[73250,84,"Anemone x hybrida","Bressingham Glow","RC",null,null,null,null,null,null,null,null,null,16.57,1392.03,0,0]
[73250,100,"Anemone x hybrida","Bressingham Glow","RC",null,null,null,null,null,null,null,null,null,10.55,1055.03,0,0]
[73277,84,"Anemone x hybrida","Garden Breeze Pink Touch","RC",null,null,null,null,null,null,null,null,null,22.3,1873.61,0,0]
[73273,84,"Anemone x hybrida","Garden Breeze Rosy Red","RC",null,null,null,null,null,null,null,null,null,22.3,1873.61,0,0]
[73266,84,"Anemone x hybrida","Garden Breeze Whirlwind Pink","RC",null,null,null,null,null,null,null,null,null,22.3,1873.61,0,0]
[73256,100,"Anemone x hybrida","Hadspen Abundance","RC",null,null,null,null,null,null,null,null,null,10.55,1055.03,0,0]
[73201,84,"Anemone x hybrida","Honorine Jobert","RC",null,null,null,null,null,null,null,null,null,16.57,1392.03,0,0]
[73201,100,"Anemone x hybrida","Honorine Jobert","RC",null,null,null,null,null,null,null,null,null,10.55,1055.03,0,0]
[73206,84,"Anemone x hybrida","Königin Charlotte","RC",null,null,null,null,null,null,null,null,null,16.57,1392.03,0,0]
[73206,100,"Anemone x hybrida","Königin Charlotte","RC",null,null,null,null,null,null,null,null,null,10.55,1055.03,0,0]
[73270,84,"Anemone x hybrida","Little Breeze Candy","RC",null,null,null,null,null,null,null,null,null,19.600000000000001,1646.2,0,0]
[73252,84,"Anemone x hybrida","Little Breeze Kiss ","RC",null,null,null,null,null,null,null,null,null,19.600000000000001,1646.2,0,0]
[73251,84,"Anemone x hybrida","Little Breeze Pink","RC",null,null,null,null,null,null,null,null,null,19.600000000000001,1646.2,0,0]
[73260,84,"Anemone x hybrida","Little Breeze Sweet","RC",null,null,null,null,null,null,null,null,null,19.600000000000001,1646.2,0,0]
[73220,84,"Anemone x hybrida","Lorelei","RC",null,null,null,null,null,null,null,null,null,16.57,1392.03,0,0]
[73220,100,"Anemone x hybrida","Lorelei","RC",null,null,null,null,null,null,null,null,null,10.55,1055.03,0,0]
[73222,84,"Anemone x hybrida","Mont-Rose","RC",null,null,null,null,null,null,null,null,null,16.57,1392.03,0,0]
[73222,100,"Anemone x hybrida","Mont-Rose","RC",null,null,null,null,null,null,null,null,null,10.55,1055.03,0,0]
[73202,84,"Anemone x hybrida","Pamina","RC",null,null,null,null,null,null,null,null,null,16.57,1392.03,0,0]
[73202,100,"Anemone x hybrida","Pamina","RC",null,null,null,null,null,null,null,null,null,10.55,1055.03,0,0]
[73223,84,"Anemone x hybrida","Richard Ahrens","RC",null,null,null,null,null,null,null,null,null,16.57,1392.03,0,0]
[73223,100,"Anemone x hybrida","Richard Ahrens","RC",null,null,null,null,null,null,null,null,null,10.55,1055.03,0,0]
[73259,84,"Anemone x hybrida","Rosenschale","RC",null,null,null,null,null,null,null,null,null,16.57,1392.03,0,0]
[73259,100,"Anemone x hybrida","Rosenschale","RC",null,null,null,null,null,null,null,null,null,10.55,1055.03,0,0]
[73205,84,"Anemone x hybrida","Serenade","RC",null,null,null,null,null,null,null,null,null,16.57,1392.03,0,0]
[73205,100,"Anemone x hybrida","Serenade","RC",null,null,null,null,null,null,null,null,null,10.55,1055.03,0,0]
[73267,84,"Anemone x hybrida","Summer Breeze Baby Pink","RC",null,null,null,null,null,null,null,null,null,23.39,1964.57,0,0]
[73262,84,"Anemone x hybrida","Summer Breeze Bright Pink","RC",null,null,null,null,null,null,null,null,null,23.39,1964.57,0,0]
[73272,84,"Anemone x hybrida","Summer Breeze Picotee","RC",null,null,null,null,null,null,null,null,null,23.39,1964.57,0,0]
[73268,84,"Anemone x hybrida","Summer Breeze Snow","RC",null,null,null,null,null,null,null,null,null,23.39,1964.57,0,0]
[73261,84,"Anemone x hybrida","Summer Breeze Vibrant Pink","RC",null,null,null,null,null,null,null,null,null,23.39,1964.57,0,0]
[73212,84,"Anemone x hybrida","Whirlwind","RC",null,null,null,null,null,null,null,null,null,16.57,1392.03,0,0]
[73212,100,"Anemone x hybrida","Whirlwind","RC",null,null,null,null,null,null,null,null,null,10.55,1055.03,0,0]
[79517,100,"Anchusa azurea","Loddon Royalist","RC",null,null,null,null,null,null,null,null,null,13.03,1302.5999999999999,0,0]
[73332,100,"Antennaria dioica","Alba","RC",null,null,null,null,null,null,null,null,null,10.48,1047.8,0,0]
[73366,100,"Antennaria dioica","Alex Duguid","RC",null,null,null,null,null,null,null,null,null,10.88,1088.0999999999999,0,0]
[73335,100,"Anthemis hybrida","E.C. Buxton","RC",null,null,null,null,null,null,null,null,null,10.39,1039.4000000000001,{"$f":"P142*(F142+G142+H142+I142+J142+K142+L142+M142+N142)","v":0},{"$f":"Q142*1.15","v":0}]
[73336,100,"Anthemis tinctoria","Sauce Hollandaise","RC",null,null,null,null,null,null,null,null,null,10.39,1039.4000000000001,0,0]
[70124,100,"Arenaria montana","Mont Blanc","RC",null,null,null,null,null,null,null,null,null,10.39,1039.4000000000001,0,0]
[79809,100,"Armeria juniperifolia","New Zealand Form","RC",null,null,null,null,null,null,null,null,null,11.7,1169.74,0,0]
[79815,100,"Armeria maritima","Nifty Thrifty","RC",null,null,null,null,null,null,null,null,null,11.05,1104.57,0,0]
[73325,100,"Artemisia arborescens","Powis Castle","RC",null,null,null,null,null,null,null,null,null,12.04,1203.8699999999999,0,0]
[15207,100,"Artemisia dracunculus","French Tarragon","RC",null,null,null,null,null,null,null,null,null,12.04,1203.8699999999999,0,0]
[73364,100,"Artemisia ludoviciana","Silver Queen","RC",null,null,null,null,null,null,null,null,null,12.04,1203.8699999999999,0,0]
[73338,100,"Artemisia schmidtiana","Nana","RC",null,null,null,null,null,null,null,null,null,12.04,1203.8699999999999,0,0]
[73320,100,"Artemisia schmidtiana","Silver Mound","RC",null,null,null,null,null,null,null,null,null,13.06,1305.79,0,0]
[73319,100,"Artemisia stelleriana","Silver Brocade","RC",null,null,null,null,null,null,null,null,null,13.06,1305.79,0,0]
[79539,45,"Arundo donax","Ely","TC",null,null,null,null,null,null,null,null,null,36.880000000000003,1659.48,0,0]
[73973,100,"Aster ageratoides","Adustus Nanus (Kalimeris inc. Nana Blue)","RC",null,null,null,null,null,null,null,null,null,10.88,1088.0999999999999,0,0]
[73977,100,"Aster ageratoides","Ashvi","RC",null,null,null,null,null,null,null,null,null,10.88,1088.0999999999999,0,0]
[73978,100,"Aster ageratoides","Asmö","RC",null,null,null,null,null,null,null,null,null,10.88,1088.0999999999999,0,0]
[73979,100,"Aster ageratoides","Asran","RC",null,null,null,null,null,null,null,null,null,10.88,1088.0999999999999,0,0]
[73989,100,"Aster ageratoides","Eleven Purple","RC",null,null,null,null,null,null,null,null,null,15.26,1525.55,0,0]
[73956,100,"Aster ageratoides","Ezo Murazaki","RC",null,null,null,null,null,null,null,null,null,10.88,1088.0999999999999,0,0]
[73970,100,"Aster ageratoides","Stardust","RC",null,null,null,null,null,null,null,null,null,10.88,1088.0999999999999,0,0]
[73945,100,"Aster ageratoides","Starshine","RC",null,null,null,null,null,null,null,null,null,15.93,1593.34,0,0]
[73980,100,"Aster divaricatus","Aster divaricatus","RC",null,null,null,null,null,null,null,null,null,12.53,1253.48,0,0]
[73955,100,"Aster divaricatus","Eastern Star","RC",null,null,null,null,null,null,null,null,null,12.53,1253.48,0,0]
[73976,100,"Aster dumosus","Anneke","RC",null,null,null,null,null,null,null,null,null,10.220000000000001,1021.95,0,0]
[73959,100,"Aster dumosus","Herbstgruss vom Bresserhof","RC",null,null,null,null,null,null,null,null,null,10.220000000000001,1021.95,0,0]
[73940,100,"Aster dumosus","Island Bahamas","RC",null,null,null,null,null,null,null,null,null,11.59,1159.28,0,0]
[73942,100,"Aster dumosus","Island Samoa","RC",null,null,null,null,null,null,null,null,null,11.59,1159.28,0,0]
[73943,100,"Aster dumosus","Island Tonga","RC",null,null,null,null,null,null,null,null,null,11.59,1159.28,0,0]
[73962,100,"Aster dumosus","Jenny","RC",null,null,null,null,null,null,null,null,null,10.220000000000001,1021.95,0,0]
[73906,100,"Aster dumosus","Lady in Blue","RC",null,null,null,null,null,null,null,null,null,10.220000000000001,1021.95,0,0]
[73908,100,"Aster dumosus","Peter Harrison","RC",null,null,null,null,null,null,null,null,null,10.220000000000001,1021.95,0,0]
[73911,100,"Aster dumosus","Prof. Anton Kippenberg","RC",null,null,null,null,null,null,null,null,null,10.220000000000001,1021.95,0,0]
[73910,100,"Aster dumosus","Schneekissen","RC",null,null,null,null,null,null,null,null,null,10.220000000000001,1021.95,0,0]
[73966,100,"Aster ericoides","Monte Cassino","RC",null,null,null,null,null,null,null,null,null,10.220000000000001,1021.95,0,0]
[73998,100,"Aster ericoides","Pink Cloud","RC",null,null,null,null,null,null,null,null,null,10.220000000000001,1021.95,0,0]
[73999,100,"Aster ericoides","Schneetanne","RC",null,null,null,null,null,null,null,null,null,10.220000000000001,1021.95,0,0]
[73969,100,"Aster ericoides","Snowflurry","RC",null,null,null,null,null,null,null,null,null,10.220000000000001,1021.95,0,0]
[73965,100,"Aster frikartii","Mönch","RC",null,null,null,null,null,null,null,null,null,12.53,1253.48,0,0]
[73988,100,"Aster hybrida","Treffpunkt","RC",null,null,null,null,null,null,null,null,null,11.87,1187.33,0,0]
[73981,100,"Aster hybrida","Wood's Purple","RC",null,null,null,null,null,null,null,null,null,11.21,1121.18,0,0]
[73993,100,"Aster macrophyllus","Albus","RC",null,null,null,null,null,null,null,null,null,11.21,1121.18,0,0]
[73992,100,"Aster macrophyllus","Twilight","RC",null,null,null,null,null,null,null,null,null,11.21,1121.18,0,0]
[73967,100,"Aster novae-angliae","Purple Dome","RC",null,null,null,null,null,null,null,null,null,12.87,1286.55,0,0]
[74018,100,"Aster novi belgii","Neron","RC",null,null,null,null,null,null,null,null,null,11.21,1121.18,0,0]
[73974,100,"Aster novi-belgii","Crimson Brocade","RC",null,null,null,null,null,null,null,null,null,11.21,1121.18,0,0]
[73957,100,"Aster novi-belgii","Fellowship","RC",null,null,null,null,null,null,null,null,null,11.21,1121.18,0,0]
[73964,100,"Aster novi-belgii","Marie Ballard","RC",null,null,null,null,null,null,null,null,null,11.21,1121.18,0,0]
[73968,100,"Aster novi-belgii","Sarah Ballard","RC",null,null,null,null,null,null,null,null,null,11.21,1121.18,0,0]
[73971,100,"Aster novi-belgii","White Ladies","RC",null,null,null,null,null,null,null,null,null,11.21,1121.18,0,0]
[73972,100,"Aster novi-belgii","Winston Churchill","RC",null,null,null,null,null,null,null,null,null,11.21,1121.18,0,0]
[73994,100,"Aster oblongifolius","October Skies","RC",null,null,null,null,null,null,null,null,null,11.21,1121.18,0,0]
[74017,100,"Aster tataricus","JIndai","RC",null,null,null,null,null,null,null,null,null,12.39,1238.9000000000001,0,0]
[73995,100,"Aster thomsonii","Aster thomsonii","RC",null,null,null,null,null,null,null,null,null,11.87,1187.33,0,0]
[79929,84,"Astrantia","Astra Red","TC",null,null,null,null,null,null,null,null,null,32.69,2745.79,0,0]
[79930,84,"Astrantia","Astra White","TC",null,null,null,null,null,null,null,null,null,32.69,2745.79,0,0]
[71602,84,"Astrantia major","Cerise Button","TC",null,null,null,null,null,null,null,null,null,37.78,3173.85,0,0]
[71607,84,"Astrantia major","Pink Button","TC",null,null,null,null,null,null,null,null,null,38.520000000000003,3235.39,0,0]
[71522,84,"Astrantia major","Roma®","TC",null,null,null,null,null,null,null,null,null,37.78,3173.85,0,0]
[73502,100,"Aubrieta","Glacier Blue","RC",null,null,null,null,null,null,null,null,null,11.72,1172.02,0,0]
[73513,100,"Aubrieta gracilis","Rock on Blue","RC",null,null,null,null,null,null,null,null,null,12.68,1267.57,0,0]
[73514,100,"Aubrieta gracilis","Rock on Pink","RC",null,null,null,null,null,null,null,null,null,12.68,1267.57,0,0]
[73519,100,"Aubrieta gracilis","Rock on Purple","RC",null,null,null,null,null,null,null,null,null,12.68,1267.57,0,0]
[73529,100,"Aubrieta hybrida","Axcent™ Burgundy","RC",null,null,null,null,null,null,null,null,null,12.42,1242.0899999999999,0,0]
[73524,100,"Aubrieta hybrida","Axcent™ Deep Purple Impr.","RC",null,null,null,null,null,null,null,null,null,12.42,1242.0899999999999,0,0]
[73525,100,"Aubrieta hybrida","Axcent™ Light Blue","RC",null,null,null,null,null,null,null,null,null,12.42,1242.0899999999999,0,0]
[73508,100,"Ballota acetabulosa","All Hallows Green","RC",null,null,null,null,null,null,null,null,null,11.7,1169.74,{"$f":"P206*(F206+G206+H206+I206+J206+K206+L206+M206+N206)","v":0},{"$f":"Q206*1.15","v":0}]
[73511,100,"Ballota pseudodictamnus","Ballota pseudodictamnus","RC",null,null,null,null,null,null,null,null,null,11.7,1169.74,0,0]
[73509,100,"Ballota pseudodictamnus","Compact Form","RC",null,null,null,null,null,null,null,null,null,11.7,1169.74,0,0]
[70784,84,"Bergenia","Dragonfly™ Angel Kiss","TC",null,null,null,null,null,null,null,null,null,32.08,2694.95,0,0]
[70785,84,"Bergenia","Dragonfly™ Sakura","TC",null,null,null,null,null,null,null,null,null,32.78,2753.81,0,0]
[78902,84,"Bergenia","Early Brilliance Magenta","TC",null,null,null,null,null,null,null,null,null,32.78,2753.81,0,0]
[74433,84,"Bergenia","Flirt","TC",null,null,null,null,null,null,null,null,null,32.78,2753.81,0,0]
[70702,84,"Bergenia","Pink Dragonfly","TC",null,null,null,null,null,null,null,null,null,30.17,2534.4299999999998,0,0]
[78903,84,"Bergenia","Vintage Blush","TC",null,null,null,null,null,null,null,null,null,32.78,2753.81,0,0]
[79499,84,"Bergenia","Vintage Pink","TC",null,null,null,null,null,null,null,null,null,32.78,2753.81,0,0]
[78901,84,"Bergenia","Vintage Rose","TC",null,null,null,null,null,null,null,null,null,32.78,2753.81,0,0]
[70773,84,"Bergenia cordifolia","Eroica","TC",null,null,null,null,null,null,null,null,null,30.24,2539.7800000000002,0,0]
[74435,84,"Bergenia cordifolia","Jelle","TC",null,null,null,null,null,null,null,null,null,31.51,2646.8,0,0]
[71880,84,"Brunnera macrophylla","Alexander's Great","TC",null,null,null,null,null,null,null,null,null,35.65,2994.6,0,0]
[70434,84,"Brunnera macrophylla","Betty Bowring","TC",null,null,null,null,null,null,null,null,null,28.36,2381.9299999999998,0,0]
[79702,84,"Brunnera macrophylla","Brunnera macrophylla","TC",null,null,null,null,null,null,null,null,null,29.18,2451.4899999999998,0,0]
[71829,84,"Brunnera macrophylla","Sea Heart","TC",null,null,null,null,null,null,null,null,null,34.79,2922.36,0,0]
[71830,84,"Brunnera macrophylla","Silver Heart","TC",null,null,null,null,null,null,null,null,null,34.79,2922.36,0,0]
[70436,84,"Brunnera macrophylla","Variegata","TC",null,null,null,null,null,null,null,null,null,30.87,2593.29,0,0]
[75479,84,"Buddleja davidii","Butterfly Candy Little Lila","RC",null,null,null,null,null,null,null,null,null,24.69,2074.2600000000002,0,0]
[75484,84,"Buddleja davidii","Butterfly Candy Little Pink","RC",null,null,null,null,null,null,null,null,null,24.69,2074.2600000000002,0,0]
[75480,84,"Buddleja davidii","Butterfly Candy Little Purple","RC",null,null,null,null,null,null,null,null,null,24.69,2074.2600000000002,0,0]
[75483,84,"Buddleja davidii","Butterfly Candy Little Ruby","RC",null,null,null,null,null,null,null,null,null,24.69,2074.2600000000002,0,0]
[75482,84,"Buddleja davidii","Butterfly Candy Little Sweetheart","RC",null,null,null,null,null,null,null,null,null,24.69,2074.2600000000002,0,0]
[75481,84,"Buddleja davidii","Butterfly Candy Little White","RC",null,null,null,null,null,null,null,null,null,24.69,2074.2600000000002,0,0]
[75416,84,"Buddleja davidii","Lavender Cupcake","RC",null,null,null,null,null,null,null,null,null,22.27,1870.93,0,0]
[75415,84,"Buddleja davidii","Magenta Munchkin","RC",null,null,null,null,null,null,null,null,null,22.27,1870.93,0,0]
[74450,84,"Buddleja davidii","Pink Cascade","RC",null,null,null,null,null,null,null,null,null,22.27,1870.93,0,0]
[75446,84,"Buddleja davidii","Prince Charming","RC",null,null,null,null,null,null,null,null,null,22.27,1870.93,0,0]
[75413,84,"Buddleja davidii","Wisteria Lane","RC",null,null,null,null,null,null,null,null,null,22.27,1870.93,0,0]
[73510,100,"Buglossoides purpurocaerulea","Buglossoides purpurocaerulea","RC",null,null,null,null,null,null,null,null,null,12.02,1202.32,0,0]
[79089,84,"Calamagrostis brachytricha","Calamagrostis brachytricha","RC",null,null,null,null,null,null,null,null,null,16.350000000000001,1373.31,0,0]
[79089,155,"Calamagrostis brachytricha","Calamagrostis brachytricha","RC",null,null,null,null,null,null,null,null,null,12.76,1977.66,0,0]
[74156,84,"Calamagrostis splendens","Cheju-Do","RC",null,null,null,null,null,null,null,null,null,16.350000000000001,1373.31,0,0]
[74156,155,"Calamagrostis splendens","Cheju-Do","RC",null,null,null,null,null,null,null,null,null,13.01,2017.15,0,0]
[79081,40,"Calamagrostis x acutiflora","England","RC",null,null,null,null,null,null,null,null,null,32.659999999999997,1306.42,0,0]
[79081,84,"Calamagrostis x acutiflora","England","RC",null,null,null,null,null,null,null,null,null,16.350000000000001,1373.31,0,0]
[79081,155,"Calamagrostis x acutiflora","England","RC",null,null,null,null,null,null,null,null,null,13.01,2017.15,0,0]
[79898,40,"Calamagrostis x acutiflora","Karl Foerster","RC",null,null,null,null,null,null,null,null,null,32.659999999999997,1306.42,0,0]
[79898,84,"Calamagrostis x acutiflora","Karl Foerster","RC",null,null,null,null,null,null,null,null,null,16.350000000000001,1373.31,0,0]
[79898,155,"Calamagrostis x acutiflora","Karl Foerster","RC",null,null,null,null,null,null,null,null,null,13.01,2017.15,0,0]
[79037,40,"Calamagrostis x acutiflora","Overdam","RC",null,null,null,null,null,null,null,null,null,32.659999999999997,1306.42,0,0]
[79037,84,"Calamagrostis x acutiflora","Overdam","RC",null,null,null,null,null,null,null,null,null,16.350000000000001,1373.31,0,0]
[79037,155,"Calamagrostis x acutiflora","Overdam","RC",null,null,null,null,null,null,null,null,null,11.77,1824.62,0,0]
[70225,100,"Calamintha grandiflora","Calamintha grandiflora","RC",null,null,null,null,null,null,null,null,null,10.07,1006.81,0,0]
[70194,100,"Calamintha nepeta","Blue Cloud","RC",null,null,null,null,null,null,null,null,null,10.07,1006.81,0,0]
[70195,100,"Calamintha nepeta","Calamintha nepeta ssp. Nep.","RC",null,null,null,null,null,null,null,null,null,10.07,1006.81,0,0]
[70197,100,"Calamintha nepeta","White Cloud","RC",null,null,null,null,null,null,null,null,null,10.07,1006.81,0,0]
[72227,84,"Campanula","Samantha","TC",null,null,null,null,null,null,null,null,null,28.74,2414.04,0,0]
[72261,84,"Campanula","Viking","TC",null,null,null,null,null,null,null,null,null,33.83,2842.1,0,0]
[70150,84,"Campanula / Adenophora","Gaudi Violet","RC",null,null,null,null,null,null,null,null,null,19.440000000000001,1632.82,0,0]
[72224,84,"Campanula cochleariifolia","Elizabeth Oliver","TC",null,null,null,null,null,null,null,null,null,26.41,2218.73,0,0]
[72245,100,"Campanula garganica","Dickson's Gold","RC",null,null,null,null,null,null,null,null,null,13.34,1334.45,0,0]
[72250,84,"Campanula glomerata","Blue Crown","TC",null,null,null,null,null,null,null,null,null,33.99,2855.48,0,0]
[72254,84,"Campanula glomerata","Freya","TC",null,null,null,null,null,null,null,null,null,32.4,2721.71,0,0]
[72262,84,"Campanula glomerata","Genti Blue","TC",null,null,null,null,null,null,null,null,null,33.520000000000003,2815.35,0,0]
[72259,84,"Campanula glomerata","Genti White","TC",null,null,null,null,null,null,null,null,null,33.520000000000003,2815.35,0,0]
[72241,100,"Campanula lactiflora","Loddon Anna","RC",null,null,null,null,null,null,null,null,null,12.35,1234.9100000000001,0,0]
[72243,100,"Campanula lactiflora","Prichard's Variety","RC",null,null,null,null,null,null,null,null,null,12.35,1234.9100000000001,0,0]
[72248,100,"Campanula lactiflora","Senior","RC",null,null,null,null,null,null,null,null,null,12.35,1234.9100000000001,0,0]
[72272,100,"Campanula portenschlagiana","Campanula portenschlagiana","RC",null,null,null,null,null,null,null,null,null,11.37,1137.1500000000001,0,0]
[72246,100,"Campanula poscharskyana","E.H. Frost","RC",null,null,null,null,null,null,null,null,null,11.37,1137.1500000000001,0,0]
[72214,100,"Campanula poscharskyana","Lisduggan Variety","RC",null,null,null,null,null,null,null,null,null,11.37,1137.1500000000001,0,0]
[72249,100,"Campanula poscharskyana","Silberregen","RC",null,null,null,null,null,null,null,null,null,11.37,1137.1500000000001,0,0]
[72209,100,"Campanula poscharskyana","Stella","RC",null,null,null,null,null,null,null,null,null,11.37,1137.1500000000001,{"$f":"P270*(F270+G270+H270+I270+J270+K270+L270+M270+N270)","v":0},{"$f":"Q270*1.15","v":0}]
[79163,84,"Carex | Carex x hybrida","Ribbon Falls","TC",null,null,null,null,null,null,null,null,null,37.880000000000003,3181.88,0,0]
[79043,84,"Carex brunnea","Albolineata","RC",null,null,null,null,null,null,null,null,null,22.15,1860.23,0,0]
[79043,155,"Carex brunnea","Albolineata","RC",null,null,null,null,null,null,null,null,null,16.14,2500.96,0,0]
[79042,84,"Carex brunnea","Aureomarginata","RC",null,null,null,null,null,null,null,null,null,22.15,1860.23,0,0]
[79042,155,"Carex brunnea","Aureomarginata","RC",null,null,null,null,null,null,null,null,null,16.14,2500.96,0,0]
[79051,84,"Carex brunnea","Jenneke","RC",null,null,null,null,null,null,null,null,null,22.78,1913.74,0,0]
[79051,155,"Carex brunnea","Jenneke","RC",null,null,null,null,null,null,null,null,null,16.45,2550.3200000000002,0,0]
[79044,84,"Carex brunnea","Lady Sunshine","RC",null,null,null,null,null,null,null,null,null,22.15,1860.23,0,0]
[79044,155,"Carex brunnea","Lady Sunshine","RC",null,null,null,null,null,null,null,null,null,16.45,2550.3200000000002,0,0]
[79160,84,"Carex brunnea","Racing Green","RC",null,null,null,null,null,null,null,null,null,22.15,1860.23,0,0]
[79160,155,"Carex brunnea","Racing Green","RC",null,null,null,null,null,null,null,null,null,16.14,2500.96,0,0]
[79041,84,"Carex brunnea","Variegata","RC",null,null,null,null,null,null,null,null,null,22.15,1860.23,0,0]
[79041,155,"Carex brunnea","Variegata","RC",null,null,null,null,null,null,null,null,null,16.14,2500.96,0,0]
[79045,84,"Carex caryophyllea","The Beatles","RC",null,null,null,null,null,null,null,null,null,13.2,1108.44,0,0]
[79045,155,"Carex caryophyllea","The Beatles","RC",null,null,null,null,null,null,null,null,null,10.72,1661.71,0,0]
[79049,84,"Carex conica","Hime Kansuge","RC",null,null,null,null,null,null,null,null,null,16.13,1354.58,0,0]
[79049,155,"Carex conica","Hime Kansuge","RC",null,null,null,null,null,null,null,null,null,12.85,1992.47,0,0]
[74153,84,"Carex dolichostachya","Gold Fountain","RC",null,null,null,null,null,null,null,null,null,19.63,1648.87,0,0]
[74153,155,"Carex dolichostachya","Gold Fountain","RC",null,null,null,null,null,null,null,null,null,15.75,2441.7199999999998,0,0]
[79134,84,"Carex elata","Aurea","RC",null,null,null,null,null,null,null,null,null,24.31,2042.16,0,0]
[79115,84,"Carex montana","Raureif","RC",null,null,null,null,null,null,null,null,null,19.22,1614.09,0,0]
[79002,40,"Carex morrowii","Ice Dance","RC",null,null,null,null,null,null,null,null,null,29.13,1165.01,0,0]
[79002,84,"Carex morrowii","Ice Dance","RC",null,null,null,null,null,null,null,null,null,19.18,1611.42,0,0]
[79002,155,"Carex morrowii","Ice Dance","RC",null,null,null,null,null,null,null,null,null,15.63,2421.9699999999998,0,0]
[79164,40,"Carex morrowii","Irish Green","RC",null,null,null,null,null,null,null,null,null,29.51,1180.3,0,0]
[79164,84,"Carex morrowii","Irish Green","RC",null,null,null,null,null,null,null,null,null,19.18,1611.42,0,0]
[79164,155,"Carex morrowii","Irish Green","RC",null,null,null,null,null,null,null,null,null,15.63,2421.9699999999998,0,0]
[79114,40,"Carex morrowii","Vanilla Ice","RC",null,null,null,null,null,null,null,null,null,33.01,1320.44,0,0]
[79114,84,"Carex morrowii","Vanilla Ice","RC",null,null,null,null,null,null,null,null,null,22.4,1881.63,0,0]
[79114,155,"Carex morrowii","Vanilla Ice","RC",null,null,null,null,null,null,null,null,null,18.809999999999999,2915.64,0,0]
[79053,84,"Carex muskingumensis","Little Midge","RC",null,null,null,null,null,null,null,null,null,16.03,1346.55,0,0]
[79053,155,"Carex muskingumensis","Little Midge","RC",null,null,null,null,null,null,null,null,null,12.76,1977.66,0,0]
[74173,84,"Carex oshimensis","Everest","RC",null,null,null,null,null,null,null,null,null,28.26,2373.91,0,0]
[79889,40,"Carex oshimensis","Evergold","RC",null,null,null,null,null,null,null,null,null,32.79,1311.52,0,0]
[79889,84,"Carex oshimensis","Evergold","RC",null,null,null,null,null,null,null,null,null,19.18,1611.42,0,0]
[79889,155,"Carex oshimensis","Evergold","RC",null,null,null,null,null,null,null,null,null,15.63,2421.9699999999998,0,0]
[79165,40,"Carex oshimensis","Goldwell","RC",null,null,null,null,null,null,null,null,null,31.2,1247.82,0,0]
[79165,84,"Carex oshimensis","Goldwell","RC",null,null,null,null,null,null,null,null,null,19.63,1648.87,0,0]
[79165,155,"Carex oshimensis","Goldwell","RC",null,null,null,null,null,null,null,null,null,15.75,2441.7199999999998,0,0]
[79166,40,"Carex oshimensis","Greenwell","RC",null,null,null,null,null,null,null,null,null,31.2,1247.82,0,0]
[79166,84,"Carex oshimensis","Greenwell","RC",null,null,null,null,null,null,null,null,null,19.63,1648.87,0,0]
[79166,155,"Carex oshimensis","Greenwell","RC",null,null,null,null,null,null,null,null,null,15.66,2426.91,0,0]
[79047,40,"Carex oshimensis","Maxigold","RC",null,null,null,null,null,null,null,null,null,31.93,1277.1199999999999,0,0]
[79047,84,"Carex oshimensis","Maxigold","RC",null,null,null,null,null,null,null,null,null,19.18,1611.42,0,0]
[79047,155,"Carex oshimensis","Maxigold","RC",null,null,null,null,null,null,null,null,null,15.37,2382.4699999999998,0,0]
[74172,84,"Carex oshimensis","Moonlight","RC",null,null,null,null,null,null,null,null,null,19.18,1611.42,0,0]
[74172,155,"Carex oshimensis","Moonlight","RC",null,null,null,null,null,null,null,null,null,15.37,2382.4699999999998,0,0]
[79052,84,"Carex panicea","Pamira","RC",null,null,null,null,null,null,null,null,null,16.829999999999998,1413.44,0,0]
[79052,155,"Carex panicea","Pamira","RC",null,null,null,null,null,null,null,null,null,12.89,1997.41,0,0]
[79094,84,"Carex petriei","Milk Chocolate®","RC",null,null,null,null,null,null,null,null,null,15.84,1330.5,0,0]
[79094,155,"Carex petriei","Milk Chocolate®","RC",null,null,null,null,null,null,null,null,null,12.57,1948.04,0,0]
[79050,84,"Carex testacea","Carex testacea","RC",null,null,null,null,null,null,null,null,null,12.88,1081.69,0,0]
[79130,84,"Carex x hybrida","Feather Falls","TC",null,null,null,null,null,null,null,null,null,37.880000000000003,3181.88,0,0]
[79382,84,"Caryopteris clandonensis","Dark Knight","RC",null,null,null,null,null,null,null,null,null,16.48,1384.01,0,0]
[74817,84,"Caryopteris clandonensis","Hint of Gold","RC",null,null,null,null,null,null,null,null,null,24.76,2079.61,0,0]
[74869,84,"Caryopteris clandonensis","Stephi","RC",null,null,null,null,null,null,null,null,null,24.44,2052.86,0,0]
[74818,84,"Caryopteris clandonensis","Sterling Silver","RC",null,null,null,null,null,null,null,null,null,24.76,2079.61,0,0]
[71571,84,"Caryopteris clandonensis","White Surprise","RC",null,null,null,null,null,null,null,null,null,24.44,2052.86,0,0]
[70198,100,"Centaurea montana","Amethyst in Snow©","RC",null,null,null,null,null,null,null,null,null,19.190000000000001,1919.19,0,0]
[76801,100,"Ceratostigma griffithii","Ceratostigma griffithii","RC",null,null,null,null,null,null,null,null,null,11.05,1104.57,0,0]
[71321,100,"Ceratostigma plumbaginoides","Ceratostigma plumbaginoides","RC",null,null,null,null,null,null,null,null,null,11.05,1104.57,0,0]
[73342,100,"Cistus x obtusifolius","Cistus x obtusifolius","RC",null,null,null,null,null,null,null,null,null,13.33,1332.66,0,0]
[72335,100,"Coreopsis","Full Moon","RC",null,null,null,null,null,null,null,null,null,15.4,1539.66,0,0]
[72328,100,"Coreopsis","Cherry Pie","RC",null,null,null,null,null,null,null,null,null,14.78,1477.78,{"$f":"P334*(F334+G334+H334+I334+J334+K334+L334+M334+N334)","v":0},{"$f":"Q334*1.15","v":0}]
[72330,100,"Coreopsis","Pineapple Pie","RC",null,null,null,null,null,null,null,null,null,14.78,1477.78,0,0]
[72352,100,"Coreopsis auriculata","Nana","RC",null,null,null,null,null,null,null,null,null,11.05,1104.57,0,0]
[72333,100,"Coreopsis grandiflora","Golden Stardust","RC",null,null,null,null,null,null,null,null,null,18.16,1815.75,0,0]
[72385,100,"Coreopsis grandiflora","Solanna™ Bright Touch","RC",null,null,null,null,null,null,null,null,null,17.2,1719.84,0,0]
[72347,100,"Coreopsis grandiflora","Solanna™ Golden Sphere","RC",null,null,null,null,null,null,null,null,null,17.2,1719.84,0,0]
[72305,100,"Coreopsis rosea","American Dream","RC",null,null,null,null,null,null,null,null,null,10.07,1006.81,0,0]
[72354,100,"Coreopsis verticillata","Bengal Tiger","RC",null,null,null,null,null,null,null,null,null,17.2,1719.84,0,0]
[72384,100,"Coreopsis verticillata","Coreopsis verticillata","RC",null,null,null,null,null,null,null,null,null,10.07,1006.81,0,0]
[72356,100,"Coreopsis verticillata","Firefly","RC",null,null,null,null,null,null,null,null,null,16.91,1691.17,0,0]
[72388,100,"Coreopsis verticillata","Fool's Gold","RC",null,null,null,null,null,null,null,null,null,11.05,1104.57,0,0]
[72355,100,"Coreopsis verticillata","Imperial Sun","RC",null,null,null,null,null,null,null,null,null,16.91,1691.17,0,0]
[72358,100,"Coreopsis verticillata","Ladybird","RC",null,null,null,null,null,null,null,null,null,16.12,1611.55,0,0]
[72303,100,"Coreopsis verticillata","Moonbeam","RC",null,null,null,null,null,null,null,null,null,10.07,1006.81,0,0]
[72321,100,"Coreopsis verticillata","Ruby Frost","RC",null,null,null,null,null,null,null,null,null,17.2,1719.84,0,0]
[72353,100,"Coreopsis verticillata","Ruby Red","RC",null,null,null,null,null,null,null,null,null,10.07,1006.81,0,0]
[72370,100,"Coreopsis verticillata","Sunstar™ Rose","RC",null,null,null,null,null,null,null,null,null,16.82,1681.62,0,0]
[72304,100,"Coreopsis verticillata","Zagreb","RC",null,null,null,null,null,null,null,null,null,10.07,1006.81,0,0]
[79428,84,"Corydalis curviflora","Blue Heron","TC",null,null,null,null,null,null,null,null,null,31.83,2673.55,0,0]
[74290,100,"Cosmos atrosanguineus","Cosmos atrosanguineus","RC",null,null,null,null,null,null,null,null,null,12.71,1270.75,0,0]
[74289,100,"Cosmos atrosanguineus","Eclipse","RC",null,null,null,null,null,null,null,null,null,14.94,1493.7,0,0]
[76417,100,"Cosmos atrosanguineus","Chocamocha","RC",null,null,null,null,null,null,null,null,null,14.63,1463,0,0]
[77627,102,"Delosperma","Fireglow","RC",null,null,null,null,null,null,null,null,null,12.33,1257.31,0,0]
[77627,100,"Delosperma","Fireglow","RC",null,null,null,null,null,null,null,null,null,12.02,1202.32,0,0]
[77628,102,"Delosperma","Graaf Reinet","RC",null,null,null,null,null,null,null,null,null,11.37,1159.8499999999999,0,0]
[77628,100,"Delosperma","Graaf Reinet","RC",null,null,null,null,null,null,null,null,null,11.05,1104.57,0,0]
[78186,102,"Delosperma","Sundella Apricot","RC",null,null,null,null,null,null,null,null,null,13.28,1354.77,0,0]
[78186,100,"Delosperma","Sundella Apricot","RC",null,null,null,null,null,null,null,null,null,13.34,1334.45,0,0]
[77665,102,"Delosperma","Sundella Flame","RC",null,null,null,null,null,null,null,null,null,13.28,1354.77,0,0]
[77665,100,"Delosperma","Sundella Flame","RC",null,null,null,null,null,null,null,null,null,13.34,1334.45,0,0]
[78185,100,"Delosperma","Sundella Lavender","RC",null,null,null,null,null,null,null,null,null,13.34,1334.45,0,0]
[78185,102,"Delosperma","Sundella Lavender","RC",null,null,null,null,null,null,null,null,null,13.28,1354.77,0,0]
[77666,102,"Delosperma","Sundella Lime","RC",null,null,null,null,null,null,null,null,null,13.28,1354.77,0,0]
[77666,100,"Delosperma","Sundella Lime","RC",null,null,null,null,null,null,null,null,null,13.34,1334.45,0,0]
[78183,102,"Delosperma","Sundella Neon","RC",null,null,null,null,null,null,null,null,null,13.28,1354.77,0,0]
[78183,100,"Delosperma","Sundella Neon","RC",null,null,null,null,null,null,null,null,null,13.34,1334.45,0,0]
[78187,102,"Delosperma","Sundella Red","RC",null,null,null,null,null,null,null,null,null,13.28,1354.77,0,0]
[78187,100,"Delosperma","Sundella Red","RC",null,null,null,null,null,null,null,null,null,13.34,1334.45,0,0]
[77608,102,"Delosperma","Wheels Of Wonder Fire","RC",null,null,null,null,null,null,null,null,null,17.100000000000001,1744.61,0,0]
[77608,100,"Delosperma","Wheels Of Wonder Fire","RC",null,null,null,null,null,null,null,null,null,16.53,1652.95,0,0]
[77609,102,"Delosperma","Wheels Of Wonder Golden","RC",null,null,null,null,null,null,null,null,null,17.100000000000001,1744.61,0,0]
[77609,100,"Delosperma","Wheels Of Wonder Golden","RC",null,null,null,null,null,null,null,null,null,16.53,1652.95,0,0]
[77610,102,"Delosperma","Wheels Of Wonder Hot Pink","RC",null,null,null,null,null,null,null,null,null,17.100000000000001,1744.61,0,0]
[77610,100,"Delosperma","Wheels Of Wonder Hot Pink","RC",null,null,null,null,null,null,null,null,null,16.53,1652.95,0,0]
[77618,102,"Delosperma","Wheels Of Wonder Limoncello","RC",null,null,null,null,null,null,null,null,null,17.100000000000001,1744.61,0,0]
[77618,100,"Delosperma","Wheels Of Wonder Limoncello","RC",null,null,null,null,null,null,null,null,null,16.53,1652.95,0,0]
[77611,102,"Delosperma","Wheels Of Wonder Orange","RC",null,null,null,null,null,null,null,null,null,17.100000000000001,1744.61,0,0]
[77611,100,"Delosperma","Wheels Of Wonder Orange","RC",null,null,null,null,null,null,null,null,null,16.53,1652.95,0,0]
[77619,102,"Delosperma","Wheels Of Wonder Purple","RC",null,null,null,null,null,null,null,null,null,17.100000000000001,1744.61,0,0]
[77619,100,"Delosperma","Wheels Of Wonder Purple","RC",null,null,null,null,null,null,null,null,null,16.53,1652.95,0,0]
[77620,102,"Delosperma","Wheels Of Wonder Salmon Pink","RC",null,null,null,null,null,null,null,null,null,17.100000000000001,1744.61,0,0]
[77620,100,"Delosperma","Wheels Of Wonder Salmon Pink","RC",null,null,null,null,null,null,null,null,null,16.53,1652.95,0,0]
[77612,102,"Delosperma","Wheels Of Wonder Violet","RC",null,null,null,null,null,null,null,null,null,17.100000000000001,1744.61,0,0]
[77612,100,"Delosperma","Wheels Of Wonder Violet","RC",null,null,null,null,null,null,null,null,null,16.53,1652.95,0,0]
[77613,102,"Delosperma","Wheels Of Wonder White","RC",null,null,null,null,null,null,null,null,null,17.100000000000001,1744.61,0,0]
[77613,100,"Delosperma","Wheels Of Wonder White","RC",null,null,null,null,null,null,null,null,null,16.53,1652.95,0,0]
[77629,102,"Delosperma aberdeense","Hot Pink","RC",null,null,null,null,null,null,null,null,null,11.31,1153.3499999999999,0,0]
[77629,100,"Delosperma aberdeense","Hot Pink","RC",null,null,null,null,null,null,null,null,null,11.05,1104.57,0,0]
[77624,102,"Delosperma congestum","Alba","RC",null,null,null,null,null,null,null,null,null,11.31,1153.3499999999999,0,0]
[77624,100,"Delosperma congestum","Alba","RC",null,null,null,null,null,null,null,null,null,11.05,1104.57,0,0]
[78162,102,"Delosperma congestum","Delosperma congestum","RC",null,null,null,null,null,null,null,null,null,11.31,1153.3499999999999,0,0]
[78162,100,"Delosperma congestum","Delosperma congestum","RC",null,null,null,null,null,null,null,null,null,11.05,1104.57,0,0]
[77631,102,"Delosperma congestum","Golden Nugget","RC",null,null,null,null,null,null,null,null,null,11.31,1153.3499999999999,0,0]
[77631,100,"Delosperma congestum","Golden Nugget","RC",null,null,null,null,null,null,null,null,null,11.05,1104.57,0,0]
[78150,102,"Delosperma cooperi","Delosperma cooperi","RC",null,null,null,null,null,null,null,null,null,11.31,1153.3499999999999,{"$f":"P398*(F398+G398+H398+I398+J398+K398+L398+M398+N398)","v":0},{"$f":"Q398*1.15","v":0}]
[78150,100,"Delosperma cooperi","Delosperma cooperi","RC",null,null,null,null,null,null,null,null,null,11.05,1104.57,0,0]
[78169,102,"Delosperma cooperi","Jewel of Desert Amethyst","RC",null,null,null,null,null,null,null,null,null,17.100000000000001,1744.61,0,0]
[78169,100,"Delosperma cooperi","Jewel of Desert Amethyst","RC",null,null,null,null,null,null,null,null,null,17.04,1703.81,0,0]
[78195,102,"Delosperma cooperi","Jewel of Desert Candystone","RC",null,null,null,null,null,null,null,null,null,17.100000000000001,1744.61,0,0]
[78195,100,"Delosperma cooperi","Jewel of Desert Candystone","RC",null,null,null,null,null,null,null,null,null,17.04,1703.81,0,0]
[78114,102,"Delosperma cooperi","Jewel of Desert Garnet","RC",null,null,null,null,null,null,null,null,null,17.100000000000001,1744.61,0,0]
[78114,100,"Delosperma cooperi","Jewel of Desert Garnet","RC",null,null,null,null,null,null,null,null,null,17.04,1703.81,0,0]
[78168,102,"Delosperma cooperi","Jewel of Desert Grenade","RC",null,null,null,null,null,null,null,null,null,17.100000000000001,1744.61,0,0]
[78168,100,"Delosperma cooperi","Jewel of Desert Grenade","RC",null,null,null,null,null,null,null,null,null,17.04,1703.81,0,0]
[78116,102,"Delosperma cooperi","Jewel of Desert Moon Stone","RC",null,null,null,null,null,null,null,null,null,17.100000000000001,1744.61,0,0]
[78116,100,"Delosperma cooperi","Jewel of Desert Moon Stone","RC",null,null,null,null,null,null,null,null,null,17.04,1703.81,0,0]
[78167,102,"Delosperma cooperi","Jewel of Desert Opal","RC",null,null,null,null,null,null,null,null,null,17.100000000000001,1744.61,0,0]
[78167,100,"Delosperma cooperi","Jewel of Desert Opal","RC",null,null,null,null,null,null,null,null,null,17.04,1703.81,0,0]
[78115,102,"Delosperma cooperi","Jewel of Desert Peridott","RC",null,null,null,null,null,null,null,null,null,17.100000000000001,1744.61,0,0]
[78115,100,"Delosperma cooperi","Jewel of Desert Peridott","RC",null,null,null,null,null,null,null,null,null,17.04,1703.81,0,0]
[78110,102,"Delosperma cooperi","Jewel of Desert Rosequartz","RC",null,null,null,null,null,null,null,null,null,17.100000000000001,1744.61,0,0]
[78110,100,"Delosperma cooperi","Jewel of Desert Rosequartz","RC",null,null,null,null,null,null,null,null,null,17.04,1703.81,0,0]
[78112,102,"Delosperma cooperi","Jewel of Desert Ruby","RC",null,null,null,null,null,null,null,null,null,17.100000000000001,1744.61,0,0]
[78112,100,"Delosperma cooperi","Jewel of Desert Ruby","RC",null,null,null,null,null,null,null,null,null,17.04,1703.81,0,0]
[78194,102,"Delosperma cooperi","Jewel of Desert Sunstone","RC",null,null,null,null,null,null,null,null,null,17.100000000000001,1744.61,0,0]
[78194,100,"Delosperma cooperi","Jewel of Desert Sunstone","RC",null,null,null,null,null,null,null,null,null,17.04,1703.81,0,0]
[78113,102,"Delosperma cooperi","Jewel of Desert Topaz","RC",null,null,null,null,null,null,null,null,null,17.100000000000001,1744.61,0,0]
[78113,100,"Delosperma cooperi","Jewel of Desert Topaz","RC",null,null,null,null,null,null,null,null,null,17.04,1703.81,0,0]
[77636,100,"Delosperma cooperi","Lila","RC",null,null,null,null,null,null,null,null,null,11.05,1104.57,0,0]
[77637,100,"Delosperma cooperi","Orange","RC",null,null,null,null,null,null,null,null,null,11.05,1104.57,0,0]
[77639,100,"Delosperma cooperi","Red","RC",null,null,null,null,null,null,null,null,null,11.05,1104.57,0,0]
[77640,100,"Delosperma cooperi","White","RC",null,null,null,null,null,null,null,null,null,11.05,1104.57,0,0]
[77641,100,"Delosperma cooperi","Yellow","RC",null,null,null,null,null,null,null,null,null,11.05,1104.57,0,0]
[78155,102,"Delosperma dyeri","Fire Spinner","RC",null,null,null,null,null,null,null,null,null,17.100000000000001,1744.61,0,0]
[78155,100,"Delosperma dyeri","Fire Spinner","RC",null,null,null,null,null,null,null,null,null,17.04,1703.81,0,0]
[77630,102,"Delosperma dyeri","Red Mountain©","RC",null,null,null,null,null,null,null,null,null,17.100000000000001,1744.61,0,0]
[77630,100,"Delosperma dyeri","Red Mountain©","RC",null,null,null,null,null,null,null,null,null,17.04,1703.81,0,0]
[77625,102,"Delosperma lavesii","Delosperma lavesii","RC",null,null,null,null,null,null,null,null,null,11.31,1153.3499999999999,0,0]
[77625,100,"Delosperma lavesii","Delosperma lavesii","RC",null,null,null,null,null,null,null,null,null,11.05,1104.57,0,0]
[77626,102,"Delosperma nubigenum","Delosperma nubigenum","RC",null,null,null,null,null,null,null,null,null,11.31,1153.3499999999999,0,0]
[77626,100,"Delosperma nubigenum","Delosperma nubigenum","RC",null,null,null,null,null,null,null,null,null,11.05,1104.57,0,0]
[79040,84,"Deschampsia caespitosa","Goldschleier","RC",null,null,null,null,null,null,null,null,null,13.71,1151.25,0,0]
[79040,155,"Deschampsia caespitosa","Goldschleier","RC",null,null,null,null,null,null,null,null,null,9.67,1498.8,0,0]
[79150,84,"Deschampsia caespitosa","Palava","RC",null,null,null,null,null,null,null,null,null,13.71,1151.25,0,0]
[79150,155,"Deschampsia caespitosa","Palava","RC",null,null,null,null,null,null,null,null,null,9.67,1498.8,0,0]
[79046,84,"Deschampsia caespitosa","Tardiflora","RC",null,null,null,null,null,null,null,null,null,13.71,1151.25,0,0]
[74157,84,"Deschampsia flexuosa","Tatra Gold","RC",null,null,null,null,null,null,null,null,null,14.02,1178,0,0]
[77814,102,"Dianthus","Pretty Becky","RC",null,null,null,null,null,null,null,null,null,14.94,1523.7,0,0]
[77816,102,"Dianthus plumarius","Angel of Hope","RC",null,null,null,null,null,null,null,null,null,14.62,1491.22,0,0]
[77817,102,"Dianthus plumarius","Angel of Purity","RC",null,null,null,null,null,null,null,null,null,14.62,1491.22,0,0]
[77815,102,"Dianthus plumarius","Angel of Virtue","RC",null,null,null,null,null,null,null,null,null,14.62,1491.22,0,0]
[79227,84,"Dicentra spectabilis","Alba","RC",null,null,null,null,null,null,null,null,null,18.16,1525.8,0,0]
[79227,84,"Dicentra spectabilis","Alba","RC",null,null,null,null,null,null,null,null,null,13.26,1113.79,0,0]
[79652,84,"Dicentra spectabilis","Dicentra spectabilis","RC",null,null,null,null,null,null,null,null,null,18.16,1525.8,0,0]
[79652,84,"Dicentra spectabilis","Dicentra spectabilis","RC",null,null,null,null,null,null,null,null,null,13.26,1113.79,0,0]
[79668,84,"Dicentra spectabilis","Gold Heart","TC",null,null,null,null,null,null,null,null,null,39.54,3321,0,0]
[79668,84,"Dicentra spectabilis","Gold Heart","TC",null,null,null,null,null,null,null,null,null,33.61,2823.37,0,0]
[79244,84,"Dicentra spectabilis","Valentine®","TC",null,null,null,null,null,null,null,null,null,36.35,3053.46,0,0]
[79244,84,"Dicentra spectabilis","Valentine®","TC",null,null,null,null,null,null,null,null,null,28.74,2414.04,0,0]
[77402,84,"Dicentra spectabilis (Lamprocapnos)","White Gold","TC",null,null,null,null,null,null,null,null,null,40.49,3401.26,0,0]
[77402,84,"Dicentra spectabilis (Lamprocapnos)","White Gold","TC",null,null,null,null,null,null,null,null,null,34.57,2903.64,0,0]
[71412,84,"Digitalis","Digiplexis™ Berry Canary","RC",null,null,null,null,null,null,null,null,null,22.21,1865.58,0,0]
[75901,84,"Digitalis","Falcon Fire","RC",null,null,null,null,null,null,null,null,null,24.82,2084.96,0,0]
[75903,84,"Digitalis","Firecracker","RC",null,null,null,null,null,null,null,null,null,24.82,2084.96,0,0]
[75904,84,"Digitalis","Rising Phoenix","RC",null,null,null,null,null,null,null,null,null,24.82,2084.96,0,0]
[79233,84,"Echinacea","Aloha","TC",null,null,null,null,null,null,null,null,null,37.590000000000003,3157.8,0,0]
[74244,84,"Echinacea","Big Kahuna","TC",null,null,null,null,null,null,null,null,null,37.590000000000003,3157.8,0,0]
[75917,84,"Echinacea","Blueberry Cheesecake","TC",null,null,null,null,null,null,null,null,null,36.99,3106.97,0,0]
[79272,84,"Echinacea","Butterfly Kisses","TC",null,null,null,null,null,null,null,null,null,36.76,3088.24,{"$f":"P462*(F462+G462+H462+I462+J462+K462+L462+M462+N462)","v":0},{"$f":"Q462*1.15","v":0}]
[77498,84,"Echinacea","Carrot Cake","TC",null,null,null,null,null,null,null,null,null,35.840000000000003,3010.65,0,0]
[74262,84,"Echinacea","Delicious Candy","TC",null,null,null,null,null,null,null,null,null,35.17,2954.47,0,0]
[77431,84,"Echinacea","Delicious Nougat","TC",null,null,null,null,null,null,null,null,null,35.17,2954.47,0,0]
[74263,84,"Echinacea","Eccentric","TC",null,null,null,null,null,null,null,null,null,36.64,3077.54,0,0]
[74295,84,"Echinacea","Fatal Attraction","TC",null,null,null,null,null,null,null,null,null,36.64,3077.54,0,0]
[79689,84,"Echinacea","Flame Thrower","TC",null,null,null,null,null,null,null,null,null,37.590000000000003,3157.8,0,0]
[77448,84,"Echinacea","Fountain Light Purple","TC",null,null,null,null,null,null,null,null,null,35.840000000000003,3010.65,0,0]
[77447,84,"Echinacea","Fountain Pink Eye","TC",null,null,null,null,null,null,null,null,null,35.840000000000003,3010.65,0,0]
[77492,84,"Echinacea","Fountain Red","TC",null,null,null,null,null,null,null,null,null,35.840000000000003,3010.65,0,0]
[77497,84,"Echinacea","Fountain Yellow","TC",null,null,null,null,null,null,null,null,null,35.840000000000003,3010.65,0,0]
[79285,84,"Echinacea","Glowing Dream","TC",null,null,null,null,null,null,null,null,null,36.799999999999997,3090.91,0,0]
[74296,84,"Echinacea","Green Jewel","TC",null,null,null,null,null,null,null,null,null,36.64,3077.54,0,0]
[79692,84,"Echinacea","Hot Lava","TC",null,null,null,null,null,null,null,null,null,37.590000000000003,3157.8,0,0]
[79250,84,"Echinacea","Hot Papaya","TC",null,null,null,null,null,null,null,null,null,38.229999999999997,3211.31,0,0]
[74294,84,"Echinacea","Cherry Fluff","TC",null,null,null,null,null,null,null,null,null,38.229999999999997,3211.31,0,0]
[77404,84,"Echinacea","Innocent Meadow Mama","TC",null,null,null,null,null,null,null,null,null,37.43,3144.42,0,0]
[77472,84,"Echinacea","JS® Roho","TC",null,null,null,null,null,null,null,null,null,35.04,2943.77,0,0]
[79299,84,"Echinacea","Julia","TC",null,null,null,null,null,null,null,null,null,37.69,3165.83,0,0]
[77499,84,"Echinacea","Kismet® White","TC",null,null,null,null,null,null,null,null,null,37.049999999999997,3112.32,0,0]
[77445,84,"Echinacea","Kismet® Yellow","TC",null,null,null,null,null,null,null,null,null,37.049999999999997,3112.32,0,0]
[79234,84,"Echinacea","Leilani","TC",null,null,null,null,null,null,null,null,null,37.590000000000003,3157.8,0,0]
[77403,84,"Echinacea","Lemon Drop","TC",null,null,null,null,null,null,null,null,null,38.229999999999997,3211.31,0,0]
[79253,84,"Echinacea","Marmalade","TC",null,null,null,null,null,null,null,null,null,38.229999999999997,3211.31,0,0]
[74264,84,"Echinacea","Meditation Cerise","TC",null,null,null,null,null,null,null,null,null,35.840000000000003,3010.65,0,0]
[79627,84,"Echinacea","Meditation Orange","TC",null,null,null,null,null,null,null,null,null,35.840000000000003,3010.65,0,0]
[74266,84,"Echinacea","Meditation White","TC",null,null,null,null,null,null,null,null,null,35.840000000000003,3010.65,0,0]
[79276,84,"Echinacea","Milkshake","TC",null,null,null,null,null,null,null,null,null,38.229999999999997,3211.31,0,0]
[77449,84,"Echinacea","Parrot","TC",null,null,null,null,null,null,null,null,null,38.229999999999997,3211.31,0,0]
[79650,84,"Echinacea","Pearl White","TC",null,null,null,null,null,null,null,null,null,32.619999999999997,2740.44,0,0]
[79640,84,"Echinacea","Pearl Dark Pink","TC",null,null,null,null,null,null,null,null,null,32.619999999999997,2740.44,0,0]
[77401,84,"Echinacea","Pearl Magenta","TC",null,null,null,null,null,null,null,null,null,32.619999999999997,2740.44,0,0]
[75905,84,"Echinacea","Pearl Orange","TC",null,null,null,null,null,null,null,null,null,32.619999999999997,2740.44,0,0]
[74292,84,"Echinacea","Pearl Red","TC",null,null,null,null,null,null,null,null,null,32.619999999999997,2740.44,0,0]
[79643,84,"Echinacea","Pearl Yellow Imp.","TC",null,null,null,null,null,null,null,null,null,32.619999999999997,2740.44,0,0]
[74278,84,"Echinacea","Pink Tip","TC",null,null,null,null,null,null,null,null,null,38.229999999999997,3211.31,0,0]
[77488,84,"Echinacea","Prima Ginger","TC",null,null,null,null,null,null,null,null,null,37.590000000000003,3157.8,0,0]
[74206,84,"Echinacea","Purple Emperor","TC",null,null,null,null,null,null,null,null,null,37.43,3144.42,0,0]
[74258,84,"Echinacea","Rainbow Marcella","TC",null,null,null,null,null,null,null,null,null,37.43,3144.42,0,0]
[79278,84,"Echinacea","Raspberry Truffle","TC",null,null,null,null,null,null,null,null,null,38.229999999999997,3211.31,0,0]
[75957,84,"Echinacea","Sensation Wild Romance","TC",null,null,null,null,null,null,null,null,null,35.840000000000003,3010.65,0,0]
[75914,84,"Echinacea","Skipper Honey","TC",null,null,null,null,null,null,null,null,null,36.64,3077.54,0,0]
[74255,84,"Echinacea","Skipper Golden","TC",null,null,null,null,null,null,null,null,null,37.43,3144.42,0,0]
[74256,84,"Echinacea","Skipper Orange","TC",null,null,null,null,null,null,null,null,null,37.43,3144.42,0,0]
[74298,84,"Echinacea","Skipper Pink","TC",null,null,null,null,null,null,null,null,null,35.840000000000003,3010.65,0,0]
[79631,84,"Echinacea","Skipper Red","TC",null,null,null,null,null,null,null,null,null,35.840000000000003,3010.65,0,0]
[79279,84,"Echinacea","Southern Belle","TC",null,null,null,null,null,null,null,null,null,38.229999999999997,3211.31,0,0]
[77450,84,"Echinacea","Strawberry and Cream","TC",null,null,null,null,null,null,null,null,null,37.43,3144.42,0,0]
[75925,84,"Echinacea","SunMagic Fantastic Scarlet","TC",null,null,null,null,null,null,null,null,null,35.840000000000003,3010.65,0,0]
[75924,84,"Echinacea","SunMagic Fantastic Yellow","TC",null,null,null,null,null,null,null,null,null,35.840000000000003,3010.65,0,0]
[75926,84,"Echinacea","SunMagic Vintage Fuchsia","TC",null,null,null,null,null,null,null,null,null,35.17,2954.47,0,0]
[75927,84,"Echinacea","SunMagic Vintage Orange","TC",null,null,null,null,null,null,null,null,null,35.17,2954.47,0,0]
[75920,84,"Echinacea","SunMagic Vintage Pink","TC",null,null,null,null,null,null,null,null,null,35.17,2954.47,0,0]
[75922,84,"Echinacea","SunMagic Vintage Red","TC",null,null,null,null,null,null,null,null,null,35.17,2954.47,0,0]
[null,84,"Echinacea","SunMagic Vintage Ruby","TC",null,null,null,null,null,null,null,null,null,35.17,2954.47,0,0]
[74247,84,"Echinacea","Supreme™ Cantaloupe","TC",null,null,null,null,null,null,null,null,null,37.590000000000003,3157.8,0,0]
[77405,84,"Echinacea","Sweet Meadow Mama","TC",null,null,null,null,null,null,null,null,null,37.43,3144.42,0,0]
[79680,84,"Echinacea","Tomato Soup","TC",null,null,null,null,null,null,null,null,null,37.590000000000003,3157.8,0,0]
[74297,84,"Echinacea","Virgin","TC",null,null,null,null,null,null,null,null,null,36.64,3077.54,0,0]
[75412,84,"Elymus magellanicus","Elymus magellanicus","RC",null,null,null,null,null,null,null,null,null,22.4,1881.63,0,0]
[73346,100,"Erigeron glaucus","Sea Breeze","RC",null,null,null,null,null,null,null,null,null,12.02,1202.32,0,0]
[73345,100,"Erigeron karvinskianus","Erigeron karvinskianus","RC",null,null,null,null,null,null,null,null,null,11.29,1128.5999999999999,0,0]
[76802,100,"Erodium reichardii","Album","RC",null,null,null,null,null,null,null,null,null,10.48,1047.8,0,0]
[71324,100,"Erodium variabile","Bishop's Form","RC",null,null,null,null,null,null,null,null,null,10.48,1047.8,0,0]
[74713,100,"Erysimum linifolium","Super Bowl Mauve","RC",null,null,null,null,null,null,null,null,null,13.86,1385.78,{"$f":"P526*(F526+G526+H526+I526+J526+K526+L526+M526+N526)","v":0},{"$f":"Q526*1.15","v":0}]
[74709,100,"Erysimum hybridum","Constant Cheer","RC",null,null,null,null,null,null,null,null,null,11.37,1137.1500000000001,0,0]
[78118,100,"Eupatorium hybrida","Baby Joe®","RC",null,null,null,null,null,null,null,null,null,16.91,1691.17,0,0]
[78103,100,"Eupatorium maculatum","Atropurpureum","RC",null,null,null,null,null,null,null,null,null,13.73,1372.67,0,0]
[78120,100,"Eupatorium maculatum","Phantom®","RC",null,null,null,null,null,null,null,null,null,21.69,2168.92,0,0]
[78119,100,"Eupatorium rugosum","Chocolate","RC",null,null,null,null,null,null,null,null,null,13.73,1372.67,0,0]
[77417,100,"Euphorbia amygdaloides","Purpurea","RC",null,null,null,null,null,null,null,null,null,13.98,1398.15,0,0]
[75311,100,"Euphorbia amygdaloides","Redbud","RC",null,null,null,null,null,null,null,null,null,14.94,1493.7,0,0]
[79247,100,"Euphorbia amygdaloides","Robbiae","RC",null,null,null,null,null,null,null,null,null,14.94,1493.7,0,0]
[79623,100,"Euphorbia amygdaloides","Walberton's Ruby Glow","RC",null,null,null,null,null,null,null,null,null,16.53,1652.95,0,0]
[79245,100,"Euphorbia cyparissias","Fens Ruby","RC",null,null,null,null,null,null,null,null,null,13.34,1334.45,0,0]
[75313,100,"Euphorbia hybrida","Miners Merlot","RC",null,null,null,null,null,null,null,null,null,27.04,2704,0,0]
[77416,100,"Euphorbia characias","Black Pearl","RC",null,null,null,null,null,null,null,null,null,22.26,2226.25,0,0]
[79288,100,"Euphorbia characias","Glacier Blue","RC",null,null,null,null,null,null,null,null,null,28.31,2831.4,0,0]
[79621,100,"Euphorbia characias","Humpty Dumpty","RC",null,null,null,null,null,null,null,null,null,22.78,2277.63,0,0]
[77415,100,"Euphorbia characias","Red Wing","RC",null,null,null,null,null,null,null,null,null,22.78,2277.63,0,0]
[79249,100,"Euphorbia characias","Silver Edge","RC",null,null,null,null,null,null,null,null,null,22.78,2277.63,0,0]
[77428,100,"Euphorbia characias","Silver Swan","RC",null,null,null,null,null,null,null,null,null,30.5,3049.84,0,0]
[79237,100,"Euphorbia characias","Tasmanian Tiger","RC",null,null,null,null,null,null,null,null,null,31.5,3149.9,0,0]
[79236,100,"Euphorbia characias subsp. wulfenii","Shorty","RC",null,null,null,null,null,null,null,null,null,21.31,2130.6999999999998,0,0]
[79252,100,"Euphorbia characias subsp. wulfenii","Wulfenii","RC",null,null,null,null,null,null,null,null,null,20.99,2098.85,0,0]
[79231,100,"Euphorbia polychroma","Bonfire","RC",null,null,null,null,null,null,null,null,null,21.8,2179.87,0,0]
[79603,100,"Euphorbia polychroma","Purpurea","RC",null,null,null,null,null,null,null,null,null,14.94,1493.7,0,0]
[79248,100,"Euphorbia polychroma","Senior","RC",null,null,null,null,null,null,null,null,null,14.94,1493.7,0,0]
[75312,100,"Euphorbia schillingii","Euphorbia schillingii","RC",null,null,null,null,null,null,null,null,null,16.46,1646.04,0,0]
[79287,100,"Euphorbia x martinii","Ascot Rainbow","RC",null,null,null,null,null,null,null,null,null,18.12,1812.2,0,0]
[79622,100,"Euphorbia x martinii","Euphorbia x martinii","RC",null,null,null,null,null,null,null,null,null,11.7,1169.74,0,0]
[79372,84,"Fatsia japonica","Spider's Web","TC",null,null,null,null,null,null,null,null,null,30.68,2577.2399999999998,0,0]
[79097,84,"Festuca gautieri","Pic Carlit","RC",null,null,null,null,null,null,null,null,null,14.18,1191.3800000000001,0,0]
[79095,84,"Festuca glauca","Azurit","RC",null,null,null,null,null,null,null,null,null,12.85,1079.01,0,0]
[79095,155,"Festuca glauca","Azurit","RC",null,null,null,null,null,null,null,null,null,9.8000000000000007,1518.54,0,0]
[79055,84,"Festuca glauca","Blauglut","RC",null,null,null,null,null,null,null,null,null,11.41,958.62,0,0]
[79056,84,"Festuca glauca","Eisvogel","RC",null,null,null,null,null,null,null,null,null,12.85,1079.01,0,0]
[79056,155,"Festuca glauca","Eisvogel","RC",null,null,null,null,null,null,null,null,null,9.8000000000000007,1518.54,0,0]
[79897,84,"Festuca glauca","Elijah Blue","RC",null,null,null,null,null,null,null,null,null,12.85,1079.01,0,0]
[79897,155,"Festuca glauca","Elijah Blue","RC",null,null,null,null,null,null,null,null,null,9.8000000000000007,1518.54,0,0]
[79109,84,"Festuca glauca","Golden Toupee","RC",null,null,null,null,null,null,null,null,null,14.28,1199.4100000000001,0,0]
[79057,84,"Festuca glauca","Uchte","RC",null,null,null,null,null,null,null,null,null,11.41,958.62,0,0]
[79146,84,"Ficinia truncata","Frosty Morning","TC",null,null,null,null,null,null,null,null,null,30.24,2539.7800000000002,0,0]
[75802,100,"Fuchsia","Lady Thumb","RC",null,null,null,null,null,null,null,null,null,9.56,955.8,0,0]
[71345,100,"Fuchsia","Madame Cornellissen","RC",null,null,null,null,null,null,null,null,null,9.56,955.8,0,0]
[75803,100,"Fuchsia","Mrs Popple","RC",null,null,null,null,null,null,null,null,null,9.56,955.8,0,0]
[75806,100,"Fuchsia","Tom Thumb","RC",null,null,null,null,null,null,null,null,null,9.56,955.8,0,0]
[71344,100,"Fuchsia magellanica","Gracilis","RC",null,null,null,null,null,null,null,null,null,9.56,955.8,0,0]
[71398,100,"Fuchsia magellanica","Ricartonii","RC",null,null,null,null,null,null,null,null,null,9.56,955.8,0,0]
[71349,100,"Fuchsia magellanica","Tricolorii","RC",null,null,null,null,null,null,null,null,null,9.56,955.8,0,0]
[71341,100,"Fuchsia microphylla","David","RC",null,null,null,null,null,null,null,null,null,9.56,955.8,0,0]
[74918,100,"Gaillardia aristata","SpinTop™ Mango","RC",null,null,null,null,null,null,null,null,null,17.71,1770.8,0,0]
[74850,100,"Gaillardia aristata","SpinTop™ Mariachi Copper Sun","RC",null,null,null,null,null,null,null,null,null,17.71,1770.8,0,0]
[74821,100,"Gaillardia aristata","SpinTop™ Orange Halo Imp.","RC",null,null,null,null,null,null,null,null,null,17.71,1770.8,0,0]
[74819,100,"Gaillardia aristata","SpinTop™ Red","RC",null,null,null,null,null,null,null,null,null,17.71,1770.8,0,0]
[74820,100,"Gaillardia aristata","SpinTop™ Yellow Touch","RC",null,null,null,null,null,null,null,null,null,17.71,1770.8,0,0]
[79104,100,"Galium odoratum","Galium odoratum","RC",null,null,null,null,null,null,null,null,null,11.75,1175.2,0,0]
[71358,100,"Gaura lindheimeri","Baby Butterfly® Dark Pink","RC",null,null,null,null,null,null,null,null,null,17.170000000000002,1716.53,0,0]
[71359,100,"Gaura lindheimeri","Blaze","RC",null,null,null,null,null,null,null,null,null,14.85,1485,0,0]
[71351,100,"Gaura lindheimeri","Corrie's Gold","RC",null,null,null,null,null,null,null,null,null,11.12,1111.5,0,0]
[71352,100,"Gaura lindheimeri","Flamingo Pink","RC",null,null,null,null,null,null,null,null,null,13.34,1334.45,0,0]
[71353,100,"Gaura lindheimeri","Flamingo White","RC",null,null,null,null,null,null,null,null,null,13.34,1334.45,0,0]
[71307,100,"Gaura lindheimeri","Gaura lindheimeri","RC",null,null,null,null,null,null,null,null,null,10.48,1047.8,0,0]
[71335,100,"Gaura lindheimeri","Graceful Light Pink","RC",null,null,null,null,null,null,null,null,null,14.05,1404.52,0,0]
[71397,100,"Gaura lindheimeri","Graceful Pink","RC",null,null,null,null,null,null,null,null,null,14.05,1404.52,0,0]
[71336,100,"Gaura lindheimeri","Graceful White","RC",null,null,null,null,null,null,null,null,null,14.05,1404.52,0,0]
[71350,100,"Gaura lindheimeri","Cherry Brandy","RC",null,null,null,null,null,null,null,null,null,13.86,1385.78,0,0]
[71303,100,"Gaura lindheimeri","Passionate Blush","RC",null,null,null,null,null,null,null,null,null,14.3,1430,0,0]
[71309,100,"Gaura lindheimeri","Rosy Jane","RC",null,null,null,null,null,null,null,null,null,17.170000000000002,1716.53,{"$f":"P590*(F590+G590+H590+I590+J590+K590+L590+M590+N590)","v":0},{"$f":"Q590*1.15","v":0}]
[71305,100,"Gaura lindheimeri","Siskiyou Pink","RC",null,null,null,null,null,null,null,null,null,10.8,1079.6500000000001,0,0]
[71354,100,"Gaura lindheimeri","Snowbird","RC",null,null,null,null,null,null,null,null,null,12.2,1220.4000000000001,0,0]
[71355,100,"Gaura lindheimeri","Snowstorm","RC",null,null,null,null,null,null,null,null,null,12.2,1220.4000000000001,0,0]
[71356,100,"Gaura lindheimeri","Tutti Frutti","RC",null,null,null,null,null,null,null,null,null,12.2,1220.4000000000001,0,0]
[71310,100,"Gaura lindheimeri","Whirling Butterflies","RC",null,null,null,null,null,null,null,null,null,10.88,1088.0999999999999,0,0]
[71357,100,"Gaura lindheimeri","White Dove","RC",null,null,null,null,null,null,null,null,null,12.35,1234.9100000000001,0,0]
[72057,100,"Geranium  clarkei","Kashmir Pink","RC",null,null,null,null,null,null,null,null,null,12.35,1234.9100000000001,0,0]
[72058,100,"Geranium  clarkei","Kashmir Purple","RC",null,null,null,null,null,null,null,null,null,12.35,1234.9100000000001,0,0]
[72059,100,"Geranium  clarkei","Kashmir White","RC",null,null,null,null,null,null,null,null,null,12.35,1234.9100000000001,0,0]
[72077,100,"Geranium cinereum","Ballerina","RC",null,null,null,null,null,null,null,null,null,18.079999999999998,1807.74,0,0]
[72045,100,"Geranium endressii","Geranium endressii","RC",null,null,null,null,null,null,null,null,null,12.35,1234.9100000000001,0,0]
[72075,100,"Geranium endressii","Wargrave Pink","RC",null,null,null,null,null,null,null,null,null,12.35,1234.9100000000001,0,0]
[72076,100,"Geranium himalayense","Baby Blue","RC",null,null,null,null,null,null,null,null,null,16.14,1613.7,0,0]
[71111,100,"Geranium himalayense","Geranium himalayense","RC",null,null,null,null,null,null,null,null,null,13.98,1398.15,0,0]
[72067,100,"Geranium himalayense","Plenum","RC",null,null,null,null,null,null,null,null,null,15.89,1589.25,0,0]
[71109,84,"Geranium macrorrhizum","Bevan's Variety","RC",null,null,null,null,null,null,null,null,null,13.29,1116.47,0,0]
[72005,84,"Geranium macrorrhizum","Czakor","RC",null,null,null,null,null,null,null,null,null,13.29,1116.47,0,0]
[71115,84,"Geranium macrorrhizum","Ingwersen","RC",null,null,null,null,null,null,null,null,null,13.29,1116.47,0,0]
[72084,100,"Geranium macrorrhizum","Sandys Smile","RC",null,null,null,null,null,null,null,null,null,16.78,1678.38,0,0]
[71117,84,"Geranium macrorrhizum","Spessart","RC",null,null,null,null,null,null,null,null,null,13.93,1169.98,0,0]
[72048,100,"Geranium maculatum","Espresso","RC",null,null,null,null,null,null,null,null,null,14.94,1493.7,0,0]
[72041,100,"Geranium maculatum","Chatto","RC",null,null,null,null,null,null,null,null,null,13.98,1398.15,0,0]
[72049,100,"Geranium nodosum","Geranium nodosum","RC",null,null,null,null,null,null,null,null,null,16.78,1678.38,0,0]
[71106,100,"Geranium nodosum","Silverwood","RC",null,null,null,null,null,null,null,null,null,16.78,1678.38,0,0]
[72050,100,"Geranium phaeum","Geranium phaeum","RC",null,null,null,null,null,null,null,null,null,15.49,1549.02,0,0]
[71104,100,"Geranium phaeum","Samobor","RC",null,null,null,null,null,null,null,null,null,15.49,1549.02,0,0]
[72022,84,"Geranium pratense","Cloud Nine","TC",null,null,null,null,null,null,null,null,null,38.26,3213.98,0,0]
[72022,84,"Geranium pratense","Cloud Nine","TC",null,null,null,null,null,null,null,null,null,35.68,2997.27,0,0]
[71124,84,"Geranium pratense","Midnight Reiter","TC",null,null,null,null,null,null,null,null,null,31.57,2652.15,0,0]
[71124,84,"Geranium pratense","Midnight Reiter","TC",null,null,null,null,null,null,null,null,null,28.99,2435.44,0,0]
[72096,100,"Geranium pratense","Mrs Kendall Clark","RC",null,null,null,null,null,null,null,null,null,15.49,1549.02,0,0]
[72081,84,"Geranium pratense","Storm Cloud","TC",null,null,null,null,null,null,null,null,null,39.54,3321,0,0]
[72081,84,"Geranium pratense","Storm Cloud","TC",null,null,null,null,null,null,null,null,null,36.96,3104.29,0,0]
[71139,100,"Geranium renardii","Philippe Vapelle","RC",null,null,null,null,null,null,null,null,null,16.78,1678.38,0,0]
[71125,100,"Geranium sanguineum","Album","RC",null,null,null,null,null,null,null,null,null,12.35,1234.9100000000001,0,0]
[72070,100,"Geranium sanguineum","Apfelblüte","RC",null,null,null,null,null,null,null,null,null,16.78,1678.38,0,0]
[72051,100,"Geranium sanguineum","Geranium sanguineum","RC",null,null,null,null,null,null,null,null,null,12.35,1234.9100000000001,0,0]
[71105,100,"Geranium sanguineum","Geranium sanguineum ssp. striatum","RC",null,null,null,null,null,null,null,null,null,12.35,1234.9100000000001,0,0]
[71199,100,"Geranium sanguineum","Max Frei","RC",null,null,null,null,null,null,null,null,null,13.98,1398.15,0,0]
[72021,100,"Geranium sanguineum","Tiny Monster","RC",null,null,null,null,null,null,null,null,null,16.78,1678.38,0,0]
[72054,100,"Geranium sylvaticum","Album","RC",null,null,null,null,null,null,null,null,null,15.49,1549.02,0,0]
[72090,100,"Geranium sylvaticum","Mayflower","RC",null,null,null,null,null,null,null,null,null,15.49,1549.02,0,0]
[72052,100,"Geranium versicolor","Geranium versicolor","RC",null,null,null,null,null,null,null,null,null,16.78,1678.38,0,0]
[72003,84,"Geranium wallichianum","Buxton Blue","TC",null,null,null,null,null,null,null,null,null,28.23,2371.23,0,0]
[71128,84,"Geranium wallichianum","Havana Blues®","TC",null,null,null,null,null,null,null,null,null,35.94,3018.68,0,0]
[71122,100,"Geranium wlassovianum","Geranium wlassovianum","RC",null,null,null,null,null,null,null,null,null,15.49,1549.02,0,0]
[71119,84,"Geranium x cantabrigiense","Biokovo","RC",null,null,null,null,null,null,null,null,null,13.45,1129.8499999999999,0,0]
[71153,100,"Geranium x cantabrigiense","Cambridge","RC",null,null,null,null,null,null,null,null,null,12.35,1234.9100000000001,0,0]
[72056,100,"Geranium x cantabrigiense","Karmina","RC",null,null,null,null,null,null,null,null,null,12.35,1234.9100000000001,0,0]
[72072,100,"Geranium x cantabrigiense","St Ola","RC",null,null,null,null,null,null,null,null,null,12.35,1234.9100000000001,0,0]
[72001,84,"Geranium x hybridum","Azure Rush","TC",null,null,null,null,null,null,null,null,null,35.94,3018.68,0,0]
[71195,84,"Geranium x hybridum","Bloom Time","TC",null,null,null,null,null,null,null,null,null,32.82,2756.49,0,0]
[71101,100,"Geranium x hybridum","Brookside","RC",null,null,null,null,null,null,null,null,null,13.98,1398.15,0,0]
[72014,84,"Geranium x hybridum","Dreamland","TC",null,null,null,null,null,null,null,null,null,34.6,2906.31,0,0]
[72043,100,"Geranium x hybridum","Dusky Crug","RC",null,null,null,null,null,null,null,null,null,14.74,1474,0,0]
[72044,100,"Geranium x hybridum","Elworthy Eyecatcher","RC",null,null,null,null,null,null,null,null,null,19.079999999999998,1907.75,0,0]
[72055,100,"Geranium x hybridum","Johnson's Blue","RC",null,null,null,null,null,null,null,null,null,13.98,1398.15,0,0]
[72083,84,"Geranium x hybridum","Kelly Anne","TC",null,null,null,null,null,null,null,null,null,35.619999999999997,2991.92,0,0]
[72063,100,"Geranium x hybridum","Nimbus","RC",null,null,null,null,null,null,null,null,null,16.78,1678.38,0,0]
[72065,100,"Geranium x hybridum","Orion","RC",null,null,null,null,null,null,null,null,null,15.89,1589.25,0,0]
[71137,100,"Geranium x hybridum","Orkney Cherry®","RC",null,null,null,null,null,null,null,null,null,22.78,2277.63,0,0]
[71140,84,"Geranium x hybridum","Pink Penny","TC",null,null,null,null,null,null,null,null,null,33.71,2831.4,0,0]
[72066,100,"Geranium x hybridum","Pink Pinks","RC",null,null,null,null,null,null,null,null,null,17.75,1775.4,0,0]
[71113,84,"Geranium x hybridum","Rozanne®","TC",null,null,null,null,null,null,null,null,null,34.729999999999997,2917.01,{"$f":"P654*(F654+G654+H654+I654+J654+K654+L654+M654+N654)","v":0},{"$f":"Q654*1.15","v":0}]
[72071,100,"Geranium x hybridum","Sirak","RC",null,null,null,null,null,null,null,null,null,18.760000000000002,1875.9,0,0]
[72073,100,"Geranium x hybridum","Tanya Rendall","RC",null,null,null,null,null,null,null,null,null,24.73,2473.14,0,0]
[71107,100,"Geranium x oxonianum","Katherine Adele","RC",null,null,null,null,null,null,null,null,null,13.98,1398.15,0,0]
[72068,100,"Geranium x oxonianum","Rose Clair","RC",null,null,null,null,null,null,null,null,null,12.35,1234.9100000000001,0,0]
[74805,100,"Geum","Leonarde's Variety","RC",null,null,null,null,null,null,null,null,null,25.54,2554.31,0,0]
[74856,100,"Geum","Tempest Scarlet","RC",null,null,null,null,null,null,null,null,null,24.24,2423.7199999999998,0,0]
[74856,84,"Geum","Tempest Scarlet","TC",null,null,null,null,null,null,null,null,null,31.19,2620.04,0,0]
[74913,84,"Geum chiloense","Grande Rosso","TC",null,null,null,null,null,null,null,null,null,31.19,2620.04,0,0]
[74897,84,"Geum chiloense","Samba Sunset","TC",null,null,null,null,null,null,null,null,null,31.19,2620.04,0,0]
[74855,100,"Geum rivale","Tales of Hex","RC",null,null,null,null,null,null,null,null,null,28.73,2872.81,0,0]
[74862,84,"Geum x hybrida","Bohema Pink","TC",null,null,null,null,null,null,null,null,null,31.19,2620.04,0,0]
[71526,100,"Geum x hybrida","Flames of Passion","RC",null,null,null,null,null,null,null,null,null,24.24,2423.7199999999998,0,0]
[71526,84,"Geum x hybrida","Flames of Passion","TC",null,null,null,null,null,null,null,null,null,31.19,2620.04,0,0]
[74898,84,"Geum x hybrida","Golden Joy","TC",null,null,null,null,null,null,null,null,null,26.41,2218.73,0,0]
[71548,100,"Geum x hybrida","Mai Tai","RC",null,null,null,null,null,null,null,null,null,26.24,2624.38,0,0]
[71548,84,"Geum x hybrida","Mai Tai","TC",null,null,null,null,null,null,null,null,null,31.19,2620.04,0,0]
[74914,84,"Geum x hybrida","Massimo Giallo","TC",null,null,null,null,null,null,null,null,null,31.19,2620.04,0,0]
[75078,84,"Geum x hybrida","Nonna","TC",null,null,null,null,null,null,null,null,null,31.19,2620.04,0,0]
[74863,84,"Geum x hybrida","Pink Petticoats","TC",null,null,null,null,null,null,null,null,null,29.28,2459.52,0,0]
[74864,84,"Geum x hybrida","Pretticoats Peach","TC",null,null,null,null,null,null,null,null,null,33.74,2834.08,0,0]
[71534,100,"Geum x hybrida","Totally Tangerine","RC",null,null,null,null,null,null,null,null,null,26.28,2627.56,0,0]
[71534,84,"Geum x hybrida","Totally Tangerine","TC",null,null,null,null,null,null,null,null,null,30.87,2593.29,0,0]
[74228,100,"Gypsophila hybride","Rosenschleier","RC",null,null,null,null,null,null,null,null,null,20.47,2047.28,0,0]
[74225,100,"Gypsophila paniculata","Bristol Fairy","RC",null,null,null,null,null,null,null,null,null,20.47,2047.28,0,0]
[77421,100,"Gypsophila paniculata","Festival White Flare","RC",null,null,null,null,null,null,null,null,null,22.9,2289.9499999999998,0,0]
[74226,100,"Gypsophila paniculata","Flamingo","RC",null,null,null,null,null,null,null,null,null,20.47,2047.28,0,0]
[71047,84,"Gypsophila paniculata","Pink Wedding","TC",null,null,null,null,null,null,null,null,null,27.08,2274.92,0,0]
[77430,84,"Gypsophila repens","Knuddel","TC",null,null,null,null,null,null,null,null,null,25.81,2167.9,0,0]
[79995,84,"Hakonechloa macra","Albo-striata","TC",null,null,null,null,null,null,null,null,null,28.36,2381.9299999999998,0,0]
[79996,84,"Hakonechloa macra","All Gold","TC",null,null,null,null,null,null,null,null,null,28.36,2381.9299999999998,0,0]
[79926,84,"Hakonechloa macra","Aureola","TC",null,null,null,null,null,null,null,null,null,26.45,2221.41,0,0]
[75025,84,"Hakonechloa macra","Beni Kaze","TC",null,null,null,null,null,null,null,null,null,28.36,2381.9299999999998,0,0]
[75024,84,"Hakonechloa macra","Greenhills","TC",null,null,null,null,null,null,null,null,null,26.45,2221.41,0,0]
[74872,84,"Hakonechloa macra","Mulled Wine","TC",null,null,null,null,null,null,null,null,null,33.520000000000003,2815.35,0,0]
[79997,84,"Hakonechloa macra","Stripe It Rich","TC",null,null,null,null,null,null,null,null,null,28.74,2414.04,0,0]
[79106,84,"Helenium","Bandera","TC",null,null,null,null,null,null,null,null,null,28.32,2379.2600000000002,0,0]
[79082,84,"Helenium","Mariachi™ Fuego","TC",null,null,null,null,null,null,null,null,null,28.32,2379.2600000000002,0,0]
[79098,84,"Helenium","Mariachi™ Salsa","TC",null,null,null,null,null,null,null,null,null,28.32,2379.2600000000002,0,0]
[79085,84,"Helenium","Mariachi™ Siesta","TC",null,null,null,null,null,null,null,null,null,28.32,2379.2600000000002,0,0]
[79083,84,"Helenium","Mariachi™ Sombrero","TC",null,null,null,null,null,null,null,null,null,28.32,2379.2600000000002,0,0]
[79103,84,"Helenium","Poncho","TC",null,null,null,null,null,null,null,null,null,28.32,2379.2600000000002,0,0]
[79105,84,"Helenium","Ranchera","TC",null,null,null,null,null,null,null,null,null,28.32,2379.2600000000002,0,0]
[79015,100,"Helenium autumnale","Ruby Tuesday","RC",null,null,null,null,null,null,null,null,null,16.21,1621.1,0,0]
[79128,100,"Helenium autumnale","Short And Sassy","RC",null,null,null,null,null,null,null,null,null,20.14,2014.2,0,0]
[79812,100,"Helenium bigelovii","The Bishop","RC",null,null,null,null,null,null,null,null,null,13.33,1332.66,0,0]
[79817,100,"Helenium x hybridum","Carmen","RC",null,null,null,null,null,null,null,null,null,13.33,1332.66,0,0]
[79847,100,"Helenium x hybridum","Moerheim Beauty","RC",null,null,null,null,null,null,null,null,null,13.33,1332.66,0,0]
[79814,100,"Helenium x hybridum","Wesergold","RC",null,null,null,null,null,null,null,null,null,13.33,1332.66,0,0]
[75425,100,"Helianthemum hybrydum","Amabile Plenum","RC",null,null,null,null,null,null,null,null,null,10.48,1047.8,0,0]
[74494,100,"Helianthemum hybrydum","Ben Hope","RC",null,null,null,null,null,null,null,null,null,10.48,1047.8,0,0]
[75409,100,"Helianthemum hybrydum","Bronzeteppich","RC",null,null,null,null,null,null,null,null,null,10.48,1047.8,0,0]
[74496,100,"Helianthemum hybrydum","Cerise Queen","RC",null,null,null,null,null,null,null,null,null,10.48,1047.8,0,0]
[75429,100,"Helianthemum hybrydum","Firedragon","RC",null,null,null,null,null,null,null,null,null,10.48,1047.8,0,0]
[75448,100,"Helianthemum hybrydum","Golden Queen","RC",null,null,null,null,null,null,null,null,null,10.48,1047.8,0,0]
[75449,100,"Helianthemum hybrydum","Lawrenson's Pink","RC",null,null,null,null,null,null,null,null,null,10.48,1047.8,0,0]
[75450,100,"Helianthemum hybrydum","Sterntaler","RC",null,null,null,null,null,null,null,null,null,10.48,1047.8,0,0]
[75451,100,"Helianthemum hybrydum","Sulph. Plenum","RC",null,null,null,null,null,null,null,null,null,10.48,1047.8,0,0]
[75452,100,"Helianthemum hybrydum","Supreme","RC",null,null,null,null,null,null,null,null,null,10.48,1047.8,0,0]
[74499,100,"Helianthemum hybrydum","The Bride","RC",null,null,null,null,null,null,null,null,null,10.48,1047.8,0,0]
[75453,100,"Helianthemum hybrydum","Wisley Pink","RC",null,null,null,null,null,null,null,null,null,10.48,1047.8,0,0]
[74267,84,"Helianthus","Flying Saucers","TC",null,null,null,null,null,null,null,null,null,32.56,2735.09,0,0]
[77412,84,"Helianthus","Suncatcher Pure Gold","RC",null,null,null,null,null,null,null,null,null,36.83,3093.59,0,0]
[74245,84,"Helianthus multiflorus","Double Whammy","TC",null,null,null,null,null,null,null,null,null,32.56,2735.09,0,0]
[74261,84,"Helianthus multiflorus","Sunshine Daydream","TC",null,null,null,null,null,null,null,null,null,35.75,3002.63,{"$f":"P718*(F718+G718+H718+I718+J718+K718+L718+M718+N718)","v":0},{"$f":"Q718*1.15","v":0}]
[78144,100,"Helichrysum italicum","Dwarf Curry","RC",null,null,null,null,null,null,null,null,null,10.48,1047.8,0,0]
[77614,100,"Helichrysum italicum","Korma","RC",null,null,null,null,null,null,null,null,null,12.39,1238.9000000000001,0,0]
[73723,84,"Heuchera","Amethyst Myst","TC",null,null,null,null,null,null,null,null,null,26.67,2240.14,0,0]
[76035,84,"Heuchera","Beaujolais","TC",null,null,null,null,null,null,null,null,null,31.06,2609.34,0,0]
[73752,84,"Heuchera","Berry Smoothie","TC",null,null,null,null,null,null,null,null,null,33.61,2823.37,0,0]
[73727,84,"Heuchera","Black Forest Cake","TC",null,null,null,null,null,null,null,null,null,33.61,2823.37,0,0]
[73064,84,"Heuchera","Black Pearl","TC",null,null,null,null,null,null,null,null,null,32.659999999999997,2743.11,0,0]
[73019,84,"Heuchera","Black Taffeta","TC",null,null,null,null,null,null,null,null,null,33.99,2855.48,0,0]
[73702,84,"Heuchera","Can Can","TC",null,null,null,null,null,null,null,null,null,26.67,2240.14,0,0]
[73058,84,"Heuchera","Caramel","TC",null,null,null,null,null,null,null,null,null,31.06,2609.34,0,0]
[76048,84,"Heuchera","Carmencita","TC",null,null,null,null,null,null,null,null,null,31.06,2609.34,0,0]
[76036,84,"Heuchera","Citronelle","TC",null,null,null,null,null,null,null,null,null,31.06,2609.34,0,0]
[73786,84,"Heuchera","Delta Dawn","TC",null,null,null,null,null,null,null,null,null,33.99,2855.48,0,0]
[73753,84,"Heuchera","Electra","TC",null,null,null,null,null,null,null,null,null,33.99,2855.48,0,0]
[73795,84,"Heuchera","Fire Alarm","TC",null,null,null,null,null,null,null,null,null,34.89,2930.39,0,0]
[73755,84,"Heuchera","Fire Chief","TC",null,null,null,null,null,null,null,null,null,33.61,2823.37,0,0]
[73024,84,"Heuchera","Forever® Purple","TC",null,null,null,null,null,null,null,null,null,33.99,2855.48,0,0]
[74484,84,"Heuchera","Forever® Red","TC",null,null,null,null,null,null,null,null,null,34.89,2930.39,0,0]
[73796,84,"Heuchera","Galaxy","TC",null,null,null,null,null,null,null,null,null,32.97,2769.87,0,0]
[73020,84,"Heuchera","Glitter","TC",null,null,null,null,null,null,null,null,null,33.99,2855.48,0,0]
[73074,84,"Heuchera","Grape Expectation","TC",null,null,null,null,null,null,null,null,null,31.45,2641.45,0,0]
[76049,84,"Heuchera","Guacamole","TC",null,null,null,null,null,null,null,null,null,31.06,2609.34,0,0]
[73054,84,"Heuchera","Champagne","TC",null,null,null,null,null,null,null,null,null,33.99,2855.48,0,0]
[73767,84,"Heuchera","Cherry Cola","TC",null,null,null,null,null,null,null,null,null,33.61,2823.37,0,0]
[76021,84,"Heuchera","Cherry Truffles","TC",null,null,null,null,null,null,null,null,null,31.45,2641.45,0,0]
[76025,84,"Heuchera","Chocolate Veil","TC",null,null,null,null,null,null,null,null,null,26.67,2240.14,0,0]
[76026,84,"Heuchera","Leuchtkäfer","TC",null,null,null,null,null,null,null,null,null,26.67,2240.14,0,0]
[73756,84,"Heuchera","Lime Marmalade","TC",null,null,null,null,null,null,null,null,null,33.61,2823.37,0,0]
[73734,84,"Heuchera","Lime Rickey","TC",null,null,null,null,null,null,null,null,null,32.97,2769.87,0,0]
[73071,84,"Heuchera","Lime Swizzle","TC",null,null,null,null,null,null,null,null,null,30.49,2561.1799999999998,0,0]
[73063,102,"Heuchera","Little Cutie™ Peppermint","TC",null,null,null,null,null,null,null,null,null,30.74,3135.06,0,0]
[73031,102,"Heuchera","Little Cutie™ Sweet Tart","TC",null,null,null,null,null,null,null,null,null,30.74,3135.06,0,0]
[73736,84,"Heuchera","Marmalade","TC",null,null,null,null,null,null,null,null,null,33.61,2823.37,0,0]
[76050,84,"Heuchera","Mega Caramel","TC",null,null,null,null,null,null,null,null,null,31.06,2609.34,0,0]
[73761,84,"Heuchera","Milan","TC",null,null,null,null,null,null,null,null,null,32.08,2694.95,0,0]
[73065,84,"Heuchera","Northern Exposure™ Amber","TC",null,null,null,null,null,null,null,null,null,32.08,2694.95,0,0]
[73066,84,"Heuchera","Northern Exposure™ Red","TC",null,null,null,null,null,null,null,null,null,32.08,2694.95,0,0]
[73738,84,"Heuchera","Obsidian","TC",null,null,null,null,null,null,null,null,null,33.61,2823.37,0,0]
[73007,84,"Heuchera","Paprika","TC",null,null,null,null,null,null,null,null,null,33.99,2855.48,0,0]
[73739,84,"Heuchera","Paris","TC",null,null,null,null,null,null,null,null,null,33.61,2823.37,0,0]
[73740,84,"Heuchera","Peach Flambé","TC",null,null,null,null,null,null,null,null,null,33.99,2855.48,0,0]
[76022,84,"Heuchera","Peachberry Ice","TC",null,null,null,null,null,null,null,null,null,31.45,2641.45,0,0]
[73741,84,"Heuchera","Peppermint Spice","TC",null,null,null,null,null,null,null,null,null,29.85,2507.6799999999998,0,0]
[79978,84,"Heuchera","Pink Panther","TC",null,null,null,null,null,null,null,null,null,31.45,2641.45,0,0]
[76051,84,"Heuchera","Pinot Gris","TC",null,null,null,null,null,null,null,null,null,31.06,2609.34,0,0]
[76027,84,"Heuchera","Pluie de Feu","TC",null,null,null,null,null,null,null,null,null,26.67,2240.14,0,0]
[73711,84,"Heuchera","Plum Pudding","TC",null,null,null,null,null,null,null,null,null,31.7,2662.85,0,0]
[76028,84,"Heuchera","Rachel","TC",null,null,null,null,null,null,null,null,null,26.67,2240.14,0,0]
[73027,84,"Heuchera","Red Lightning","TC",null,null,null,null,null,null,null,null,null,33.99,2855.48,0,0]
[76032,84,"Heuchera","Rex Black","TC",null,null,null,null,null,null,null,null,null,32.4,2721.71,0,0]
[73045,84,"Heuchera","Rex Dark Amber","TC",null,null,null,null,null,null,null,null,null,32.4,2721.71,0,0]
[76033,84,"Heuchera","Rex Fire","TC",null,null,null,null,null,null,null,null,null,32.4,2721.71,0,0]
[73046,84,"Heuchera","Rex Lime","TC",null,null,null,null,null,null,null,null,null,32.4,2721.71,0,0]
[73069,84,"Heuchera","Rex Peppermint","TC",null,null,null,null,null,null,null,null,null,32.4,2721.71,0,0]
[73068,84,"Heuchera","Rex Purple","TC",null,null,null,null,null,null,null,null,null,32.4,2721.71,0,0]
[73047,84,"Heuchera","Rex Red","TC",null,null,null,null,null,null,null,null,null,32.4,2721.71,0,0]
[76034,84,"Heuchera","Rex Silver","TC",null,null,null,null,null,null,null,null,null,32.4,2721.71,0,0]
[73008,84,"Heuchera","Rio","TC",null,null,null,null,null,null,null,null,null,32.08,2694.95,0,0]
[73091,84,"Heuchera","Rockies Amber","TC",null,null,null,null,null,null,null,null,null,29.47,2475.5700000000002,0,0]
[73092,84,"Heuchera","Rockies Black","TC",null,null,null,null,null,null,null,null,null,29.47,2475.5700000000002,0,0]
[73764,84,"Heuchera","Shanghai","TC",null,null,null,null,null,null,null,null,null,33.99,2855.48,0,0]
[73078,84,"Heuchera","Silver Gumdrop","TC",null,null,null,null,null,null,null,null,null,31.06,2609.34,0,0]
[73782,84,"Heuchera","Silver Scrolls","TC",null,null,null,null,null,null,null,null,null,31.45,2641.45,0,0]
[76024,84,"Heuchera","Timeless Night","TC",null,null,null,null,null,null,null,null,null,31.45,2641.45,{"$f":"P782*(F782+G782+H782+I782+J782+K782+L782+M782+N782)","v":0},{"$f":"Q782*1.15","v":0}]
[76052,84,"Heuchera","Tiramisu","TC",null,null,null,null,null,null,null,null,null,31.06,2609.34,0,0]
[73028,84,"Heuchera","Tokyo","TC",null,null,null,null,null,null,null,null,null,32.08,2694.95,0,0]
[73079,84,"Heuchera","Wild Rose","TC",null,null,null,null,null,null,null,null,null,31.06,2609.34,0,0]
[73014,84,"Heuchera","World Caffé™ Amaretto","TC",null,null,null,null,null,null,null,null,null,27.56,2315.0500000000002,0,0]
[73050,84,"Heuchera","World Caffé™ Americano","TC",null,null,null,null,null,null,null,null,null,27.56,2315.0500000000002,0,0]
[73077,84,"Heuchera","World Caffé™ Arabica","TC",null,null,null,null,null,null,null,null,null,27.56,2315.0500000000002,0,0]
[73048,84,"Heuchera","World Caffé™ Corretto","TC",null,null,null,null,null,null,null,null,null,27.56,2315.0500000000002,0,0]
[73049,84,"Heuchera","World Caffé™ Espresso","TC",null,null,null,null,null,null,null,null,null,27.56,2315.0500000000002,0,0]
[76031,84,"Heuchera","World Caffé™ Frappe","TC",null,null,null,null,null,null,null,null,null,27.56,2315.0500000000002,0,0]
[73059,84,"Heuchera","World Caffé™ Lime Americano","TC",null,null,null,null,null,null,null,null,null,27.56,2315.0500000000002,0,0]
[76030,84,"Heuchera","World Caffé™ Lungo","TC",null,null,null,null,null,null,null,null,null,27.56,2315.0500000000002,0,0]
[73051,84,"Heuchera","World Caffé™ Romano","TC",null,null,null,null,null,null,null,null,null,27.56,2315.0500000000002,0,0]
[73017,84,"Heuchera","World Caffé™ Shakerato","TC",null,null,null,null,null,null,null,null,null,27.56,2315.0500000000002,0,0]
[76029,84,"Heuchera","World Caffé™ Vienna","TC",null,null,null,null,null,null,null,null,null,27.56,2315.0500000000002,0,0]
[73701,84,"Heuchera americana","Beauty Colour","TC",null,null,null,null,null,null,null,null,null,26.67,2240.14,0,0]
[73703,84,"Heuchera americana","Cappuccino","TC",null,null,null,null,null,null,null,null,null,26.67,2240.14,0,0]
[73708,100,"Heuchera micrantha","Palace Purple","RC",null,null,null,null,null,null,null,null,null,22.45,2245.04,0,0]
[73777,84,"Heuchera vilosa","Kassandra","TC",null,null,null,null,null,null,null,null,null,31.45,2641.45,0,0]
[73742,84,"Heuchera x brizoides","Schneewittchen","TC",null,null,null,null,null,null,null,null,null,26.67,2240.14,0,0]
[73780,84,"Heuchera x hybrida","Neptune","TC",null,null,null,null,null,null,null,null,null,26.67,2240.14,0,0]
[73744,84,"Heuchera x hybrida","Purple Petticoats","TC",null,null,null,null,null,null,null,null,null,26.67,2240.14,0,0]
[73713,84,"Heuchera x hybrida","Regina","TC",null,null,null,null,null,null,null,null,null,26.67,2240.14,0,0]
[73792,84,"Heuchera x hybrida","Venus","TC",null,null,null,null,null,null,null,null,null,26.67,2240.14,0,0]
[74428,84,"Heucherella","Buttered Rum","TC",null,null,null,null,null,null,null,null,null,31.7,2662.85,0,0]
[74485,84,"Heucherella","Catching Fire","TC",null,null,null,null,null,null,null,null,null,31.06,2609.34,0,0]
[74422,84,"Heucherella","Copper Cascade","TC",null,null,null,null,null,null,null,null,null,30.46,2558.5100000000002,0,0]
[70703,84,"Heucherella","Gold Zebra","TC",null,null,null,null,null,null,null,null,null,31.7,2662.85,0,0]
[75419,84,"Heucherella","Hopscotch","TC",null,null,null,null,null,null,null,null,null,31.06,2609.34,0,0]
[74440,84,"Heucherella","Mojito","TC",null,null,null,null,null,null,null,null,null,32.69,2745.79,0,0]
[74491,84,"Heucherella","Pink Revolution","TC",null,null,null,null,null,null,null,null,null,34.28,2879.56,0,0]
[73057,84,"Heucherella","Plum Cascade","TC",null,null,null,null,null,null,null,null,null,30.46,2558.5100000000002,0,0]
[70726,84,"Heucherella","Red Rover","TC",null,null,null,null,null,null,null,null,null,31.06,2609.34,0,0]
[70735,84,"Heucherella","Solar Eclipse","TC",null,null,null,null,null,null,null,null,null,33.61,2823.37,0,0]
[79440,84,"Heucherella","Stoplight","TC",null,null,null,null,null,null,null,null,null,31.7,2662.85,0,0]
[70704,84,"Heucherella","Sweet Tea","TC",null,null,null,null,null,null,null,null,null,33.61,2823.37,0,0]
[79442,84,"Heucherella","Tapestry","TC",null,null,null,null,null,null,null,null,null,31.7,2662.85,0,0]
[74486,84,"Heucherella","White Revolution","TC",null,null,null,null,null,null,null,null,null,34.28,2879.56,0,0]
[74415,84,"Heucherella alba","Bridget Bloom","TC",null,null,null,null,null,null,null,null,null,27.27,2290.9699999999998,0,0]
[79197,84,"Hibiscus","Starry Night","TC",null,null,null,null,null,null,null,null,null,34.06,2860.83,0,0]
[79196,84,"Hibiscus","Summerific® Holy Grail","TC",null,null,null,null,null,null,null,null,null,34.06,2860.83,0,0]
[77813,84,"Holcus mollis","Jackdaws Cream","RC",null,null,null,null,null,null,null,null,null,13.71,1151.25,0,0]
[73886,84,"Hosta","Age of Gold","TC",null,null,null,null,null,null,null,null,null,33.17,2785.92,0,0]
[73881,84,"Hosta","American Halo","TC",null,null,null,null,null,null,null,null,null,29.5,2478.25,0,0]
[73879,84,"Hosta","Autumn Frost","TC",null,null,null,null,null,null,null,null,null,33.17,2785.92,0,0]
[73884,84,"Hosta","Big Daddy","TC",null,null,null,null,null,null,null,null,null,29.5,2478.25,0,0]
[73803,84,"Hosta","Blue Angel","TC",null,null,null,null,null,null,null,null,null,29.5,2478.25,0,0]
[73887,84,"Hosta","Blue Mouse Ears","TC",null,null,null,null,null,null,null,null,null,29.5,2478.25,0,0]
[73862,84,"Hosta","Brim Cup","TC",null,null,null,null,null,null,null,null,null,29.5,2478.25,0,0]
[73890,84,"Hosta","Dream Queen","TC",null,null,null,null,null,null,null,null,null,29.5,2478.25,0,0]
[73832,84,"Hosta","Elegans","TC",null,null,null,null,null,null,null,null,null,29.5,2478.25,0,0]
[73806,84,"Hosta","Fire & Ice","TC",null,null,null,null,null,null,null,null,null,29.5,2478.25,0,0]
[73807,84,"Hosta","Fragrant Blue","TC",null,null,null,null,null,null,null,null,null,29.5,2478.25,0,0]
[73808,84,"Hosta","Francee","TC",null,null,null,null,null,null,null,null,null,29.5,2478.25,0,0]
[71946,84,"Hosta","Grandiflora","TC",null,null,null,null,null,null,null,null,null,29.5,2478.25,0,0]
[73809,84,"Hosta","Great Expectations","TC",null,null,null,null,null,null,null,null,null,29.5,2478.25,0,0]
[71935,84,"Hosta","June","TC",null,null,null,null,null,null,null,null,null,29.5,2478.25,0,0]
[71953,84,"Hosta","Liberty","TC",null,null,null,null,null,null,null,null,null,38.26,3213.98,0,0]
[73813,84,"Hosta","Minute Man","TC",null,null,null,null,null,null,null,null,null,29.5,2478.25,0,0]
[73816,84,"Hosta","Patriot","TC",null,null,null,null,null,null,null,null,null,29.5,2478.25,0,0]
[71916,84,"Hosta","Praying Hands","TC",null,null,null,null,null,null,null,null,null,29.5,2478.25,0,0]
[73876,84,"Hosta","Purple Heart","TC",null,null,null,null,null,null,null,null,null,35.869999999999997,3013.33,0,0]
[73877,84,"Hosta","Raspberry Sundae","TC",null,null,null,null,null,null,null,null,null,46.54,3909.59,0,0]
[73878,84,"Hosta","Regal Splendor","TC",null,null,null,null,null,null,null,null,null,29.5,2478.25,0,0]
[73894,84,"Hosta","Shadowland® Coast to Coast","TC",null,null,null,null,null,null,null,null,null,39.54,3321,{"$f":"P846*(F846+G846+H846+I846+J846+K846+L846+M846+N846)","v":0},{"$f":"Q846*1.15","v":0}]
[73893,84,"Hosta","Shadowland® Wheee!","TC",null,null,null,null,null,null,null,null,null,39.54,3321,0,0]
[73895,84,"Hosta","Shadowland® Wu La La","TC",null,null,null,null,null,null,null,null,null,39.54,3321,0,0]
[73861,84,"Hosta","Stained Glass","TC",null,null,null,null,null,null,null,null,null,29.5,2478.25,0,0]
[73824,84,"Hosta","Sum & Substance","TC",null,null,null,null,null,null,null,null,null,29.5,2478.25,0,0]
[73888,84,"Hosta","Waterslide","TC",null,null,null,null,null,null,null,null,null,33.17,2785.92,0,0]
[73825,84,"Hosta","Wide Brim","TC",null,null,null,null,null,null,null,null,null,29.5,2478.25,0,0]
[73883,84,"Hosta hybrid","School Mouse","TC",null,null,null,null,null,null,null,null,null,33.17,2785.92,0,0]
[73880,84,"Hosta hybrid","Sun Mouse","TC",null,null,null,null,null,null,null,null,null,33.17,2785.92,0,0]
[73885,84,"Hosta sieboldiana","Diamond Lake","TC",null,null,null,null,null,null,null,null,null,33.17,2785.92,0,0]
[73882,84,"Hosta sieboldiana","Hans","TC",null,null,null,null,null,null,null,null,null,37.47,3147.1,0,0]
[73892,84,"Hosta sieboldiana","Pocketful of Sunshine","TC",null,null,null,null,null,null,null,null,null,39.54,3321,0,0]
[73899,84,"Hosta tardiana","Halcyon","TC",null,null,null,null,null,null,null,null,null,29.5,2478.25,0,0]
[78121,100,"Houttuynia cordata","Chameleon","RC",null,null,null,null,null,null,null,null,null,10.55,1055.03,0,0]
[78158,100,"Hypericum calycinum","Hypericum calycinum","RC",null,null,null,null,null,null,null,null,null,10.39,1039.4000000000001,0,0]
[76419,100,"Hypsela reniformis","Hypsela reniformis","RC",null,null,null,null,null,null,null,null,null,11.05,1104.57,0,0]
[71384,100,"Chelone obliqua","Alba","RC",null,null,null,null,null,null,null,null,null,12.87,1286.55,0,0]
[71383,100,"Chelone obliqua","Chelone obliqua","RC",null,null,null,null,null,null,null,null,null,12.87,1286.55,0,0]
[73341,100,"Chrysanthemum","Duchess of Edinburgh","RC",null,null,null,null,null,null,null,null,null,9.67,966.9,0,0]
[73340,100,"Chrysanthemum rubellum","Clara Curtis","RC",null,null,null,null,null,null,null,null,null,9.67,966.9,0,0]
[71509,100,"Iberis sempervirens","Absolutely Amethyst","RC",null,null,null,null,null,null,null,null,null,11.7,1169.74,0,0]
[71511,100,"Iberis sempervirens","Alexander's White","RC",null,null,null,null,null,null,null,null,null,11.7,1169.74,0,0]
[71512,100,"Iberis sempervirens","Appen Etz","RC",null,null,null,null,null,null,null,null,null,11.7,1169.74,0,0]
[71510,100,"Iberis sempervirens","Fishbeck","RC",null,null,null,null,null,null,null,null,null,11.7,1169.74,0,0]
[79367,100,"Iberis sempervirens","Masterpiece","RC",null,null,null,null,null,null,null,null,null,15.4,1539.66,0,0]
[75060,100,"Iberis sempervirens","Pink Ice","RC",null,null,null,null,null,null,null,null,null,14.78,1477.78,0,0]
[79927,100,"Iberis sempervirens","Snowflake","RC",null,null,null,null,null,null,null,null,null,11.7,1169.74,0,0]
[74852,100,"Iberis sempervirens","Snowsurfer Compact","RC",null,null,null,null,null,null,null,null,null,13.5,1350.38,0,0]
[74853,100,"Iberis sempervirens","Snowsurfer Forte","RC",null,null,null,null,null,null,null,null,null,15.13,1512.81,0,0]
[71601,100,"Iberis sempervirens","Weisser Zwerg","RC",null,null,null,null,null,null,null,null,null,11.7,1169.74,0,0]
[79323,40,"Imperata cylindrica","Red Baron","RC",null,null,null,null,null,null,null,null,null,32.69,1307.7,0,0]
[79323,84,"Imperata cylindrica","Red Baron","RC",null,null,null,null,null,null,null,null,null,19.72,1656.9,0,0]
[71394,100,"Isotoma fluviatilis","Alba","RC",null,null,null,null,null,null,null,null,null,10.39,1039.4000000000001,0,0]
[71371,100,"Isotoma fluviatilis","Dark Blue","RC",null,null,null,null,null,null,null,null,null,10.39,1039.4000000000001,0,0]
[71372,100,"Isotoma fluviatilis","Isotoma fluviatilis","RC",null,null,null,null,null,null,null,null,null,10.39,1039.4000000000001,0,0]
[72809,100,"Kalimeris incisa","Alba","RC",null,null,null,null,null,null,null,null,null,10.07,1006.81,0,0]
[72811,100,"Kalimeris incisa","Blue Star","RC",null,null,null,null,null,null,null,null,null,10.07,1006.81,0,0]
[72812,100,"Kalimeris incisa","Madiva","RC",null,null,null,null,null,null,null,null,null,10.07,1006.81,0,0]
[72814,100,"Kalimeris incisa","Nana Blue (Aster ageratoides 'Adustus Nanus')","RC",null,null,null,null,null,null,null,null,null,10.88,1088.0999999999999,0,0]
[75088,84,"Kniphofia","Banana Popsicle","TC",null,null,null,null,null,null,null,null,null,32.5,2729.73,0,0]
[79345,84,"Kniphofia","Mango Popsicle","TC",null,null,null,null,null,null,null,null,null,32.5,2729.73,0,0]
[79346,84,"Kniphofia","Papaya Popsicle","TC",null,null,null,null,null,null,null,null,null,32.5,2729.73,0,0]
[79931,84,"Kniphofia","Poco Citron","TC",null,null,null,null,null,null,null,null,null,32.5,2729.73,0,0]
[75146,84,"Kniphofia","Poco Daybreak","TC",null,null,null,null,null,null,null,null,null,32.5,2729.73,0,0]
[75040,84,"Kniphofia","Poco Orange","TC",null,null,null,null,null,null,null,null,null,32.5,2729.73,0,0]
[75041,84,"Kniphofia","Poco Red","TC",null,null,null,null,null,null,null,null,null,32.5,2729.73,0,0]
[75054,84,"Kniphofia","Poco Yellow","TC",null,null,null,null,null,null,null,null,null,32.5,2729.73,0,0]
[79376,84,"Kniphofia","Redhot Popsicle","TC",null,null,null,null,null,null,null,null,null,32.5,2729.73,0,0]
[75147,84,"Kniphofia","Rocket Jr.","TC",null,null,null,null,null,null,null,null,null,32.5,2729.73,0,0]
[71374,100,"Lamiastrum galeobdolon","Florentinum","RC",null,null,null,null,null,null,null,null,null,10.07,1006.81,0,0]
[71326,100,"Lamiastrum galeobdolon","Herman's Pride","RC",null,null,null,null,null,null,null,null,null,10.07,1006.81,0,0]
[71375,100,"Lamiastrum galeobdolon","Lamiastrum galeobdolon","RC",null,null,null,null,null,null,null,null,null,10.07,1006.81,0,0]
[76729,100,"Lamium maculatum","Album","RC",null,null,null,null,null,null,null,null,null,10.07,1006.81,0,0]
[76708,100,"Lamium maculatum","Anne Greenaway","RC",null,null,null,null,null,null,null,null,null,10.07,1006.81,0,0]
[76715,100,"Lamium maculatum","Beacon Silver","RC",null,null,null,null,null,null,null,null,null,10.07,1006.81,0,0]
[76706,100,"Lamium maculatum","Pink Pewter","RC",null,null,null,null,null,null,null,null,null,10.07,1006.81,0,0]
[76709,100,"Lamium maculatum","Purple Dragon","RC",null,null,null,null,null,null,null,null,null,11.05,1104.57,0,0]
[76712,100,"Lamium maculatum","Red Nancy","RC",null,null,null,null,null,null,null,null,null,10.07,1006.81,0,0]
[76713,100,"Lamium maculatum","Roseum","RC",null,null,null,null,null,null,null,null,null,10.07,1006.81,0,0]
[76714,100,"Lamium maculatum","Shell Pink","RC",null,null,null,null,null,null,null,null,null,10.07,1006.81,0,0]
[76707,100,"Lamium maculatum","White Nancy","RC",null,null,null,null,null,null,null,null,null,10.07,1006.81,0,0]
[76731,100,"Lamium orvala","Lamium orvala","RC",null,null,null,null,null,null,null,null,null,12.35,1234.9100000000001,0,0]
[74857,100,"Lavandula angustifolia","Dwarf Silver","RC",null,null,null,null,null,null,null,null,null,8.9,889.65,0,0]
[75006,100,"Lavandula angustifolia","Grosso","RC",null,null,null,null,null,null,null,null,null,8.9,889.65,0,0]
[74861,100,"Lavandula angustifolia","Hidcote","RC",null,null,null,null,null,null,null,null,null,8.9,889.65,{"$f":"P910*(F910+G910+H910+I910+J910+K910+L910+M910+N910)","v":0},{"$f":"Q910*1.15","v":0}]
[79313,84,"Lavandula angustifolia","Hidcote Blue","RC",null,null,null,null,null,null,null,null,null,11.22,942.57,0,0]
[79325,84,"Lavandula angustifolia","Munstead","RC",null,null,null,null,null,null,null,null,null,11.22,942.57,0,0]
[79325,100,"Lavandula angustifolia","Munstead","RC",null,null,null,null,null,null,null,null,null,8.9,889.65,0,0]
[71575,84,"Lavandula angustifolia","Rosea","RC",null,null,null,null,null,null,null,null,null,11.64,977.35,0,0]
[71575,100,"Lavandula angustifolia","Rosea","RC",null,null,null,null,null,null,null,null,null,8.9,889.65,0,0]
[74879,100,"Lavandula angustifolia","Silver Edge","RC",null,null,null,null,null,null,null,null,null,11.87,1187.33,0,0]
[75032,84,"Lavandula angustifolia","Thumbelina Leigh","RC",null,null,null,null,null,null,null,null,null,14.18,1191.3800000000001,0,0]
[75032,100,"Lavandula angustifolia","Thumbelina Leigh","RC",null,null,null,null,null,null,null,null,null,11.37,1137.1500000000001,0,0]
[79167,100,"Lavandula stoechas","Blue Star","RC",null,null,null,null,null,null,null,null,null,8.9,889.65,0,0]
[74839,100,"Lavandula stoechas ssp pedunculata","Papillon","RC",null,null,null,null,null,null,null,null,null,9.89,988.88,0,0]
[74878,100,"Lavandula x chaytoriae","Richard Gray","RC",null,null,null,null,null,null,null,null,null,8.9,889.65,0,0]
[79107,100,"Lavandula x intermedia","Alba","RC",null,null,null,null,null,null,null,null,null,8.9,889.65,0,0]
[79198,100,"Lavandula x intermedia","Dutch","RC",null,null,null,null,null,null,null,null,null,8.9,889.65,0,0]
[71574,84,"Lavandula x intermedia","Edelweiss","RC",null,null,null,null,null,null,null,null,null,11.22,942.57,0,0]
[71574,100,"Lavandula x intermedia","Edelweiss","RC",null,null,null,null,null,null,null,null,null,8.9,889.65,0,0]
[75033,100,"Lavandula x intermedia","Grappenhall","RC",null,null,null,null,null,null,null,null,null,8.9,889.65,0,0]
[75079,84,"Lavandula x intermedia","Phenomenal","RC",null,null,null,null,null,null,null,null,null,14.41,1210.1099999999999,0,0]
[75079,100,"Lavandula x intermedia","Phenomenal","RC",null,null,null,null,null,null,null,null,null,13.53,1352.7,0,0]
[75080,84,"Lavandula x intermedia","Platinum Blonde","RC",null,null,null,null,null,null,null,null,null,14.82,1244.8900000000001,0,0]
[75007,100,"Lavandula x intermedia","Provence","RC",null,null,null,null,null,null,null,null,null,8.9,889.65,0,0]
[74912,84,"Lavandula x intermedia","Sensational","RC",null,null,null,null,null,null,null,null,null,18.010000000000002,1512.43,0,0]
[79131,40,"Leontopodium alpinum","May Snow","RC",null,null,null,null,null,null,null,null,null,23.52,940.78,0,0]
[79131,84,"Leontopodium alpinum","May Snow","RC",null,null,null,null,null,null,null,null,null,15.01,1260.94,0,0]
[79132,40,"Leontopodium alpinum","Star of Alps","RC",null,null,null,null,null,null,null,null,null,23.52,940.78,0,0]
[79132,84,"Leontopodium alpinum","Star of Alps","RC",null,null,null,null,null,null,null,null,null,15.01,1260.94,0,0]
[72824,100,"Leptinella dioica","Minima","RC",null,null,null,null,null,null,null,null,null,11.05,1104.57,0,0]
[72823,100,"Leptinella squalida","Leptinella squalida","RC",null,null,null,null,null,null,null,null,null,11.05,1104.57,0,0]
[72825,100,"Leptinella squalida","Platt's Black","RC",null,null,null,null,null,null,null,null,null,11.05,1104.57,0,0]
[74470,100,"Leucanthemum","Becky","RC",null,null,null,null,null,null,null,null,null,15.73,1573.33,0,0]
[75422,100,"Leucanthemum maximum","Sweet Daisy™ Cher","RC",null,null,null,null,null,null,null,null,null,16.149999999999999,1614.73,0,0]
[75420,100,"Leucanthemum maximum","Sweet Daisy™ Christine","RC",null,null,null,null,null,null,null,null,null,16.149999999999999,1614.73,0,0]
[70776,100,"Leucanthemum maximum","Sweet Daisy™ Izabel","RC",null,null,null,null,null,null,null,null,null,16.149999999999999,1614.73,0,0]
[75421,100,"Leucanthemum maximum","Sweet Daisy™ Jane","RC",null,null,null,null,null,null,null,null,null,16.149999999999999,1614.73,0,0]
[70770,100,"Leucanthemum maximum","Sweet Daisy™ Rebecca","RC",null,null,null,null,null,null,null,null,null,16.149999999999999,1614.73,0,0]
[70786,84,"Leucanthemum x superbum","Goldfinch","TC",null,null,null,null,null,null,null,null,null,28.1,2360.5300000000002,0,0]
[74454,84,"Leucanthemum x superbum","Luna","TC",null,null,null,null,null,null,null,null,null,28.1,2360.5300000000002,0,0]
[74471,84,"Leucanthemum x superbum","Macaroon","TC",null,null,null,null,null,null,null,null,null,28.1,2360.5300000000002,0,0]
[70796,100,"Leucanthemum x superbum","Sante","RC",null,null,null,null,null,null,null,null,null,18.28,1828.13,0,0]
[70752,100,"Leucanthemum x superbum","Snow Cap","RC",null,null,null,null,null,null,null,null,null,13.96,1395.7,0,0]
[75447,100,"Leucanthemum x superbum","Spoon Full of Sugar","RC",null,null,null,null,null,null,null,null,null,19.649999999999999,1964.59,0,0]
[70719,84,"Leucanthemum x superbum","Victorian Secret","TC",null,null,null,null,null,null,null,null,null,28.1,2360.5300000000002,0,0]
[74441,100,"Leucanthemum x superbum","Wirral Supreme","RC",null,null,null,null,null,null,null,null,null,16.34,1633.84,0,0]
[72827,100,"Lindernia grandiflora","Lindernia grandiflora","RC",null,null,null,null,null,null,null,null,null,11.05,1104.57,0,0]
[78123,100,"Lithodora diffusa","Alba","RC",null,null,null,null,null,null,null,null,null,11.05,1104.57,0,0]
[78124,100,"Lithodora diffusa","Grace Ward","RC",null,null,null,null,null,null,null,null,null,11.05,1104.57,0,0]
[78125,100,"Lithodora diffusa","Heavenly Blue","RC",null,null,null,null,null,null,null,null,null,11.05,1104.57,0,0]
[75711,100,"Lobelia speciosa","Russian Princess","RC",null,null,null,null,null,null,null,null,null,13,1300.08,0,0]
[75601,84,"Lomandra longifolia","White Sands","RC",null,null,null,null,null,null,null,null,null,37.020000000000003,3109.64,0,0]
[71865,45,"Lupinus","Desert Sun","TC",null,null,null,null,null,null,null,null,null,41.65,1874.47,0,0]
[71867,45,"Lupinus","Manhattan Lights","TC",null,null,null,null,null,null,null,null,null,41.65,1874.47,0,0]
[71868,45,"Lupinus","Persian Slipper","TC",null,null,null,null,null,null,null,null,null,41.65,1874.47,0,0]
[71869,45,"Lupinus","Polar Princess","TC",null,null,null,null,null,null,null,null,null,41.65,1874.47,0,0]
[71893,45,"Lupinus","Rachel de Thame","TC",null,null,null,null,null,null,null,null,null,41.65,1874.47,0,0]
[71883,45,"Lupinus","Salmon Star","TC",null,null,null,null,null,null,null,null,null,41.65,1874.47,0,0]
[71894,45,"Lupinus","Tequila Flame","TC",null,null,null,null,null,null,null,null,null,41.65,1874.47,0,0]
[71870,45,"Lupinus","Towering Inferno","TC",null,null,null,null,null,null,null,null,null,41.65,1874.47,0,0]
[70118,84,"Luzula pilosa","Igel","RC",null,null,null,null,null,null,null,null,null,13.71,1151.25,0,0]
[71377,100,"Lysimachia ciliata","Firecracker","RC",null,null,null,null,null,null,null,null,null,11.05,1104.57,0,0]
[71380,100,"Lysimachia congestiflora","Persian Chocolate","RC",null,null,null,null,null,null,null,null,null,11.05,1104.57,0,0]
[70160,100,"Lysimachia nummularia","Aurea (Goldilocks)","RC",null,null,null,null,null,null,null,null,null,9.33,933.14,0,0]
[71379,100,"Lysimachia nummularia","Lysimachia nummularia","RC",null,null,null,null,null,null,null,null,null,9.33,933.14,0,0]
[71331,100,"Lysimachia punctata","Alexander","RC",null,null,null,null,null,null,null,null,null,10.8,1079.6500000000001,0,0]
[75294,100,"Lythrum salicaria","Blush","RC",null,null,null,null,null,null,null,null,null,11.05,1104.57,0,0]
[75279,100,"Lythrum salicaria","Pink Blush","RC",null,null,null,null,null,null,null,null,null,12.04,1203.8699999999999,{"$f":"P974*(F974+G974+H974+I974+J974+K974+L974+M974+N974)","v":0},{"$f":"Q974*1.15","v":0}]
[79714,100,"Lythrum salicaria","Robert","RC",null,null,null,null,null,null,null,null,null,11.05,1104.57,0,0]
[75295,100,"Lythrum salicaria","Robin","RC",null,null,null,null,null,null,null,null,null,11.05,1104.57,0,0]
[75292,100,"Lythrum virgatum","Dropmore Purple","RC",null,null,null,null,null,null,null,null,null,11.05,1104.57,0,0]
[71413,100,"Malva sylvestris","Blue Fountain","RC",null,null,null,null,null,null,null,null,null,19.010000000000002,1900.79,0,0]
[78131,100,"Malva sylvestris","Primley Blue","RC",null,null,null,null,null,null,null,null,null,12.35,1234.9100000000001,0,0]
[78132,100,"Mazus reptans","Albus","RC",null,null,null,null,null,null,null,null,null,9.89,988.88,0,0]
[78188,100,"Mazus reptans","Mazus reptans","RC",null,null,null,null,null,null,null,null,null,9.89,988.88,0,0]
[73369,100,"Mentha aquatica","Marokkanische","RC",null,null,null,null,null,null,null,null,null,9.99,999.24,0,0]
[79026,100,"Mentha piperita","Chocolate","RC",null,null,null,null,null,null,null,null,null,9.99,999.24,0,0]
[73349,100,"Mentha piperita","Mentha piperita","RC",null,null,null,null,null,null,null,null,null,9.99,999.24,0,0]
[73371,100,"Mentha requienii","Mentha requienii","RC",null,null,null,null,null,null,null,null,null,9.99,999.24,0,0]
[73352,100,"Mentha rotundifolia","Eau de Cologne","RC",null,null,null,null,null,null,null,null,null,9.99,999.24,0,0]
[73351,100,"Mentha rotundifolia","Variegata","RC",null,null,null,null,null,null,null,null,null,9.99,999.24,0,0]
[73350,100,"Mentha spicata","Moroccan","RC",null,null,null,null,null,null,null,null,null,9.99,999.24,0,0]
[71565,40,"Miscanthus sinensis","Adagio","RC",null,null,null,null,null,null,null,null,null,35.72,1428.73,0,0]
[71565,155,"Miscanthus sinensis","Adagio","RC",null,null,null,null,null,null,null,null,null,17.440000000000001,2703.36,0,0]
[75138,40,"Miscanthus sinensis","Boucle","RC",null,null,null,null,null,null,null,null,null,40.5,1619.83,0,0]
[75138,155,"Miscanthus sinensis","Boucle","RC",null,null,null,null,null,null,null,null,null,22.22,3443.88,0,0]
[75051,40,"Miscanthus sinensis","Cute One","RC",null,null,null,null,null,null,null,null,null,41.13,1645.31,0,0]
[71592,40,"Miscanthus sinensis","Ferner Osten","RC",null,null,null,null,null,null,null,null,null,35.72,1428.73,0,0]
[71592,155,"Miscanthus sinensis","Ferner Osten","RC",null,null,null,null,null,null,null,null,null,17.440000000000001,2703.36,0,0]
[71593,40,"Miscanthus sinensis","Graciella","RC",null,null,null,null,null,null,null,null,null,35.72,1428.73,0,0]
[71593,155,"Miscanthus sinensis","Graciella","RC",null,null,null,null,null,null,null,null,null,17.440000000000001,2703.36,0,0]
[75027,40,"Miscanthus sinensis","Gracillimus","RC",null,null,null,null,null,null,null,null,null,35.72,1428.73,0,0]
[75027,155,"Miscanthus sinensis","Gracillimus","RC",null,null,null,null,null,null,null,null,null,17.440000000000001,2703.36,0,0]
[75121,40,"Miscanthus sinensis","Grosse Fontäne","RC",null,null,null,null,null,null,null,null,null,35.72,1428.73,0,0]
[75121,155,"Miscanthus sinensis","Grosse Fontäne","RC",null,null,null,null,null,null,null,null,null,17.440000000000001,2703.36,0,0]
[75057,40,"Miscanthus sinensis","Little Zebra","RC",null,null,null,null,null,null,null,null,null,42.09,1683.53,0,0]
[75057,155,"Miscanthus sinensis","Little Zebra","RC",null,null,null,null,null,null,null,null,null,23.81,3690.71,0,0]
[71594,40,"Miscanthus sinensis","Malepartus","RC",null,null,null,null,null,null,null,null,null,35.72,1428.73,0,0]
[71588,40,"Miscanthus sinensis","Morning Light","RC",null,null,null,null,null,null,null,null,null,35.72,1428.73,0,0]
[71588,155,"Miscanthus sinensis","Morning Light","RC",null,null,null,null,null,null,null,null,null,17.440000000000001,2703.36,0,0]
[75052,40,"Miscanthus sinensis","Navajo","RC",null,null,null,null,null,null,null,null,null,41.13,1645.31,0,0]
[75139,40,"Miscanthus sinensis","Polonus","RC",null,null,null,null,null,null,null,null,null,40.5,1619.83,0,0]
[75139,155,"Miscanthus sinensis","Polonus","RC",null,null,null,null,null,null,null,null,null,22.22,3443.88,0,0]
[79970,40,"Miscanthus sinensis","Pünktchen","RC",null,null,null,null,null,null,null,null,null,35.72,1428.73,0,0]
[79970,155,"Miscanthus sinensis","Pünktchen","RC",null,null,null,null,null,null,null,null,null,17.440000000000001,2703.36,0,0]
[75144,40,"Miscanthus sinensis","Silberspinne","RC",null,null,null,null,null,null,null,null,null,35.72,1428.73,0,0]
[75144,155,"Miscanthus sinensis","Silberspinne","RC",null,null,null,null,null,null,null,null,null,17.440000000000001,2703.36,0,0]
[79327,40,"Miscanthus sinensis","Strictus","RC",null,null,null,null,null,null,null,null,null,35.72,1428.73,0,0]
[79327,155,"Miscanthus sinensis","Strictus","RC",null,null,null,null,null,null,null,null,null,17.440000000000001,2703.36,0,0]
[75063,40,"Miscanthus sinensis","Strictus Dwarf","RC",null,null,null,null,null,null,null,null,null,35.72,1428.73,0,0]
[75063,155,"Miscanthus sinensis","Strictus Dwarf","RC",null,null,null,null,null,null,null,null,null,17.440000000000001,2703.36,0,0]
[79328,40,"Miscanthus sinensis","Variegatus","RC",null,null,null,null,null,null,null,null,null,35.72,1428.73,0,0]
[75098,40,"Miscanthus sinensis","Yaka Dance","RC",null,null,null,null,null,null,null,null,null,41.13,1645.31,0,0]
[75098,155,"Miscanthus sinensis","Yaka Dance","RC",null,null,null,null,null,null,null,null,null,22.86,3542.61,0,0]
[79351,40,"Miscanthus sinensis","Zebrinus","RC",null,null,null,null,null,null,null,null,null,35.72,1428.73,0,0]
[79351,155,"Miscanthus sinensis","Zebrinus","RC",null,null,null,null,null,null,null,null,null,17.440000000000001,2703.36,0,0]
[75014,40,"Miscanthus x giganteus","Miscanthus x giganteus","TC",null,null,null,null,null,null,null,null,null,52.82,2112.86,0,0]
[75058,40,"Molinia caerulea","Heidebraut","RC",null,null,null,null,null,null,null,null,null,30.94,1237.6300000000001,0,0]
[75058,155,"Molinia caerulea","Heidebraut","RC",null,null,null,null,null,null,null,null,null,13.01,2017.15,0,0]
[75089,40,"Molinia caerulea","Heidezwerg","RC",null,null,null,null,null,null,null,null,null,30.94,1237.6300000000001,0,0]
[75089,155,"Molinia caerulea","Heidezwerg","RC",null,null,null,null,null,null,null,null,null,13.01,2017.15,0,0]
[75059,40,"Molinia caerulea","Moorhexe","RC",null,null,null,null,null,null,null,null,null,30.94,1237.6300000000001,0,0]
[75059,155,"Molinia caerulea","Moorhexe","RC",null,null,null,null,null,null,null,null,null,13.01,2017.15,0,0]
[75086,40,"Molinia caerulea","Torch","RC",null,null,null,null,null,null,null,null,null,35.4,1415.99,0,0]
[77474,40,"Monarda","Bee-Bright","RC",null,null,null,null,null,null,null,null,null,35.97,1438.92,0,0]
[77474,100,"Monarda","Bee-Bright","RC",null,null,null,null,null,null,null,null,null,18.82,1882.27,0,0]
[74283,100,"Monarda","Bee-Free","RC",null,null,null,null,null,null,null,null,null,18.82,1882.27,0,0]
[74279,40,"Monarda","Bee-Happy","RC",null,null,null,null,null,null,null,null,null,35.97,1438.92,0,0]
[74279,100,"Monarda","Bee-Happy","RC",null,null,null,null,null,null,null,null,null,18.82,1882.27,0,0]
[74280,40,"Monarda","Bee-Lieve","RC",null,null,null,null,null,null,null,null,null,35.97,1438.92,0,0]
[74280,100,"Monarda","Bee-Lieve","RC",null,null,null,null,null,null,null,null,null,18.82,1882.27,0,0]
[77424,40,"Monarda","Bee-Merry","RC",null,null,null,null,null,null,null,null,null,35.97,1438.92,{"$f":"P1038*(F1038+G1038+H1038+I1038+J1038+K1038+L1038+M1038+N1038)","v":0},{"$f":"Q1038*1.15","v":0}]
[77424,100,"Monarda","Bee-Merry","RC",null,null,null,null,null,null,null,null,null,18.82,1882.27,0,0]
[77473,40,"Monarda","Bee-Pretty","RC",null,null,null,null,null,null,null,null,null,35.97,1438.92,0,0]
[77473,100,"Monarda","Bee-Pretty","RC",null,null,null,null,null,null,null,null,null,18.82,1882.27,0,0]
[77423,40,"Monarda","Bee-Pure","RC",null,null,null,null,null,null,null,null,null,35.97,1438.92,0,0]
[77423,100,"Monarda","Bee-Pure","RC",null,null,null,null,null,null,null,null,null,18.82,1882.27,0,0]
[74281,100,"Monarda","Bee-True","RC",null,null,null,null,null,null,null,null,null,18.82,1882.27,0,0]
[79239,100,"Monarda didyma","Cranberry Lace®","RC",null,null,null,null,null,null,null,null,null,15.07,1506.83,0,0]
[79240,100,"Monarda didyma","Fireball ®","RC",null,null,null,null,null,null,null,null,null,15.07,1506.83,0,0]
[79241,100,"Monarda didyma","Marshall's Delight","RC",null,null,null,null,null,null,null,null,null,10.07,1006.81,0,0]
[77505,100,"Monarda didyma","SUGAR BUZZ® Berry Taffy","RC",null,null,null,null,null,null,null,null,null,17.43,1743.06,0,0]
[77502,100,"Monarda didyma","SUGAR BUZZ® Blue Moon","RC",null,null,null,null,null,null,null,null,null,17.43,1743.06,0,0]
[79282,100,"Monarda didyma","SUGAR BUZZ® Bubblegum Blast","RC",null,null,null,null,null,null,null,null,null,17.43,1743.06,0,0]
[74237,100,"Monarda didyma","SUGAR BUZZ® Grape Gumball","RC",null,null,null,null,null,null,null,null,null,17.43,1743.06,0,0]
[79283,100,"Monarda didyma","SUGAR BUZZ® Pink Frosting","RC",null,null,null,null,null,null,null,null,null,17.43,1743.06,0,0]
[77504,100,"Monarda hybrida","Baby Spice","RC",null,null,null,null,null,null,null,null,null,9.99,999.24,0,0]
[74230,100,"Monarda hybrida","Beauty of Cobham","RC",null,null,null,null,null,null,null,null,null,9.99,999.24,0,0]
[74236,100,"Monarda hybrida","Blaustrumpf","RC",null,null,null,null,null,null,null,null,null,9.99,999.24,0,0]
[79256,100,"Monarda hybrida","Cambridge Scarlet","RC",null,null,null,null,null,null,null,null,null,9.99,999.24,0,0]
[79242,100,"Monarda hybrida","Pink Lace ®","RC",null,null,null,null,null,null,null,null,null,14.96,1495.59,0,0]
[79243,100,"Monarda hybrida","Pink Supreme ®","RC",null,null,null,null,null,null,null,null,null,14.96,1495.59,0,0]
[79259,100,"Monarda hybrida","Prärienacht","RC",null,null,null,null,null,null,null,null,null,10.07,1006.81,0,0]
[74246,100,"Monarda hybrida","Purple Lace","RC",null,null,null,null,null,null,null,null,null,14.96,1495.59,0,0]
[79260,100,"Monarda hybrida","Schneewittchen","RC",null,null,null,null,null,null,null,null,null,10.07,1006.81,0,0]
[76429,100,"Muehlenbeckia axillaris","Nana","RC",null,null,null,null,null,null,null,null,null,10.32,1031.58,0,0]
[79950,100,"Nepeta govaniana","Nepeta govaniana","RC",null,null,null,null,null,null,null,null,null,11.21,1121.18,0,0]
[71513,100,"Nepeta grandiflora","Dawn to Dusk","RC",null,null,null,null,null,null,null,null,null,10.220000000000001,1021.95,0,0]
[71515,100,"Nepeta grandiflora","Florina","RC",null,null,null,null,null,null,null,null,null,12.87,1286.55,0,0]
[71521,100,"Nepeta grandiflora","Summer Magic","RC",null,null,null,null,null,null,null,null,null,14.52,1451.93,0,0]
[79998,100,"Nepeta grandiflora","Veluws Blauwtje","RC",null,null,null,null,null,null,null,null,null,10.16,1015.95,0,0]
[74854,100,"Nepeta kubanica","Neptune","RC",null,null,null,null,null,null,null,null,null,19.11,1911.23,0,0]
[74901,100,"Nepeta racemosa","Amelia","RC",null,null,null,null,null,null,null,null,null,10.55,1055.03,0,0]
[71517,100,"Nepeta racemosa","Grog","RC",null,null,null,null,null,null,null,null,null,10.220000000000001,1021.95,0,0]
[74902,100,"Nepeta racemosa","Little Titch","RC",null,null,null,null,null,null,null,null,null,10.55,1055.03,0,0]
[79388,100,"Nepeta x faassenii","Blue Wonder","RC",null,null,null,null,null,null,null,null,null,10.220000000000001,1021.95,0,0]
[71514,100,"Nepeta x faassenii","Dropmore","RC",null,null,null,null,null,null,null,null,null,10.220000000000001,1021.95,0,0]
[71516,100,"Nepeta x faassenii","Gletschereis","RC",null,null,null,null,null,null,null,null,null,10.220000000000001,1021.95,0,0]
[71518,100,"Nepeta x faassenii","Grol","RC",null,null,null,null,null,null,null,null,null,10.220000000000001,1021.95,0,0]
[75044,100,"Nepeta x faassenii","Junior Walker™","RC",null,null,null,null,null,null,null,null,null,16.170000000000002,1617.3,0,0]
[79936,100,"Nepeta x faassenii","Kit Cat","RC",null,null,null,null,null,null,null,null,null,10.220000000000001,1021.95,0,0]
[74823,100,"Nepeta x faassenii","Purrsian Blue","RC",null,null,null,null,null,null,null,null,null,13.89,1388.6,0,0]
[71520,100,"Nepeta x faassenii","Senior","RC",null,null,null,null,null,null,null,null,null,10.220000000000001,1021.95,0,0]
[79937,100,"Nepeta x faassenii","Six Hills Giant","RC",null,null,null,null,null,null,null,null,null,10.220000000000001,1021.95,0,0]
[79389,100,"Nepeta x faassenii","Snowflake","RC",null,null,null,null,null,null,null,null,null,10.220000000000001,1021.95,0,0]
[79938,100,"Nepeta x faassenii","Walker's Low","RC",null,null,null,null,null,null,null,null,null,10.220000000000001,1021.95,0,0]
[74840,100,"Oenothera","African Sun","RC",null,null,null,null,null,null,null,null,null,15.81,1581.36,0,0]
[79390,100,"Oenothera speciosa","Siskiyou Pink","RC",null,null,null,null,null,null,null,null,null,11.43,1143.3499999999999,0,0]
[75016,102,"Olearia algida","Mark","RC",null,null,null,null,null,null,null,null,null,15.03,1533.45,0,0]
[72830,100,"Omphalodes verna","Alba","RC",null,null,null,null,null,null,null,null,null,12.02,1202.32,0,0]
[72829,100,"Omphalodes verna","Omphalodes verna","RC",null,null,null,null,null,null,null,null,null,12.02,1202.32,0,0]
[71774,84,"Ophiopogon chingii","Ophiopogon chingii","RC",null,null,null,null,null,null,null,null,null,16.350000000000001,1373.31,0,0]
[71777,84,"Ophiopogon planiscapus","Nigrescens","TC",null,null,null,null,null,null,null,null,null,31.54,2649.47,0,0]
[77419,100,"Origanum laevigatum","Gentle Breeze","RC",null,null,null,null,null,null,null,null,null,16.53,1652.95,0,0]
[74274,100,"Origanum laevigatum","Herrenhausen","RC",null,null,null,null,null,null,null,null,null,10.32,1031.58,0,0]
[74291,100,"Origanum laevigatum","Rosenkuppel","RC",null,null,null,null,null,null,null,null,null,10.32,1031.58,0,0]
[79216,100,"Origanum rotundifolium","Amethyst Falls","RC",null,null,null,null,null,null,null,null,null,15.48,1547.85,0,0]
[74299,100,"Origanum rotundifolium","Bellissimo","RC",null,null,null,null,null,null,null,null,null,16.43,1643.4,0,0]
[74249,100,"Origanum rotundifolium","Dingle Fairy","RC",null,null,null,null,null,null,null,null,null,13.73,1372.67,0,0]
[74221,100,"Origanum rotundifolium","Kent Beauty","RC",null,null,null,null,null,null,null,null,null,13.73,1372.67,0,0]
[79629,100,"Origanum vulgare","Aureum","RC",null,null,null,null,null,null,null,null,null,10.32,1031.58,0,0]
[79698,100,"Origanum vulgare","Compactum","RC",null,null,null,null,null,null,null,null,null,10.32,1031.58,0,0]
[74218,100,"Origanum vulgare","Origanum vulgare","RC",null,null,null,null,null,null,null,null,null,10.32,1031.58,0,0]
[72828,100,"Orostachys iwarenge","Chinese Hat","RC",null,null,null,null,null,null,null,null,null,12.02,1202.32,0,0]
[70121,100,"Pachysandra terminalis","Green Carpet","RC",null,null,null,null,null,null,null,null,null,10.55,1055.03,0,0]
[70188,100,"Pachysandra terminalis","Green Sheen","RC",null,null,null,null,null,null,null,null,null,10.55,1055.03,{"$f":"P1102*(F1102+G1102+H1102+I1102+J1102+K1102+L1102+M1102+N1102)","v":0},{"$f":"Q1102*1.15","v":0}]
[73362,100,"Pachysandra terminalis","Pachysandra terminalis","RC",null,null,null,null,null,null,null,null,null,10.55,1055.03,0,0]
[70199,100,"Pachysandra terminalis","Variegata","RC",null,null,null,null,null,null,null,null,null,10.55,1055.03,0,0]
[74158,40,"Panicum virgatum","Blue Fountain","RC",null,null,null,null,null,null,null,null,null,42.88,1715.38,0,0]
[74158,155,"Panicum virgatum","Blue Fountain","RC",null,null,null,null,null,null,null,null,null,22.47,3483.37,0,0]
[79190,40,"Panicum virgatum","Buffalo Green","RC",null,null,null,null,null,null,null,null,null,42.88,1715.38,0,0]
[79190,155,"Panicum virgatum","Buffalo Green","RC",null,null,null,null,null,null,null,null,null,22.47,3483.37,0,0]
[79075,40,"Panicum virgatum","Heavy Metal","RC",null,null,null,null,null,null,null,null,null,34.76,1390.51,0,0]
[79075,155,"Panicum virgatum","Heavy Metal","RC",null,null,null,null,null,null,null,null,null,17.7,2742.86,0,0]
[79112,40,"Panicum virgatum","Northwind","RC",null,null,null,null,null,null,null,null,null,36.83,1473.32,0,0]
[79112,155,"Panicum virgatum","Northwind","RC",null,null,null,null,null,null,null,null,null,17.7,2742.86,0,0]
[74159,40,"Panicum virgatum","Nosferatu","RC",null,null,null,null,null,null,null,null,null,43.84,1753.6,0,0]
[74159,155,"Panicum virgatum","Nosferatu","RC",null,null,null,null,null,null,null,null,null,23.43,3631.47,0,0]
[79076,40,"Panicum virgatum","Prairie Sky","RC",null,null,null,null,null,null,null,null,null,34.76,1390.51,0,0]
[79076,155,"Panicum virgatum","Prairie Sky","RC",null,null,null,null,null,null,null,null,null,17.7,2742.86,0,0]
[79154,40,"Panicum virgatum","Sangria","RC",null,null,null,null,null,null,null,null,null,39.22,1568.87,0,0]
[79154,155,"Panicum virgatum","Sangria","RC",null,null,null,null,null,null,null,null,null,22.15,3434,0,0]
[79077,40,"Panicum virgatum","Shenandoah","RC",null,null,null,null,null,null,null,null,null,34.76,1390.51,0,0]
[79077,155,"Panicum virgatum","Shenandoah","RC",null,null,null,null,null,null,null,null,null,17.7,2742.86,0,0]
[79078,40,"Panicum virgatum","Warrior","RC",null,null,null,null,null,null,null,null,null,34.76,1390.51,0,0]
[79078,155,"Panicum virgatum","Warrior","RC",null,null,null,null,null,null,null,null,null,17.7,2742.86,0,0]
[74129,84,"Pennisetum alopecuroides","Gelbstiel","RC",null,null,null,null,null,null,null,null,null,16.29,1367.96,0,0]
[74129,155,"Pennisetum alopecuroides","Gelbstiel","RC",null,null,null,null,null,null,null,null,null,13.71,2125.7600000000002,0,0]
[79719,84,"Pennisetum alopecuroides","Hameln","RC",null,null,null,null,null,null,null,null,null,16.29,1367.96,0,0]
[79719,155,"Pennisetum alopecuroides","Hameln","RC",null,null,null,null,null,null,null,null,null,13.71,2125.7600000000002,0,0]
[74121,84,"Pennisetum alopecuroides","Hameln Gold","RC",null,null,null,null,null,null,null,null,null,18.829999999999998,1581.99,0,0]
[74121,155,"Pennisetum alopecuroides","Hameln Gold","RC",null,null,null,null,null,null,null,null,null,16.260000000000002,2520.6999999999998,0,0]
[74125,40,"Pennisetum alopecuroides","Lady U","RC",null,null,null,null,null,null,null,null,null,32.090000000000003,1283.49,0,0]
[74125,84,"Pennisetum alopecuroides","Lady U","RC",null,null,null,null,null,null,null,null,null,16.22,1362.61,0,0]
[74112,84,"Pennisetum alopecuroides","Little Bunny","RC",null,null,null,null,null,null,null,null,null,16.29,1367.96,0,0]
[74112,155,"Pennisetum alopecuroides","Little Bunny","RC",null,null,null,null,null,null,null,null,null,13.71,2125.7600000000002,0,0]
[74131,40,"Pennisetum alopecuroides","National Arboretum","RC",null,null,null,null,null,null,null,null,null,30.81,1232.53,0,0]
[74131,84,"Pennisetum alopecuroides","National Arboretum","RC",null,null,null,null,null,null,null,null,null,14.95,1255.5899999999999,0,0]
[74142,40,"Pennisetum alopecuroides","Red Head","RC",null,null,null,null,null,null,null,null,null,30.81,1232.53,0,0]
[74142,84,"Pennisetum alopecuroides","Red Head","RC",null,null,null,null,null,null,null,null,null,16.29,1367.96,0,0]
[74113,84,"Pennisetum x advena","Rubrum","RC",null,null,null,null,null,null,null,null,null,24.22,2034.13,0,0]
[74136,100,"Penstemon","Andenken an Frederik Hahn’(Garnet)","RC",null,null,null,null,null,null,null,null,null,10.32,1031.58,0,0]
[74102,100,"Penstemon","Catharine De la Mare Purple","RC",null,null,null,null,null,null,null,null,null,10.32,1031.58,0,0]
[74166,100,"Penstemon","Evelyn","RC",null,null,null,null,null,null,null,null,null,10.32,1031.58,0,0]
[74134,100,"Penstemon","Purple Passion","RC",null,null,null,null,null,null,null,null,null,10.32,1031.58,0,0]
[74135,100,"Penstemon","Rich Ruby","RC",null,null,null,null,null,null,null,null,null,10.32,1031.58,0,0]
[74139,100,"Penstemon","Rubicunda","RC",null,null,null,null,null,null,null,null,null,10.32,1031.58,0,0]
[74137,100,"Penstemon","Schoenholzeri","RC",null,null,null,null,null,null,null,null,null,10.32,1031.58,0,0]
[74580,100,"Penstemon","Sour Grapes","RC",null,null,null,null,null,null,null,null,null,10.32,1031.58,0,0]
[74138,100,"Penstemon","White Bedder","RC",null,null,null,null,null,null,null,null,null,10.32,1031.58,0,0]
[79445,100,"Penstemon digitalis","Dark Towers","RC",null,null,null,null,null,null,null,null,null,18.440000000000001,1844.05,0,0]
[79557,100,"Penstemon digitalis","Husker Red","RC",null,null,null,null,null,null,null,null,null,13.86,1385.78,0,0]
[78181,100,"Perovskia atriplicifolia","Blue Spire","RC",null,null,null,null,null,null,null,null,null,15,1500.07,0,0]
[78165,100,"Perovskia atriplicifolia","Lacey Blue","RC",null,null,null,null,null,null,null,null,null,19.78,1977.82,0,0]
[78135,100,"Perovskia atriplicifolia","Little Spire®","RC",null,null,null,null,null,null,null,null,null,18.190000000000001,1818.57,0,0]
[77623,100,"Perovskia atriplicifolia","Rocketman","RC",null,null,null,null,null,null,null,null,null,16.559999999999999,1656.14,0,0]
[78146,100,"Perovskia atriplicifolia","Russian Sage","RC",null,null,null,null,null,null,null,null,null,12.74,1273.94,0,0]
[78166,100,"Perovskia atriplicifolia","Silvery Blue","RC",null,null,null,null,null,null,null,null,null,19.78,1977.82,0,0]
[78137,100,"Persicaria affinis","Darjeeling Red","RC",null,null,null,null,null,null,null,null,null,10.96,1096.26,0,0]
[71434,100,"Persicaria affinis","Donald Lowndes","RC",null,null,null,null,null,null,null,null,null,10.96,1096.26,0,0]
[71437,100,"Persicaria affinis","Kabouter","RC",null,null,null,null,null,null,null,null,null,10.96,1096.26,0,0]
[71478,100,"Persicaria affinis","Superba","RC",null,null,null,null,null,null,null,null,null,10.96,1096.26,0,0]
[71446,84,"Persicaria amplexicaulis","Alba","TC",null,null,null,null,null,null,null,null,null,32.24,2708.33,0,0]
[71485,84,"Persicaria amplexicaulis","Ample Pink","TC",null,null,null,null,null,null,null,null,null,29.12,2446.14,0,0]
[71486,84,"Persicaria amplexicaulis","Ample Vibrant Red","TC",null,null,null,null,null,null,null,null,null,29.12,2446.14,0,0]
[78136,84,"Persicaria amplexicaulis","Blackfield","TC",null,null,null,null,null,null,null,null,null,34.22,2874.21,0,0]
[71487,84,"Persicaria amplexicaulis","Cottesbrook Gold","TC",null,null,null,null,null,null,null,null,null,27.85,2339.13,0,0]
[71433,100,"Persicaria amplexicaulis","Dark Red","RC",null,null,null,null,null,null,null,null,null,19.149999999999999,1914.98,0,0]
[71435,100,"Persicaria amplexicaulis","Fat Domino","RC",null,null,null,null,null,null,null,null,null,25.76,2576.48,0,0]
[78147,100,"Persicaria amplexicaulis","Golden Arrow","RC",null,null,null,null,null,null,null,null,null,19.149999999999999,1914.98,{"$f":"P1166*(F1166+G1166+H1166+I1166+J1166+K1166+L1166+M1166+N1166)","v":0},{"$f":"Q1166*1.15","v":0}]
[78190,84,"Persicaria amplexicaulis","JS Caliente","TC",null,null,null,null,null,null,null,null,null,32.619999999999997,2740.44,0,0]
[71436,100,"Persicaria amplexicaulis","JS Calor","RC",null,null,null,null,null,null,null,null,null,22.46,2245.73,0,0]
[71472,84,"Persicaria amplexicaulis","JS Misty Morning","TC",null,null,null,null,null,null,null,null,null,31.03,2606.67,0,0]
[78191,84,"Persicaria amplexicaulis","JS Seven Oaks Village","TC",null,null,null,null,null,null,null,null,null,32.619999999999997,2740.44,0,0]
[71484,84,"Persicaria amplexicaulis","JS® Keep Smiling","TC",null,null,null,null,null,null,null,null,null,27.85,2339.13,0,0]
[71439,100,"Persicaria amplexicaulis","Lisan","RC",null,null,null,null,null,null,null,null,null,19.149999999999999,1914.98,0,0]
[78138,100,"Persicaria amplexicaulis","Orange Field ®","RC",null,null,null,null,null,null,null,null,null,25.76,2576.48,0,0]
[71442,100,"Persicaria amplexicaulis","Pink Elephant","RC",null,null,null,null,null,null,null,null,null,19.149999999999999,1914.98,0,0]
[71444,100,"Persicaria amplexicaulis","Speciosa","RC",null,null,null,null,null,null,null,null,null,19.149999999999999,1914.98,0,0]
[71477,100,"Persicaria amplexicaulis","White Eastfield","RC",null,null,null,null,null,null,null,null,null,19.149999999999999,1914.98,0,0]
[71443,100,"Persicaria microcephala","Red Dragon","RC",null,null,null,null,null,null,null,null,null,15.93,1593.34,0,0]
[71440,100,"Persicaria polymorpha","Persicaria polymorpha","RC",null,null,null,null,null,null,null,null,null,14.94,1493.7,0,0]
[74147,84,"Phalaris arundinacea","Arctic Sun","RC",null,null,null,null,null,null,null,null,null,18.55,1557.91,0,0]
[74148,84,"Phalaris arundinacea","Feesey","RC",null,null,null,null,null,null,null,null,null,18.55,1557.91,0,0]
[70182,84,"Phalaris arundinacea","Picta","RC",null,null,null,null,null,null,null,null,null,18.55,1557.91,0,0]
[73354,100,"Phlomis russeliana","Phlomis russelliana","RC",null,null,null,null,null,null,null,null,null,12.39,1238.9000000000001,0,0]
[76395,100,"Phlox divaricata","Blue Moon","RC",null,null,null,null,null,null,null,null,null,9.74,974.23,0,0]
[76378,100,"Phlox divaricata","Clouds of Perfume","RC",null,null,null,null,null,null,null,null,null,9.74,974.23,0,0]
[76377,100,"Phlox divaricata","Chattahoochee","RC",null,null,null,null,null,null,null,null,null,9.74,974.23,0,0]
[76383,100,"Phlox divaricata","May Breeze","RC",null,null,null,null,null,null,null,null,null,9.74,974.23,0,0]
[76382,100,"Phlox douglasii","Lilac Cloud","RC",null,null,null,null,null,null,null,null,null,9.56,955.8,0,0]
[76386,100,"Phlox douglasii","Ochsenblut","RC",null,null,null,null,null,null,null,null,null,9.56,955.8,0,0]
[76388,100,"Phlox douglasii","Red Admiral","RC",null,null,null,null,null,null,null,null,null,9.56,955.8,0,0]
[76360,100,"Phlox douglasii","White Admiral","RC",null,null,null,null,null,null,null,null,null,9.56,955.8,0,0]
[76399,100,"Phlox kelseyi","Rosette","RC",null,null,null,null,null,null,null,null,null,9.56,955.8,0,0]
[76385,100,"Phlox maculata","Alpha","RC",null,null,null,null,null,null,null,null,null,10.220000000000001,1021.95,0,0]
[76380,100,"Phlox maculata","Delta","RC",null,null,null,null,null,null,null,null,null,10.220000000000001,1021.95,0,0]
[76384,100,"Phlox maculata","Natascha","RC",null,null,null,null,null,null,null,null,null,10.220000000000001,1021.95,0,0]
[76389,100,"Phlox maculata","Schneelawine","RC",null,null,null,null,null,null,null,null,null,10.220000000000001,1021.95,0,0]
[76260,100,"Phlox paniculata","Blue Boy","RC",null,null,null,null,null,null,null,null,null,11.54,1154.25,0,0]
[76214,100,"Phlox paniculata","Blue Paradise","RC",null,null,null,null,null,null,null,null,null,11.54,1154.25,0,0]
[76261,100,"Phlox paniculata","Bright Eyes","RC",null,null,null,null,null,null,null,null,null,11.54,1154.25,0,0]
[76264,100,"Phlox paniculata","David","RC",null,null,null,null,null,null,null,null,null,11.54,1154.25,0,0]
[76511,100,"Phlox paniculata","Early® Blush Pop","RC",null,null,null,null,null,null,null,null,null,14.68,1468.22,0,0]
[76326,100,"Phlox paniculata","Early® Cerise","RC",null,null,null,null,null,null,null,null,null,14.68,1468.22,0,0]
[76508,100,"Phlox paniculata","Early® Lavender Pop","RC",null,null,null,null,null,null,null,null,null,14.68,1468.22,0,0]
[76343,100,"Phlox paniculata","Early® Pink","RC",null,null,null,null,null,null,null,null,null,14.68,1468.22,0,0]
[76327,100,"Phlox paniculata","Early® Purple Eye","RC",null,null,null,null,null,null,null,null,null,14.68,1468.22,0,0]
[76217,40,"Phlox paniculata","Early® Red","RC",null,null,null,null,null,null,null,null,null,26.45,1057.99,0,0]
[76217,100,"Phlox paniculata","Early® Red","RC",null,null,null,null,null,null,null,null,null,14.68,1468.22,0,0]
[76325,40,"Phlox paniculata","Early® White","RC",null,null,null,null,null,null,null,null,null,26.45,1057.99,0,0]
[76325,100,"Phlox paniculata","Early® White","RC",null,null,null,null,null,null,null,null,null,14.68,1468.22,0,0]
[76286,100,"Phlox paniculata","Eva Cullum","RC",null,null,null,null,null,null,null,null,null,11.54,1154.25,0,0]
[76308,40,"Phlox paniculata","Flame® Coral","RC",null,null,null,null,null,null,null,null,null,25.81,1032.51,0,0]
[76308,100,"Phlox paniculata","Flame® Coral","RC",null,null,null,null,null,null,null,null,null,14.05,1404.52,0,0]
[76349,40,"Phlox paniculata","Flame® Light Pink Imp.","RC",null,null,null,null,null,null,null,null,null,25.81,1032.51,0,0]
[76349,100,"Phlox paniculata","Flame® Light Pink Imp.","RC",null,null,null,null,null,null,null,null,null,14.05,1404.52,0,0]
[76504,40,"Phlox paniculata","Flame® Lilac Star","RC",null,null,null,null,null,null,null,null,null,25.81,1032.51,0,0]
[76504,100,"Phlox paniculata","Flame® Lilac Star","RC",null,null,null,null,null,null,null,null,null,14.05,1404.52,0,0]
[76312,40,"Phlox paniculata","Flame® Pink","RC",null,null,null,null,null,null,null,null,null,25.81,1032.51,0,0]
[76312,100,"Phlox paniculata","Flame® Pink","RC",null,null,null,null,null,null,null,null,null,14.05,1404.52,0,0]
[76313,40,"Phlox paniculata","Flame® Pink Eye","RC",null,null,null,null,null,null,null,null,null,25.81,1032.51,0,0]
[76313,100,"Phlox paniculata","Flame® Pink Eye","RC",null,null,null,null,null,null,null,null,null,14.05,1404.52,0,0]
[76346,40,"Phlox paniculata","Flame® Pro Cerise","RC",null,null,null,null,null,null,null,null,null,25.81,1032.51,0,0]
[76346,100,"Phlox paniculata","Flame® Pro Cerise","RC",null,null,null,null,null,null,null,null,null,14.05,1404.52,0,0]
[76309,100,"Phlox paniculata","Flame® Pro Light Blue","RC",null,null,null,null,null,null,null,null,null,14.05,1404.52,0,0]
[76503,40,"Phlox paniculata","Flame® Pro Pink Pop","RC",null,null,null,null,null,null,null,null,null,25.81,1032.51,0,0]
[76503,100,"Phlox paniculata","Flame® Pro Pink Pop","RC",null,null,null,null,null,null,null,null,null,14.05,1404.52,0,0]
[76314,40,"Phlox paniculata","Flame® Pro Purple","RC",null,null,null,null,null,null,null,null,null,25.81,1032.51,0,0]
[76314,100,"Phlox paniculata","Flame® Pro Purple","RC",null,null,null,null,null,null,null,null,null,14.05,1404.52,0,0]
[76344,100,"Phlox paniculata","Flame® Pro Soft Pink","RC",null,null,null,null,null,null,null,null,null,14.05,1404.52,0,0]
[76319,40,"Phlox paniculata","Flame® Pro Violet Charm","RC",null,null,null,null,null,null,null,null,null,25.81,1032.51,0,0]
[76319,100,"Phlox paniculata","Flame® Pro Violet Charm","RC",null,null,null,null,null,null,null,null,null,14.05,1404.52,0,0]
[76351,40,"Phlox paniculata","Flame® Pro White","RC",null,null,null,null,null,null,null,null,null,25.81,1032.51,{"$f":"P1230*(F1230+G1230+H1230+I1230+J1230+K1230+L1230+M1230+N1230)","v":0},{"$f":"Q1230*1.15","v":0}]
[76351,100,"Phlox paniculata","Flame® Pro White","RC",null,null,null,null,null,null,null,null,null,14.05,1404.52,0,0]
[76350,100,"Phlox paniculata","Flame® Purple","RC",null,null,null,null,null,null,null,null,null,14.05,1404.52,0,0]
[76315,40,"Phlox paniculata","Flame® Purple Eye","RC",null,null,null,null,null,null,null,null,null,25.81,1032.51,0,0]
[76315,100,"Phlox paniculata","Flame® Purple Eye","RC",null,null,null,null,null,null,null,null,null,14.05,1404.52,0,0]
[76316,40,"Phlox paniculata","Flame® Red","RC",null,null,null,null,null,null,null,null,null,25.81,1032.51,0,0]
[76316,100,"Phlox paniculata","Flame® Red","RC",null,null,null,null,null,null,null,null,null,14.05,1404.52,0,0]
[76510,100,"Phlox paniculata","Flame® Watermelon","RC",null,null,null,null,null,null,null,null,null,14.05,1404.52,0,0]
[76320,40,"Phlox paniculata","Flame® White Eye","RC",null,null,null,null,null,null,null,null,null,25.81,1032.51,0,0]
[76320,100,"Phlox paniculata","Flame® White Eye","RC",null,null,null,null,null,null,null,null,null,14.05,1404.52,0,0]
[76267,100,"Phlox paniculata","Franz Schubert","RC",null,null,null,null,null,null,null,null,null,11.54,1154.25,0,0]
[76355,100,"Phlox paniculata","Herbstwalzer","RC",null,null,null,null,null,null,null,null,null,11.54,1154.25,0,0]
[76270,100,"Phlox paniculata","Laura","RC",null,null,null,null,null,null,null,null,null,11.54,1154.25,0,0]
[76353,84,"Phlox paniculata","Narwiański Wir","TC",null,null,null,null,null,null,null,null,null,31.06,2609.34,0,0]
[76356,100,"Phlox paniculata","Nora Leigh","RC",null,null,null,null,null,null,null,null,null,11.54,1154.25,0,0]
[76242,100,"Phlox paniculata","Orange Perfection","RC",null,null,null,null,null,null,null,null,null,11.54,1154.25,0,0]
[76357,100,"Phlox paniculata","Spitfire","RC",null,null,null,null,null,null,null,null,null,11.54,1154.25,0,0]
[76358,100,"Phlox paniculata","Starfire","RC",null,null,null,null,null,null,null,null,null,11.54,1154.25,0,0]
[76243,100,"Phlox paniculata","Tenor","RC",null,null,null,null,null,null,null,null,null,11.54,1154.25,0,0]
[76352,84,"Phlox paniculata","Warsaw Sunrise","TC",null,null,null,null,null,null,null,null,null,32.4,2721.71,0,0]
[76372,100,"Phlox subulata","Atropurpurea","RC",null,null,null,null,null,null,null,null,null,8.9,889.65,0,0]
[76374,100,"Phlox subulata","Bavaria","RC",null,null,null,null,null,null,null,null,null,8.9,889.65,0,0]
[76375,100,"Phlox subulata","Benita","RC",null,null,null,null,null,null,null,null,null,8.9,889.65,0,0]
[76262,100,"Phlox subulata","Candy Stripes","RC",null,null,null,null,null,null,null,null,null,8.9,889.65,0,0]
[76259,100,"Phlox subulata","Coral Eye","RC",null,null,null,null,null,null,null,null,null,8.9,889.65,0,0]
[76263,100,"Phlox subulata","Crimson Beauty","RC",null,null,null,null,null,null,null,null,null,8.9,889.65,0,0]
[76361,100,"Phlox subulata","Drummond Pink","RC",null,null,null,null,null,null,null,null,null,8.9,889.65,0,0]
[76202,100,"Phlox subulata","Emerald Cushion Blue","RC",null,null,null,null,null,null,null,null,null,8.9,889.65,0,0]
[76266,100,"Phlox subulata","Fort Hill","RC",null,null,null,null,null,null,null,null,null,8.9,889.65,0,0]
[76362,100,"Phlox subulata","G.F. Wilson","RC",null,null,null,null,null,null,null,null,null,8.9,889.65,0,0]
[76363,100,"Phlox subulata","MacDaniel's Cushion","RC",null,null,null,null,null,null,null,null,null,8.9,889.65,0,0]
[76364,100,"Phlox subulata","Maischnee","RC",null,null,null,null,null,null,null,null,null,8.9,889.65,0,0]
[76365,100,"Phlox subulata","Moerheimii","RC",null,null,null,null,null,null,null,null,null,8.9,889.65,0,0]
[76366,100,"Phlox subulata","Oakington Blue Eyes","RC",null,null,null,null,null,null,null,null,null,8.9,889.65,0,0]
[76368,100,"Phlox subulata","Purple Beauty","RC",null,null,null,null,null,null,null,null,null,8.9,889.65,0,0]
[76272,100,"Phlox subulata","Red Wings","RC",null,null,null,null,null,null,null,null,null,8.9,889.65,0,0]
[76369,100,"Phlox subulata","Ronsdorfer Schöne","RC",null,null,null,null,null,null,null,null,null,8.9,889.65,0,0]
[76370,100,"Phlox subulata","Samson","RC",null,null,null,null,null,null,null,null,null,8.9,889.65,0,0]
[76273,100,"Phlox subulata","Scarlet Flame","RC",null,null,null,null,null,null,null,null,null,8.9,889.65,0,0]
[76274,100,"Phlox subulata","Snowflake","RC",null,null,null,null,null,null,null,null,null,8.9,889.65,0,0]
[76335,100,"Phlox subulata","Spring® Blue","RC",null,null,null,null,null,null,null,null,null,11.18,1117.8699999999999,0,0]
[76338,100,"Phlox subulata","Spring® Dark Pink","RC",null,null,null,null,null,null,null,null,null,11.18,1117.8699999999999,0,0]
[76341,100,"Phlox subulata","Spring® Hot Pink","RC",null,null,null,null,null,null,null,null,null,11.18,1117.8699999999999,0,0]
[76347,100,"Phlox subulata","Spring® Lilac","RC",null,null,null,null,null,null,null,null,null,11.18,1117.8699999999999,0,0]
[76505,100,"Phlox subulata","Spring® Pink Dark Eye","RC",null,null,null,null,null,null,null,null,null,11.18,1117.8699999999999,0,0]
[76340,100,"Phlox subulata","Spring® Purple","RC",null,null,null,null,null,null,null,null,null,11.18,1117.8699999999999,0,0]
[76506,100,"Phlox subulata","Spring® Scarlet","RC",null,null,null,null,null,null,null,null,null,11.18,1117.8699999999999,0,0]
[76339,100,"Phlox subulata","Spring® White","RC",null,null,null,null,null,null,null,null,null,11.18,1117.8699999999999,0,0]
[76219,100,"Phlox subulata","White Delight","RC",null,null,null,null,null,null,null,null,null,8.9,889.65,0,0]
[76373,100,"Phlox subulata","Zwergenteppich","RC",null,null,null,null,null,null,null,null,null,8.9,889.65,0,0]
[76397,100,"Phlox x hybrida","Bedazzled Lavender","RC",null,null,null,null,null,null,null,null,null,17.100000000000001,1710.28,0,0]
[76396,100,"Phlox x hybrida","Bedazzled Pink","RC",null,null,null,null,null,null,null,null,null,17.100000000000001,1710.28,0,0]
[76304,84,"Phlox x hybrida","Forever Pink","RC",null,null,null,null,null,null,null,null,null,20.39,1713.08,0,0]
[74626,100,"Phuopsis stylosa","Phuopsis stylosa","RC",null,null,null,null,null,null,null,null,null,11.05,1104.57,0,0]
[71432,100,"Phygelius aequalis","Cherry Ripe","RC",null,null,null,null,null,null,null,null,null,12.67,1267.49,0,0]
[71473,100,"Phygelius capensis","Candy Drops Cream","RC",null,null,null,null,null,null,null,null,null,16.78,1678.38,0,0]
[71474,100,"Phygelius capensis","Candy Drops Deep Rose","RC",null,null,null,null,null,null,null,null,null,16.78,1678.38,0,0]
[71475,100,"Phygelius capensis","Candy Drops Red","RC",null,null,null,null,null,null,null,null,null,16.78,1678.38,0,0]
[71476,100,"Phygelius capensis","Candy Drops Tangerine","RC",null,null,null,null,null,null,null,null,null,16.78,1678.38,0,0]
[71431,100,"Phygelius rectus","African Queen","RC",null,null,null,null,null,null,null,null,null,10.39,1039.4000000000001,0,0]
[73375,100,"Physostegia virginiana","Miss Manners","RC",null,null,null,null,null,null,null,null,null,14.3,1430.42,0,0]
[73359,100,"Physostegia virginiana","Vivid","RC",null,null,null,null,null,null,null,null,null,12.67,1267.49,0,0]
[70761,84,"Polemonium","Gold Feathers","TC",null,null,null,null,null,null,null,null,null,37.880000000000003,3181.88,0,0]
[70782,100,"Polemonium caeruleum","Brise d'Anjou","RC",null,null,null,null,null,null,null,null,null,22.84,2283.58,0,0]
[70757,100,"Polemonium reptans","Heaven Scent","RC",null,null,null,null,null,null,null,null,null,24.24,2423.7199999999998,{"$f":"P1294*(F1294+G1294+H1294+I1294+J1294+K1294+L1294+M1294+N1294)","v":0},{"$f":"Q1294*1.15","v":0}]
[70757,84,"Polemonium reptans","Heaven Scent","TC",null,null,null,null,null,null,null,null,null,32.619999999999997,2740.44,0,0]
[70753,100,"Polemonium reptans","Stairway to Heaven","RC",null,null,null,null,null,null,null,null,null,27.42,2742.22,0,0]
[70781,100,"Polemonium yezoense","Bressingham Purple","RC",null,null,null,null,null,null,null,null,null,22.96,2296.3200000000002,0,0]
[73361,100,"Potentilla tridentata","Nuuk","RC",null,null,null,null,null,null,null,null,null,11.7,1169.74,0,0]
[79156,84,"Primula vulgaris","Alison Holland","TC",null,null,null,null,null,null,null,null,null,33.01,2772.54,0,0]
[73358,100,"Prunella","Gruss aus Isernhagen","RC",null,null,null,null,null,null,null,null,null,11.7,1169.74,0,0]
[73384,100,"Prunella grandiflora","Alba","RC",null,null,null,null,null,null,null,null,null,11.7,1169.74,0,0]
[79885,100,"Prunella hybrid","Summer Daze","RC",null,null,null,null,null,null,null,null,null,17.04,1703.81,0,0]
[79310,84,"Pulmonaria","Moonshine","TC",null,null,null,null,null,null,null,null,null,31.03,2606.67,0,0]
[79318,84,"Pulmonaria","Silver Bouquet","TC",null,null,null,null,null,null,null,null,null,29.57,2483.6,0,0]
[79312,84,"Pulmonaria","Trevi Fountain","TC",null,null,null,null,null,null,null,null,null,28.93,2430.09,0,0]
[79496,84,"Pulmonaria angustifolia","Blue Ensign","TC",null,null,null,null,null,null,null,null,null,26.6,2234.79,0,0]
[79497,84,"Pulmonaria angustifolia","Twinkle Toe","TC",null,null,null,null,null,null,null,null,null,31.99,2686.93,0,0]
[74859,84,"Pulmonaria x hybrida","Shrimps on the Barbie","TC",null,null,null,null,null,null,null,null,null,29.57,2483.6,0,0]
[73355,100,"Pycnanthemum flexuosum","Pycnanthemum flexuosum","RC",null,null,null,null,null,null,null,null,null,10.96,1096.26,0,0]
[73356,100,"Pycnanthemum muticum","Pycnanthemum muticum","RC",null,null,null,null,null,null,null,null,null,10.96,1096.26,0,0]
[73357,100,"Pycnanthemum pilosum","Pycnanthemum pilosum","RC",null,null,null,null,null,null,null,null,null,10.96,1096.26,0,0]
[73365,100,"Raoulia","Hookeri Laxa","RC",null,null,null,null,null,null,null,null,null,13.33,1332.66,0,0]
[79737,100,"Rosmarinus officinalis","Capri","RC",null,null,null,null,null,null,null,null,null,10.32,1031.58,0,0]
[79201,100,"Rosmarinus officinalis","Rosmarinus officinalis","RC",null,null,null,null,null,null,null,null,null,10.32,1031.58,0,0]
[79772,100,"Rosmarinus prostratus","Rosmarinus prostratus","RC",null,null,null,null,null,null,null,null,null,10.32,1031.58,0,0]
[72949,84,"Rudbeckia fulgida","Forever Gold","TC",null,null,null,null,null,null,null,null,null,30.94,2598.64,0,0]
[72906,84,"Rudbeckia fulgida","Goldsturm","TC",null,null,null,null,null,null,null,null,null,25.24,2119.7399999999998,0,0]
[72906,100,"Rudbeckia fulgida","Goldsturm","RC",null,null,null,null,null,null,null,null,null,9.99,999.24,0,0]
[72924,84,"Rudbeckia fulgida","Little Goldstar","TC",null,null,null,null,null,null,null,null,null,33.71,2831.4,0,0]
[76408,40,"Rudbeckia fulgida","Sun Ka Ching","TC",null,null,null,null,null,null,null,null,null,47.15,1886.09,0,0]
[76408,84,"Rudbeckia fulgida","Sun Ka Ching","TC",null,null,null,null,null,null,null,null,null,29.89,2510.35,0,0]
[72948,84,"Rudbeckia hirta","Flamenco® Apricot","TC",null,null,null,null,null,null,null,null,null,35.24,2959.82,0,0]
[76413,84,"Rudbeckia hirta","Flamenco® Bright Orange","TC",null,null,null,null,null,null,null,null,null,35.24,2959.82,0,0]
[72993,84,"Rudbeckia hirta","Flamenco® Dark Orange","TC",null,null,null,null,null,null,null,null,null,35.24,2959.82,0,0]
[72994,84,"Rudbeckia hirta","Flamenco® True Red","TC",null,null,null,null,null,null,null,null,null,35.24,2959.82,0,0]
[72992,84,"Rudbeckia hirta","Flamenco® Vanilla","TC",null,null,null,null,null,null,null,null,null,35.24,2959.82,0,0]
[76414,84,"Rudbeckia hirta","Flamenco® Yellow","TC",null,null,null,null,null,null,null,null,null,35.24,2959.82,0,0]
[76433,84,"Rudbeckia hirta","Littlebeckia Ballerina","TC",null,null,null,null,null,null,null,null,null,31.13,2614.69,0,0]
[72954,84,"Rudbeckia hirta","Littlebeckia™ Sunrise","TC",null,null,null,null,null,null,null,null,null,29.53,2480.92,0,0]
[72982,84,"Rudbeckia hirta","Littlebeckia™ Sunshine","TC",null,null,null,null,null,null,null,null,null,31.13,2614.69,0,0]
[72974,84,"Rudbeckia hirta","SmileyZ™ Big Joy","TC",null,null,null,null,null,null,null,null,null,32.049999999999997,2692.28,0,0]
[72984,84,"Rudbeckia hirta","SmileyZ™ Big Kiss","TC",null,null,null,null,null,null,null,null,null,32.049999999999997,2692.28,0,0]
[72986,84,"Rudbeckia hirta","SmileyZ™ Big Love","TC",null,null,null,null,null,null,null,null,null,32.049999999999997,2692.28,0,0]
[72977,84,"Rudbeckia hirta","SmileyZ™ Big Luck","TC",null,null,null,null,null,null,null,null,null,32.049999999999997,2692.28,0,0]
[72976,84,"Rudbeckia hirta","SmileyZ™ Big Shine","TC",null,null,null,null,null,null,null,null,null,32.049999999999997,2692.28,0,0]
[72985,84,"Rudbeckia hirta","SmileyZ™ Big Smile","TC",null,null,null,null,null,null,null,null,null,32.049999999999997,2692.28,0,0]
[72942,84,"Rudbeckia hirta","SmileyZ™ Big Sun","TC",null,null,null,null,null,null,null,null,null,33.64,2826.05,0,0]
[76410,84,"Rudbeckia hirta","SmileyZ™ Divine","TC",null,null,null,null,null,null,null,null,null,31.13,2614.69,0,0]
[76430,84,"Rudbeckia hirta","SmileyZ™ Double Kissing","TC",null,null,null,null,null,null,null,null,null,31.13,2614.69,0,0]
[72933,84,"Rudbeckia hirta","SmileyZ™ Giggling","TC",null,null,null,null,null,null,null,null,null,31.13,2614.69,0,0]
[76431,84,"Rudbeckia hirta","SmileyZ™ Grace","TC",null,null,null,null,null,null,null,null,null,31.13,2614.69,0,0]
[72934,84,"Rudbeckia hirta","SmileyZ™ Happy","TC",null,null,null,null,null,null,null,null,null,31.13,2614.69,0,0]
[76425,84,"Rudbeckia hirta","SmileyZ™ Cheerful","TC",null,null,null,null,null,null,null,null,null,33.229999999999997,2791.27,0,0]
[76424,84,"Rudbeckia hirta","SmileyZ™ Joyful","TC",null,null,null,null,null,null,null,null,null,33.229999999999997,2791.27,0,0]
[72932,84,"Rudbeckia hirta","SmileyZ™ Kissing","TC",null,null,null,null,null,null,null,null,null,32.72,2748.46,0,0]
[72952,84,"Rudbeckia hirta","SmileyZ™ Lemon","TC",null,null,null,null,null,null,null,null,null,33.229999999999997,2791.27,0,0]
[72951,84,"Rudbeckia hirta","SmileyZ™ Loving","TC",null,null,null,null,null,null,null,null,null,34.82,2925.04,0,0]
[72987,84,"Rudbeckia hirta","SmileyZ™ Party","TC",null,null,null,null,null,null,null,null,null,31.13,2614.69,0,0]
[72991,84,"Rudbeckia hirta","SmileyZ™ Passion","TC",null,null,null,null,null,null,null,null,null,32.72,2748.46,0,0]
[72989,84,"Rudbeckia hirta","SmileyZ™ Star of Life","TC",null,null,null,null,null,null,null,null,null,32.72,2748.46,0,0]
[76423,84,"Rudbeckia hirta","SmileyZ™ Sunbeam","TC",null,null,null,null,null,null,null,null,null,31.13,2614.69,0,0]
[76432,84,"Rudbeckia hirta","SmileyZ™ Sunbeam Yellow","TC",null,null,null,null,null,null,null,null,null,31.13,2614.69,0,0]
[72937,84,"Rudbeckia hirta","SmileyZ™ Tiger","TC",null,null,null,null,null,null,null,null,null,33.229999999999997,2791.27,0,0]
[72929,84,"Rudbeckia hirta","Sunbeckia® Alicia","TC",null,null,null,null,null,null,null,null,null,35.24,2959.82,0,0]
[76411,84,"Rudbeckia hirta","Sunbeckia® Carolina","TC",null,null,null,null,null,null,null,null,null,35.24,2959.82,0,0]
[76412,84,"Rudbeckia hirta","Sunbeckia® Maya","TC",null,null,null,null,null,null,null,null,null,35.24,2959.82,0,0]
[76415,84,"Rudbeckia hirta","Sunbeckia® Mia","TC",null,null,null,null,null,null,null,null,null,35.24,2959.82,0,0]
[72981,84,"Rudbeckia hirta","Sunbeckia® Ophelia","TC",null,null,null,null,null,null,null,null,null,35.24,2959.82,{"$f":"P1358*(F1358+G1358+H1358+I1358+J1358+K1358+L1358+M1358+N1358)","v":0},{"$f":"Q1358*1.15","v":0}]
[72979,84,"Rudbeckia hirta","Sunbeckia® Paulina","TC",null,null,null,null,null,null,null,null,null,35.24,2959.82,0,0]
[76416,84,"Rudbeckia hirta","Sunbeckia® Victoria","TC",null,null,null,null,null,null,null,null,null,35.24,2959.82,0,0]
[78139,100,"Sagina subulata","Green Moss","RC",null,null,null,null,null,null,null,null,null,12.55,1254.83,0,0]
[78140,100,"Sagina subulata","Lime Moss","RC",null,null,null,null,null,null,null,null,null,12.55,1254.83,0,0]
[77357,100,"Salvia forreri","Salvia forreri","RC",null,null,null,null,null,null,null,null,null,11.93,1193.28,0,0]
[77318,100,"Salvia gregii","Amethyst Lips","RC",null,null,null,null,null,null,null,null,null,15.28,1528.17,0,0]
[78276,100,"Salvia gregii","Blue Note","RC",null,null,null,null,null,null,null,null,null,17.170000000000002,1716.53,0,0]
[77306,100,"Salvia gregii","Cherry Lips","RC",null,null,null,null,null,null,null,null,null,14.96,1495.59,0,0]
[78284,100,"Salvia gregii","Joy","RC",null,null,null,null,null,null,null,null,null,18.399999999999999,1840.08,0,0]
[77315,100,"Salvia gregii","Lipstick","RC",null,null,null,null,null,null,null,null,null,12.02,1202.32,0,0]
[77320,100,"Salvia gregii","Royal Bumble","RC",null,null,null,null,null,null,null,null,null,12.02,1202.32,0,0]
[78260,84,"Salvia guarantica","Black and Blue","RC",null,null,null,null,null,null,null,null,null,12.65,1062.96,0,0]
[78289,84,"Salvia hybrida","Amante","RC",null,null,null,null,null,null,null,null,null,16.79,1410.76,0,0]
[78250,84,"Salvia hybrida","Amistad","RC",null,null,null,null,null,null,null,null,null,16.64,1397.39,0,0]
[78261,84,"Salvia hybrida","Ember's Wish","RC",null,null,null,null,null,null,null,null,null,15.84,1330.5,0,0]
[78281,84,"Salvia hybrida","Love & Wishes","RC",null,null,null,null,null,null,null,null,null,15.84,1330.5,0,0]
[78227,84,"Salvia hybrida","Pink Amistad","RC",null,null,null,null,null,null,null,null,null,16.64,1397.39,0,0]
[78262,84,"Salvia hybrida","Wendy's Wish","RC",null,null,null,null,null,null,null,null,null,15.84,1330.5,0,0]
[77358,100,"Salvia jurisicii","Rosea","RC",null,null,null,null,null,null,null,null,null,12.02,1202.32,0,0]
[77334,100,"Salvia jurisicii","Salvia jurisicii","RC",null,null,null,null,null,null,null,null,null,12.02,1202.32,0,0]
[77335,100,"Salvia licioides","Salvia licioides","RC",null,null,null,null,null,null,null,null,null,12.02,1202.32,0,0]
[77313,100,"Salvia microphyllla","Gletsjer","RC",null,null,null,null,null,null,null,null,null,12.02,1202.32,0,0]
[78282,100,"Salvia microphyllla","Hot Lips","RC",null,null,null,null,null,null,null,null,null,12.02,1202.32,0,0]
[77311,100,"Salvia nemorosa","Alba (Adrian)","RC",null,null,null,null,null,null,null,null,null,11.87,1187.33,0,0]
[78203,100,"Salvia nemorosa","Amethyst","RC",null,null,null,null,null,null,null,null,null,11.87,1187.33,0,0]
[78240,100,"Salvia nemorosa","Blauhügel","RC",null,null,null,null,null,null,null,null,null,11.87,1187.33,0,0]
[78285,100,"Salvia nemorosa","Blue Bouquetta","RC",null,null,null,null,null,null,null,null,null,15.4,1539.66,0,0]
[78236,100,"Salvia nemorosa","Blue Field","RC",null,null,null,null,null,null,null,null,null,15.4,1539.66,0,0]
[78204,100,"Salvia nemorosa","Caradonna","RC",null,null,null,null,null,null,null,null,null,11.87,1187.33,0,0]
[78298,100,"Salvia nemorosa","Caradonna Pink","RC",null,null,null,null,null,null,null,null,null,15.18,1518.08,0,0]
[78207,100,"Salvia nemorosa","Mainacht","RC",null,null,null,null,null,null,null,null,null,12.02,1202.32,0,0]
[78216,100,"Salvia nemorosa","Marcus™","RC",null,null,null,null,null,null,null,null,null,18.12,1812.2,0,0]
[77336,100,"Salvia nemorosa","Midnight Purple","RC",null,null,null,null,null,null,null,null,null,13.49,1348.95,0,0]
[78299,100,"Salvia nemorosa","Midnight Rose","RC",null,null,null,null,null,null,null,null,null,13.49,1348.95,0,0]
[78238,100,"Salvia nemorosa","Night Field","RC",null,null,null,null,null,null,null,null,null,14.94,1493.7,0,0]
[78210,100,"Salvia nemorosa","Ostfriesland","RC",null,null,null,null,null,null,null,null,null,10.88,1088.0999999999999,0,0]
[77317,100,"Salvia nemorosa","Pink Beauty","RC",null,null,null,null,null,null,null,null,null,11.87,1187.33,0,0]
[78287,100,"Salvia nemorosa","Rianne","RC",null,null,null,null,null,null,null,null,null,15.18,1518.08,0,0]
[77321,100,"Salvia nemorosa","Rügen","RC",null,null,null,null,null,null,null,null,null,11.87,1187.33,0,0]
[78272,100,"Salvia nemorosa","Salute Deep Blue Imp.","RC",null,null,null,null,null,null,null,null,null,12.93,1293.05,0,0]
[78273,100,"Salvia nemorosa","Salute Ice Blue","RC",null,null,null,null,null,null,null,null,null,12.93,1293.05,0,0]
[78288,100,"Salvia nemorosa","Salute Light Pink","RC",null,null,null,null,null,null,null,null,null,12.93,1293.05,0,0]
[78275,100,"Salvia nemorosa","Salute White","RC",null,null,null,null,null,null,null,null,null,12.93,1293.05,0,0]
[77323,100,"Salvia nemorosa","Sensation Deep Blue Imp.","RC",null,null,null,null,null,null,null,null,null,13.2,1319.63,0,0]
[77324,100,"Salvia nemorosa","Sensation Deep Rose Imp.","RC",null,null,null,null,null,null,null,null,null,13.2,1319.63,0,0]
[77325,100,"Salvia nemorosa","Sensation White","RC",null,null,null,null,null,null,null,null,null,13.2,1319.63,0,0]
[78234,100,"Salvia nemorosa","Schneehügel","RC",null,null,null,null,null,null,null,null,null,11.87,1187.33,0,0]
[78213,100,"Salvia nemorosa","Schwellenburg","RC",null,null,null,null,null,null,null,null,null,12.87,1286.55,0,0]
[78214,100,"Salvia nemorosa","Viola Klose","RC",null,null,null,null,null,null,null,null,null,12.87,1286.55,0,0]
[78246,100,"Salvia officinalis","Berggarten","RC",null,null,null,null,null,null,null,null,null,11.05,1104.57,0,0]
[78206,100,"Salvia officinalis","Icterina","RC",null,null,null,null,null,null,null,null,null,11.05,1104.57,0,0]
[77319,100,"Salvia officinalis","Purpurascens","RC",null,null,null,null,null,null,null,null,null,11.05,1104.57,0,0]
[77327,100,"Salvia officinalis","Tricolor","RC",null,null,null,null,null,null,null,null,null,11.05,1104.57,0,0]
[77322,100,"Salvia uliginosa","Salvia uliginosa","RC",null,null,null,null,null,null,null,null,null,12.02,1202.32,0,0]
[78211,100,"Salvia verticillata ","Purple Rain","RC",null,null,null,null,null,null,null,null,null,12.02,1202.32,0,0]
[78297,100,"Salvia x hybrida","Carina","RC",null,null,null,null,null,null,null,null,null,18.12,1812.2,0,0]
[77309,100,"Salvia x hybrida","Feathers Flamingo","RC",null,null,null,null,null,null,null,null,null,15.28,1528.17,0,0]
[77310,100,"Salvia x hybrida","Feathers Peacock","RC",null,null,null,null,null,null,null,null,null,15.28,1528.17,0,0]
[77316,100,"Salvia x jamensis","Nachtvlinder","RC",null,null,null,null,null,null,null,null,null,12.02,1202.32,0,0]
[70506,102,"Santolina chamaecyparissus","Santolina chamaecyparissus","RC",null,null,null,null,null,null,null,null,null,11.66,1189.0899999999999,0,0]
[70506,100,"Santolina chamaecyparissus","Santolina chamaecyparissus","RC",null,null,null,null,null,null,null,null,null,10.32,1031.58,0,0]
[70505,102,"Santolina rosmarinifolia","Lemon Fizz","RC",null,null,null,null,null,null,null,null,null,11.66,1189.0899999999999,0,0]
[70505,100,"Santolina rosmarinifolia","Lemon Fizz","RC",null,null,null,null,null,null,null,null,null,10.32,1031.58,0,0]
[70508,100,"Santolina rosmarinifolia","Santolina rosmarinifolia","RC",null,null,null,null,null,null,null,null,null,10.32,1031.58,{"$f":"P1422*(F1422+G1422+H1422+I1422+J1422+K1422+L1422+M1422+N1422)","v":0},{"$f":"Q1422*1.15","v":0}]
[70302,100,"Saponaria hybrida","Bressingham Pink","RC",null,null,null,null,null,null,null,null,null,11.93,1193.28,0,0]
[70303,100,"Saponaria x olivana","Saponaria x olivana","RC",null,null,null,null,null,null,null,null,null,11.93,1193.28,0,0]
[75255,100,"Saxifraga arendsii","Alpino Early™ Carnival","RC",null,null,null,null,null,null,null,null,null,12.9,1289.8599999999999,0,0]
[71848,100,"Saxifraga arendsii","Alpino Early™ Lime","RC",null,null,null,null,null,null,null,null,null,12.9,1289.8599999999999,0,0]
[75256,100,"Saxifraga arendsii","Alpino Early™ Magic Salmon","RC",null,null,null,null,null,null,null,null,null,12.9,1289.8599999999999,0,0]
[71849,100,"Saxifraga arendsii","Alpino Early™ Picotee","RC",null,null,null,null,null,null,null,null,null,12.9,1289.8599999999999,0,0]
[71828,100,"Saxifraga arendsii","Alpino Early™ Rose","RC",null,null,null,null,null,null,null,null,null,12.9,1289.8599999999999,0,0]
[71801,100,"Saxifraga arendsii","Scenic Red","RC",null,null,null,null,null,null,null,null,null,12.52,1251.6400000000001,0,0]
[71802,100,"Saxifraga arendsii","Scenic White","RC",null,null,null,null,null,null,null,null,null,12.52,1251.6400000000001,0,0]
[75081,100,"Scabiosa columbaria","Barocca","RC",null,null,null,null,null,null,null,null,null,13,1300.08,0,0]
[71536,100,"Scabiosa columbaria","Butterfly Blue","RC",null,null,null,null,null,null,null,null,null,13,1300.08,0,0]
[71524,100,"Scabiosa columbaria","Flutter™ Deep Blue","RC",null,null,null,null,null,null,null,null,null,19.37,1937.1,0,0]
[71525,100,"Scabiosa columbaria","Flutter™ Pure White","RC",null,null,null,null,null,null,null,null,null,19.37,1937.1,0,0]
[71545,100,"Scabiosa columbaria","Flutter™ Rose Pink","RC",null,null,null,null,null,null,null,null,null,19.37,1937.1,0,0]
[74801,100,"Scabiosa columbaria","Mariposa Blue","RC",null,null,null,null,null,null,null,null,null,18.38,1837.68,0,0]
[71537,100,"Scabiosa columbaria","Pink Mist","RC",null,null,null,null,null,null,null,null,null,13,1300.08,0,0]
[76717,100,"Scutellaria indica","var. parviflora","RC",null,null,null,null,null,null,null,null,null,11.93,1193.28,0,0]
[76730,100,"Scutellaria scordifolia","Scutellaria scordifolia","RC",null,null,null,null,null,null,null,null,null,11.93,1193.28,0,0]
[70466,84,"Sedum","Globe Pink","TC",null,null,null,null,null,null,null,null,null,31.32,2630.75,0,0]
[70465,84,"Sedum","Globe Purple","TC",null,null,null,null,null,null,null,null,null,31.32,2630.75,0,0]
[70464,84,"Sedum","Globe Yellow","TC",null,null,null,null,null,null,null,null,null,31.32,2630.75,0,0]
[75277,100,"Sedum","Little Miss Sunshine","RC",null,null,null,null,null,null,null,null,null,14.3,1430,0,0]
[71889,102,"Sedum","SunSparkler® Dazzlebery","RC",null,null,null,null,null,null,null,null,null,17.39,1773.85,0,0]
[71889,100,"Sedum","SunSparkler® Dazzlebery","RC",null,null,null,null,null,null,null,null,null,17.170000000000002,1716.65,0,0]
[71891,102,"Sedum","SunSparkler® Firecracker","RC",null,null,null,null,null,null,null,null,null,17.39,1773.85,0,0]
[71891,100,"Sedum","SunSparkler® Firecracker","RC",null,null,null,null,null,null,null,null,null,17.170000000000002,1716.65,0,0]
[75232,102,"Sedum","SunSparkler® Cherry Tart","RC",null,null,null,null,null,null,null,null,null,17.39,1773.85,0,0]
[75232,100,"Sedum","SunSparkler® Cherry Tart","RC",null,null,null,null,null,null,null,null,null,17.170000000000002,1716.65,0,0]
[71890,102,"Sedum","SunSparkler® Lime Zinger","RC",null,null,null,null,null,null,null,null,null,17.39,1773.85,0,0]
[71890,100,"Sedum","SunSparkler® Lime Zinger","RC",null,null,null,null,null,null,null,null,null,17.170000000000002,1716.65,0,0]
[75252,102,"Sedum","SunSparkler® Plum Dazzled","RC",null,null,null,null,null,null,null,null,null,17.39,1773.85,0,0]
[75252,100,"Sedum","SunSparkler® Plum Dazzled","RC",null,null,null,null,null,null,null,null,null,17.170000000000002,1716.65,0,0]
[75262,102,"Sedum","SunSparkler® Wildfire","RC",null,null,null,null,null,null,null,null,null,17.39,1773.85,0,0]
[75262,100,"Sedum","SunSparkler® Wildfire","RC",null,null,null,null,null,null,null,null,null,17.170000000000002,1716.65,0,0]
[70461,100,"Sedum acre","Yellow Queen","RC",null,null,null,null,null,null,null,null,null,10.32,1031.58,0,0]
[75268,100,"Sedum album","Athoum","RC",null,null,null,null,null,null,null,null,null,10.32,1031.58,0,0]
[71871,100,"Sedum album","Coral Carpet","RC",null,null,null,null,null,null,null,null,null,10.32,1031.58,0,0]
[70447,100,"Sedum album","Mural","RC",null,null,null,null,null,null,null,null,null,10.32,1031.58,0,0]
[71888,100,"Sedum cauticola","Lidakense","RC",null,null,null,null,null,null,null,null,null,10.32,1031.58,0,0]
[75270,100,"Sedum cauticola","Red Canyon","RC",null,null,null,null,null,null,null,null,null,11.12,1111.5,0,0]
[75269,100,"Sedum cauticola","Sedum cauticola","RC",null,null,null,null,null,null,null,null,null,10.32,1031.58,0,0]
[70452,100,"Sedum cyaneum","Rosenteppich","RC",null,null,null,null,null,null,null,null,null,10.32,1031.58,0,0]
[75260,100,"Sedum dasyphyllum","Sedum dasyphyllum","RC",null,null,null,null,null,null,null,null,null,10.32,1031.58,0,0]
[75283,100,"Sedum ewersii","Rose","RC",null,null,null,null,null,null,null,null,null,11.12,1111.5,0,0]
[75259,100,"Sedum floriferum","Sedum floriferum","RC",null,null,null,null,null,null,null,null,null,10.32,1031.58,0,0]
[75285,100,"Sedum floriferum","Weihenstephaner Gold","RC",null,null,null,null,null,null,null,null,null,10.32,1031.58,0,0]
[70438,100,"Sedum forsterianum","Elegans","RC",null,null,null,null,null,null,null,null,null,11.29,1128.5999999999999,0,0]
[71852,100,"Sedum hakonense","Chocolate Ball","RC",null,null,null,null,null,null,null,null,null,11.29,1128.5999999999999,0,0]
[70462,100,"Sedum hybridum","Bertram Anderson","RC",null,null,null,null,null,null,null,null,null,10.32,1031.58,0,0]
[79763,100,"Sedum hybridum","Carl","RC",null,null,null,null,null,null,null,null,null,11.29,1128.5999999999999,0,0]
[70421,100,"Sedum hybridum","Herbstfreude","RC",null,null,null,null,null,null,null,null,null,11.29,1128.5999999999999,0,0]
[70423,100,"Sedum hybridum","Chocolate Drop","RC",null,null,null,null,null,null,null,null,null,14.3,1430,0,0]
[70443,100,"Sedum hybridum","Jose Aubergine","RC",null,null,null,null,null,null,null,null,null,15.72,1572.49,0,0]
[70444,100,"Sedum hybridum","Karfunkelstein","RC",null,null,null,null,null,null,null,null,null,11.75,1175.2,0,0]
[70431,100,"Sedum hybridum","Purple Emperor","RC",null,null,null,null,null,null,null,null,null,11.29,1128.5999999999999,0,0]
[70451,100,"Sedum hybridum","Red Sparkle","RC",null,null,null,null,null,null,null,null,null,11.29,1128.5999999999999,0,0]
[70459,100,"Sedum hybridum","Vera Jameson","RC",null,null,null,null,null,null,null,null,null,11.29,1128.5999999999999,0,0]
[70474,100,"Sedum kamtschaticum","Green Edge","RC",null,null,null,null,null,null,null,null,null,11.75,1175.2,0,0]
[70442,100,"Sedum kamtschaticum","Immergrün","RC",null,null,null,null,null,null,null,null,null,10.32,1031.58,0,0]
[70475,100,"Sedum kamtschaticum","The Edge","RC",null,null,null,null,null,null,null,null,null,11.75,1175.2,0,0]
[70457,100,"Sedum kamtschaticum","Variegatum","RC",null,null,null,null,null,null,null,null,null,10.32,1031.58,0,0]
[70448,100,"Sedum makinoi","Ogon","RC",null,null,null,null,null,null,null,null,null,11.05,1104.57,0,0]
[70454,100,"Sedum makinoi","Sedum makinoi","RC",null,null,null,null,null,null,null,null,null,10.32,1031.58,0,0]
[70460,100,"Sedum reflexum","Yellow Cushion","RC",null,null,null,null,null,null,null,null,null,11.7,1169.74,{"$f":"P1486*(F1486+G1486+H1486+I1486+J1486+K1486+L1486+M1486+N1486)","v":0},{"$f":"Q1486*1.15","v":0}]
[70427,100,"Sedum rupestre","Angelina","RC",null,null,null,null,null,null,null,null,null,10.32,1031.58,0,0]
[71847,100,"Sedum rupestre","Blue Spruce","RC",null,null,null,null,null,null,null,null,null,10.32,1031.58,0,0]
[71843,100,"Sedum rupestre","Gold","RC",null,null,null,null,null,null,null,null,null,10.32,1031.58,0,0]
[71844,100,"Sedum sexangulare","Sedum sexangulare","RC",null,null,null,null,null,null,null,null,null,10.32,1031.58,0,0]
[79766,100,"Sedum sieboldii","Mediovariegatum","RC",null,null,null,null,null,null,null,null,null,10.32,1031.58,0,0]
[71845,100,"Sedum sieboldii","Sedum sieboldii","RC",null,null,null,null,null,null,null,null,null,10.32,1031.58,0,0]
[75244,100,"Sedum spathulifolium","Cape Blanco","RC",null,null,null,null,null,null,null,null,null,11.37,1137.1500000000001,0,0]
[71887,100,"Sedum spathulifolium","Purpureum","RC",null,null,null,null,null,null,null,null,null,11.37,1137.1500000000001,0,0]
[79754,100,"Sedum spectabile","Brillant","RC",null,null,null,null,null,null,null,null,null,11.37,1137.1500000000001,0,0]
[79784,100,"Sedum spectabile","Hot Stuff","RC",null,null,null,null,null,null,null,null,null,20.86,2086.11,0,0]
[79762,100,"Sedum spectabile","Stardust","RC",null,null,null,null,null,null,null,null,null,11.37,1137.1500000000001,0,0]
[70439,100,"Sedum spurium","Album","RC",null,null,null,null,null,null,null,null,null,10.32,1031.58,0,0]
[70437,100,"Sedum spurium","Deep Rose","RC",null,null,null,null,null,null,null,null,null,13.76,1375.51,0,0]
[70429,100,"Sedum spurium","Dragons Blood","RC",null,null,null,null,null,null,null,null,null,10.16,1015.95,0,0]
[75251,100,"Sedum spurium","Fuldaglut","RC",null,null,null,null,null,null,null,null,null,10.32,1031.58,0,0]
[75257,100,"Sedum spurium","Purpureum","RC",null,null,null,null,null,null,null,null,null,10.32,1031.58,0,0]
[70449,100,"Sedum spurium","Purpurteppich","RC",null,null,null,null,null,null,null,null,null,10.32,1031.58,0,0]
[75230,100,"Sedum spurium","Schorbuser Blut","RC",null,null,null,null,null,null,null,null,null,10.32,1031.58,0,0]
[70456,100,"Sedum spurium","Splendens","RC",null,null,null,null,null,null,null,null,null,10.32,1031.58,0,0]
[79735,100,"Sedum spurium","Tricolor","RC",null,null,null,null,null,null,null,null,null,10.32,1031.58,0,0]
[75275,100,"Sedum spurium","Variegatum","RC",null,null,null,null,null,null,null,null,null,10.32,1031.58,0,0]
[75276,100,"Sedum takesimense","Atlantis","RC",null,null,null,null,null,null,null,null,null,19.05,1904.76,0,0]
[79783,100,"Sedum telephium","Cloud Walker","RC",null,null,null,null,null,null,null,null,null,20.54,2054.2600000000002,0,0]
[71886,100,"Sedum telephium","Dark Magic","RC",null,null,null,null,null,null,null,null,null,20.99,2098.85,0,0]
[79765,100,"Sedum telephium","Matrona","RC",null,null,null,null,null,null,null,null,null,11.37,1137.1500000000001,0,0]
[79785,100,"Sedum telephium","Mr. Goodbud","RC",null,null,null,null,null,null,null,null,null,19.2,1920.49,0,0]
[75245,100,"Sedum telephium","Oriental Dancer","TC/RC",null,null,null,null,null,null,null,null,null,22.58,2258.1,0,0]
[71837,100,"Sedum telephium","Thunderhead","RC",null,null,null,null,null,null,null,null,null,20.99,2098.85,0,0]
[71859,100,"Sedum telephium","Touchdown Teak","RC",null,null,null,null,null,null,null,null,null,20.86,2086.11,0,0]
[74587,84,"Sempervivum","Aquila","RC",null,null,null,null,null,null,null,null,null,11.35,953.27,0,0]
[74546,40,"Sempervivum","BigSam™ Chrome Green","RC",null,null,null,null,null,null,null,null,null,17.37,694.9,0,0]
[74551,40,"Sempervivum","BigSam™ Pink Pomelo","RC",null,null,null,null,null,null,null,null,null,17.37,694.9,0,0]
[74543,40,"Sempervivum","BigSam™ Purple Quartz","RC",null,null,null,null,null,null,null,null,null,17.37,694.9,0,0]
[76113,40,"Sempervivum","BigSam™ Ruby Star Imp.","RC",null,null,null,null,null,null,null,null,null,17.37,694.9,0,0]
[76115,40,"Sempervivum","BigSam™ Black Cherry","RC",null,null,null,null,null,null,null,null,null,17.37,694.9,0,0]
[76114,40,"Sempervivum","BigSam™ Red Mellow","RC",null,null,null,null,null,null,null,null,null,17.37,694.9,0,0]
[79509,84,"Sempervivum","Cassiopea","RC",null,null,null,null,null,null,null,null,null,11.35,953.27,0,0]
[74545,84,"Sempervivum","Dr. Fritz Köhlein","RC",null,null,null,null,null,null,null,null,null,11.35,953.27,0,0]
[79581,84,"Sempervivum","Draco","RC",null,null,null,null,null,null,null,null,null,11.35,953.27,0,0]
[76117,84,"Sempervivum","Lacerta","RC",null,null,null,null,null,null,null,null,null,11.35,953.27,0,0]
[74582,84,"Sempervivum","Leo","RC",null,null,null,null,null,null,null,null,null,12.85,1079.01,0,0]
[74541,84,"Sempervivum","Reinhard","RC",null,null,null,null,null,null,null,null,null,11.35,953.27,0,0]
[74544,84,"Sempervivum","Rosa Mädchen","RC",null,null,null,null,null,null,null,null,null,11.35,953.27,0,0]
[76118,84,"Sempervivum","Scorpius","RC",null,null,null,null,null,null,null,null,null,11.35,953.27,0,0]
[79506,84,"Sempervivum","Sirius","RC",null,null,null,null,null,null,null,null,null,11.35,953.27,0,0]
[79582,84,"Sempervivum","Taurus","RC",null,null,null,null,null,null,null,null,null,11.35,953.27,0,0]
[74624,84,"Senecio candidans","Angel Wings","TC",null,null,null,null,null,null,null,null,null,39.340000000000003,3304.95,0,0]
[74539,84,"Senecio cineraria","Donkey's Ears","TC",null,null,null,null,null,null,null,null,null,26.89,2258.86,0,0]
[79568,84,"Schizachyrium scoparium","Blue Heaven","TC",null,null,null,null,null,null,null,null,null,33.68,2828.72,0,0]
[79194,84,"Schizachyrium scoparium","Smoke Signal","TC",null,null,null,null,null,null,null,null,null,33.68,2828.72,0,0]
[79145,84,"Schizachyrium scoparium","Standing Ovation","TC",null,null,null,null,null,null,null,null,null,36.86,3096.26,0,0]
[79195,84,"Schizachyrium scoparium","Twilight Zone","TC",null,null,null,null,null,null,null,null,null,33.68,2828.72,0,0]
[79911,100,"Sidalcea hybrida","Elsie Heugh","RC",null,null,null,null,null,null,null,null,null,11.05,1104.57,0,0]
[71557,100,"Silene × robotii","Rollies Favorite","RC",null,null,null,null,null,null,null,null,null,18.440000000000001,1844.05,0,0]
[71608,84,"Silene viscaria (Lychnis)","Lollipop Pink (Cherry Bubbles)","TC",null,null,null,null,null,null,null,null,null,32.049999999999997,2692.28,0,0]
[73984,100,"Solidago","Golden Dwarf","RC",null,null,null,null,null,null,null,null,null,10.64,1063.92,0,0]
[74019,100,"Solidago flexicaulis","Flexi Belle","RC",null,null,null,null,null,null,null,null,null,12.02,1202.32,0,0]
[73986,100,"Solidago hybrida","Strahlenkrone","RC",null,null,null,null,null,null,null,null,null,10.64,1063.92,0,0]
[74020,100,"Solidago sphacelata","Golden Fleece","RC",null,null,null,null,null,null,null,null,null,11.93,1193.28,0,0]
[74308,40,"Sorghastrum nutans","JS Active Vulcano","RC",null,null,null,null,null,null,null,null,null,33.11,1324.26,0,0]
[74308,84,"Sorghastrum nutans","JS Active Vulcano","RC",null,null,null,null,null,null,null,null,null,21.54,1809.4,0,0]
[74502,100,"Stachys byzantina","Helene Von Stein (Big Ears)","RC",null,null,null,null,null,null,null,null,null,12.35,1234.9100000000001,0,0]
[79560,100,"Stachys byzantina","Silver Carpet","RC",null,null,null,null,null,null,null,null,null,12.35,1234.9100000000001,0,0]
[74527,100,"Stachys monnieri","Hummelo","RC",null,null,null,null,null,null,null,null,null,12.35,1234.9100000000001,{"$f":"P1550*(F1550+G1550+H1550+I1550+J1550+K1550+L1550+M1550+N1550)","v":0},{"$f":"Q1550*1.15","v":0}]
[74503,100,"Stachys officinalis","Ukkie","RC",null,null,null,null,null,null,null,null,null,12.35,1234.9100000000001,0,0]
[79495,84,"Stokesia laevis","Amethyst","TC",null,null,null,null,null,null,null,null,null,33.450000000000003,2810,0,0]
[75432,84,"Stokesia laevis","Mel's Blue","TC",null,null,null,null,null,null,null,null,null,35.04,2943.77,0,0]
[76725,100,"Symphytum grandiflorum","Symphytum grandiflorum","RC",null,null,null,null,null,null,null,null,null,12.35,1234.9100000000001,0,0]
[76726,100,"Symphytum grandiflorum","Wisley Blue","RC",null,null,null,null,null,null,null,null,null,12.35,1234.9100000000001,0,0]
[79602,100,"Teucrium chamaedrys","Album","RC",null,null,null,null,null,null,null,null,null,11.37,1137.1500000000001,0,0]
[79833,100,"Teucrium lucidrys","Teucrium lucidrys","RC",null,null,null,null,null,null,null,null,null,11.37,1137.1500000000001,0,0]
[79453,84,"Thalictrum aquilegiifolium","Black Stockings","TC",null,null,null,null,null,null,null,null,null,32.5,2729.73,0,0]
[74487,84,"Thalictrum aquilegiifolium","Nimbus™ Pink","TC",null,null,null,null,null,null,null,null,null,32.5,2729.73,0,0]
[74488,84,"Thalictrum aquilegiifolium","Nimbus™ White","TC",null,null,null,null,null,null,null,null,null,32.5,2729.73,0,0]
[77456,100,"Thymus capitatus","Thymus capitatus","RC",null,null,null,null,null,null,null,null,null,9.99,999.24,0,0]
[71454,100,"Thymus longicaulis","Thymus longicaulis","RC",null,null,null,null,null,null,null,null,null,9.99,999.24,0,0]
[71449,100,"Thymus praecox","Albiflorus","RC",null,null,null,null,null,null,null,null,null,10.64,1063.92,0,0]
[79202,100,"Thymus praecox","Coccineus","RC",null,null,null,null,null,null,null,null,null,10.64,1063.92,0,0]
[71450,100,"Thymus praecox","Highland Cream","RC",null,null,null,null,null,null,null,null,null,10.64,1063.92,0,0]
[71451,100,"Thymus praecox","Minor","RC",null,null,null,null,null,null,null,null,null,10.64,1063.92,0,0]
[77480,100,"Thymus praecox","Pink Chintz","RC",null,null,null,null,null,null,null,null,null,10.64,1063.92,0,0]
[79666,100,"Thymus praecox","Pseudolanuginosus","RC",null,null,null,null,null,null,null,null,null,10.64,1063.92,0,0]
[71452,100,"Thymus praecox","Red Carpet","RC",null,null,null,null,null,null,null,null,null,10.64,1063.92,0,0]
[71448,100,"Thymus pulegioides","Foxley","RC",null,null,null,null,null,null,null,null,null,10.07,1006.81,0,0]
[79268,100,"Thymus serphyllum","Elfin","RC",null,null,null,null,null,null,null,null,null,10.64,1063.92,0,0]
[79644,100,"Thymus vulgaris","Compactus","RC",null,null,null,null,null,null,null,null,null,9.99,999.24,0,0]
[77468,100,"Thymus vulgaris","Silver Posie","RC",null,null,null,null,null,null,null,null,null,9.99,999.24,0,0]
[77467,100,"Thymus vulgaris","Thymus vulgaris","RC",null,null,null,null,null,null,null,null,null,9.99,999.24,0,0]
[71455,100,"Thymus x citriodorus","Aureus","RC",null,null,null,null,null,null,null,null,null,9.99,999.24,0,0]
[79645,100,"Thymus x citriodorus","Doone Valley","RC",null,null,null,null,null,null,null,null,null,9.99,999.24,0,0]
[71447,100,"Thymus x citriodorus","E.B. Anderson","RC",null,null,null,null,null,null,null,null,null,9.99,999.24,0,0]
[74222,100,"Thymus x citriodorus","Gold Lemon","RC",null,null,null,null,null,null,null,null,null,9.99,999.24,0,0]
[71453,100,"Thymus x citriodorus","Sambesi","RC",null,null,null,null,null,null,null,null,null,9.99,999.24,0,0]
[74223,100,"Thymus x citriodorus","Silver Queen","RC",null,null,null,null,null,null,null,null,null,9.99,999.24,0,0]
[79149,84,"Tiarella","Angel Wings","TC",null,null,null,null,null,null,null,null,null,34.25,2876.88,0,0]
[79873,84,"Tiarella","Iron Butterfly","TC",null,null,null,null,null,null,null,null,null,32.020000000000003,2689.6,0,0]
[79876,84,"Tiarella","Pink Skyrocket","TC",null,null,null,null,null,null,null,null,null,32.020000000000003,2689.6,0,0]
[79878,84,"Tiarella","Spring Symphony","TC",null,null,null,null,null,null,null,null,null,32.020000000000003,2689.6,0,0]
[79879,84,"Tiarella","Sugar and Spice","TC",null,null,null,null,null,null,null,null,null,32.020000000000003,2689.6,0,0]
[79834,100,"Tiarella cordifolia","Tiarella cordifolia","RC",null,null,null,null,null,null,null,null,null,12.02,1202.32,0,0]
[77494,84,"Uncinia rubra","Everflame","TC",null,null,null,null,null,null,null,null,null,36.35,3053.46,0,0]
[74513,84,"Verbascum","Dark Eyes","RC",null,null,null,null,null,null,null,null,null,21.7,1822.77,0,0]
[74530,84,"Verbascum","Honey Dijon","RC",null,null,null,null,null,null,null,null,null,21.7,1822.77,0,0]
[74514,84,"Verbascum","Plum Smokey","RC",null,null,null,null,null,null,null,null,null,21.7,1822.77,0,0]
[79573,84,"Verbascum","Rosie","RC",null,null,null,null,null,null,null,null,null,20.11,1689,0,0]
[79555,84,"Verbascum","Sugar Plum","RC",null,null,null,null,null,null,null,null,null,21.7,1822.77,0,0]
[71457,100,"Verbena bonariensis","Lollipop","RC",null,null,null,null,null,null,null,null,null,15.72,1572.49,0,0]
[74459,100,"Verbena bonariensis","Verbena bonariensis","RC",null,null,null,null,null,null,null,null,null,10.32,1031.58,0,0]
[74474,100,"Verbena canadiensis","Homestead Purple","RC",null,null,null,null,null,null,null,null,null,11.29,1128.5999999999999,0,0]
[71456,100,"Verbena officinalis","Bampton","RC",null,null,null,null,null,null,null,null,null,11.29,1128.5999999999999,0,0]
[71458,100,"Verbena peruviana","Verbena peruviana","RC",null,null,null,null,null,null,null,null,null,11.29,1128.5999999999999,0,0]
[74887,100,"Veronica kemulariae","Veronica kemulariae","RC",null,null,null,null,null,null,null,null,null,12.9,1290.3,0,0]
[71564,100,"Veronica longifolia","First Glory","TC",null,null,null,null,null,null,null,null,null,21.69,2168.92,0,0]
[75046,100,"Veronica longifolia","First Choice","TC",null,null,null,null,null,null,null,null,null,21.69,2168.92,0,0]
[71562,100,"Veronica longifolia","First Lady","TC",null,null,null,null,null,null,null,null,null,21.69,2168.92,0,0]
[71563,100,"Veronica longifolia","First Love","TC",null,null,null,null,null,null,null,null,null,21.69,2168.92,0,0]
[74813,100,"Veronica longifolia","First Match","TC",null,null,null,null,null,null,null,null,null,21.69,2168.92,0,0]
[75140,100,"Veronica longifolia","White Jolanda","RC",null,null,null,null,null,null,null,null,null,12.02,1202.32,0,0]
[79398,100,"Veronica repens","Sunshine","RC",null,null,null,null,null,null,null,null,null,12.02,1202.32,0,0]
[74847,100,"Veronica spicata","Bubblegum Candles","RC",null,null,null,null,null,null,null,null,null,19.809999999999999,1981.13,0,0]
[79360,100,"Veronica spicata","Rotfuchs","RC",null,null,null,null,null,null,null,null,null,11.29,1128.5999999999999,0,0]
[79397,100,"Veronica spicata","Royal Candles","RC",null,null,null,null,null,null,null,null,null,21.15,2114.6999999999998,0,0]
[75047,100,"Veronica spicata","Snow Candles","RC",null,null,null,null,null,null,null,null,null,19.079999999999998,1907.75,0,0]
[79361,100,"Veronica spicata","Ulster Blue Dwarf","RC",null,null,null,null,null,null,null,null,null,11.29,1128.5999999999999,0,0]
[71460,100,"Vinca major","Variegata","RC",null,null,null,null,null,null,null,null,null,9.67,966.9,0,0]
[79919,100,"Vinca major","Vinca major","RC",null,null,null,null,null,null,null,null,null,9.67,966.9,0,0]
[71551,100,"Vinca minor","Alba","RC",null,null,null,null,null,null,null,null,null,9.67,966.9,0,0]
[71552,100,"Vinca minor","Atropurpurea","RC",null,null,null,null,null,null,null,null,null,9.67,966.9,{"$f":"P1614*(F1614+G1614+H1614+I1614+J1614+K1614+L1614+M1614+N1614)","v":0},{"$f":"Q1614*1.15","v":0}]
[71553,100,"Vinca minor","Bowles Cunningham","RC",null,null,null,null,null,null,null,null,null,10.8,1079.6500000000001,0,0]
[71459,100,"Vinca minor","Elisa","RC",null,null,null,null,null,null,null,null,null,10.96,1096.26,0,0]
[79905,100,"Vinca minor","Gertrude Jekyll","RC",null,null,null,null,null,null,null,null,null,9.67,966.9,0,0]
[79399,100,"Vinca minor","Illumination","RC",null,null,null,null,null,null,null,null,null,10.96,1096.26,0,0]
[71550,100,"Vinca minor","Moonlit","RC",null,null,null,null,null,null,null,null,null,12.39,1238.9000000000001,0,0]
[79561,100,"Vinca minor","Ralph Shugert","RC",null,null,null,null,null,null,null,null,null,11.12,1111.5,0,0]
[79952,100,"Vinca minor","Vinca minor","RC",null,null,null,null,null,null,null,null,null,9.67,966.9,0,0]
[75456,100,"Viola cornuta","Boughton Blue","RC",null,null,null,null,null,null,null,null,null,11.29,1128.5999999999999,0,0]
[75460,100,"Viola cornuta","Martin","RC",null,null,null,null,null,null,null,null,null,11.29,1128.5999999999999,0,0]
[75461,100,"Viola cornuta","Molly Sanderson","RC",null,null,null,null,null,null,null,null,null,11.29,1128.5999999999999,0,0]
[75459,100,"Viola sororia","Albiflora","RC",null,null,null,null,null,null,null,null,null,9.99,999.24,0,0]
[75457,100,"Viola sororia","Dark Freckles","RC",null,null,null,null,null,null,null,null,null,9.99,999.24,0,0]
[75494,100,"Viola x hybrida","Red Cloud","RC",null,null,null,null,null,null,null,null,null,9.99,999.24,0,0]
[79523,100,"Waldsteinia ternata","Waldsteinia ternata","RC",null,null,null,null,null,null,null,null,null,11.37,1137.1500000000001,0,0]
[74489,84,"Yucca filamentosa","Bright Edge","TC",null,null,null,null,null,null,null,null,null,46.86,3936.34,0,0]
[79455,84,"Yucca filamentosa","Color Guard","TC",null,null,null,null,null,null,null,null,null,46.86,3936.34,0,0]
[75442,84,"Yucca flaccida","Ivory Towers","TC",null,null,null,null,null,null,null,null,null,46.86,3936.34,0,0]
[75433,84,"Yucca gloriosa","Variegata","TC",null,null,null,null,null,null,null,null,null,46.86,3936.34,0,0]
[79454,84,"Yucca rostrata","Sapphire Skies","TC",null,null,null,null,null,null,null,null,null,46.86,3936.34,0,0]